{"text_format":"1","workbook":"xlsx","n_sheets":4,"sheets":["PleB","PleH","LePasset","LePerier"],"not_rendered":{"charts":0,"images":0,"macros":1,"external_links":0,"defined_names":4,"comments":4,"pivot_tables":0},"unopened":[],"bounds":{"document_bytes":16777216,"sheet_cells":100000,"rows_first":2000,"rows_last":500,"rows_between":2000,"halvings":0,"cell_chars":16384,"cell_head_chars":4096},"cells_cut":0,"cells_raw":0,"read":"whole","date_system":"1900"}

{"sheet":"PleB","index":0,"n_rows":497,"n_cols":26,"rows_kept":497,"cut":false,"hidden":false,"merged":[[409,25,412,25],[485,19,488,19],[485,20,488,20],[485,21,488,21],[490,19,494,19],[490,20,494,20],[490,21,494,21],[474,19,477,19],[474,20,477,20],[474,21,477,21],[480,19,483,19],[480,20,483,20],[482,21,483,21],[456,19,462,19],[456,20,462,20],[456,21,462,21],[466,19,470,19],[466,20,470,20],[466,21,470,21],[437,19,442,19],[437,20,442,20],[437,21,442,21],[446,20,452,20],[446,21,452,21],[447,19,452,19],[428,19,429,19],[428,20,429,20],[428,21,429,21],[433,19,434,19],[433,20,434,20],[433,21,434,21],[415,19,419,19],[415,20,419,20],[415,21,419,21],[422,19,423,19],[422,20,423,20],[422,21,423,21],[398,19,404,19],[398,20,404,20],[398,21,404,21],[406,19,413,19],[406,20,413,20],[406,21,413,21],[383,19,387,19],[383,20,387,20],[383,21,387,21],[391,19,395,19],[391,20,395,20],[391,21,395,21],[363,19,364,19],[363,20,369,20],[363,21,369,21],[365,19,366,19],[368,19,369,19],[375,19,380,19],[375,20,380,20],[375,21,380,21],[346,20,352,20],[346,21,352,21],[348,19,352,19],[354,19,360,19],[354,20,360,20],[354,21,360,21],[334,19,337,19],[334,20,337,20],[334,21,337,21],[340,19,344,19],[340,20,344,20],[340,21,344,21],[310,19,318,19],[310,20,318,20],[310,21,314,21],[315,21,318,21],[324,19,330,19],[324,20,330,20],[324,21,329,21],[284,19,287,19],[284,20,294,20],[284,21,294,21],[288,19,289,19],[290,19,294,19],[297,19,303,19],[297,20,306,20],[297,21,303,21],[304,19,306,19],[304,21,306,21],[265,19,274,19],[265,20,274,20],[265,21,272,21],[276,19,280,19],[276,20,280,20],[276,21,278,21],[251,19,255,19],[251,20,255,20],[251,21,252,21],[254,21,255,21],[258,19,261,19],[258,20,261,20],[258,21,260,21],[233,19,234,19],[233,20,236,20],[233,21,234,21],[235,19,236,19],[235,21,236,21],[239,20,247,20],[239,21,242,21],[240,19,241,19],[242,19,247,19],[243,21,246,21],[215,21,216,21],[217,19,220,19],[217,21,220,21],[224,19,225,19],[224,20,229,20],[224,21,229,21],[227,19,229,19],[205,19,206,19],[205,20,206,20],[212,19,213,19],[212,20,213,20],[215,19,216,19],[215,20,221,20],[192,19,193,19],[192,20,193,20],[192,21,193,21],[197,19,198,19],[197,20,200,20],[198,21,200,21],[199,19,200,19],[178,19,183,19],[178,20,183,20],[178,21,181,21],[182,21,183,21],[186,19,188,19],[186,20,188,20],[186,21,188,21],[169,19,170,19],[169,20,176,20],[171,19,173,19],[171,21,173,21],[174,19,176,19],[174,21,176,21],[153,19,155,19],[153,20,157,20],[153,21,155,21],[156,19,157,19],[156,21,157,21],[163,19,166,19],[163,20,166,20],[163,21,166,21],[138,19,139,19],[138,20,142,20],[138,21,141,21],[140,19,141,19],[148,19,149,19],[148,20,149,20],[148,21,149,21],[115,19,121,19],[115,20,121,20],[115,21,121,21],[125,20,126,20],[129,19,133,19],[129,20,133,20],[129,21,132,21],[101,19,104,19],[101,20,104,20],[101,21,104,21],[108,19,109,19],[108,20,109,20],[108,21,109,21],[93,19,97,19],[93,20,97,20],[94,21,96,21],[70,20,72,20],[70,21,72,21],[71,19,72,19],[76,19,78,19],[76,20,78,20],[76,21,78,21],[46,19,47,19],[46,20,50,20],[47,21,48,21],[49,19,50,19],[53,19,55,19],[53,20,65,20],[53,21,65,21],[56,19,65,19],[31,19,34,19],[31,20,34,20],[31,21,34,21],[37,19,38,19],[37,20,43,20],[37,21,43,21],[40,19,43,19],[18,19,28,19],[18,20,28,20],[18,21,28,21],[22,22,23,22],[25,22,26,22],[27,22,28,22],[3,23,4,23],[6,19,10,19],[6,20,10,20],[6,21,10,21],[15,19,17,19],[15,20,17,20],[15,21,17,21],[16,22,17,22],[3,12,4,12],[3,13,4,13],[3,14,4,14],[3,19,3,20],[3,21,4,21],[3,22,4,22],[3,1,4,1],[3,2,3,4],[3,5,3,7],[3,8,3,9],[3,10,4,10],[3,11,4,11],[3,15,4,15]]}
[]
[null,null,null,"24K, Puy le Bas",null,null,null,null,null,null,null,null,null,null,null,null,null,null,null,null,"Puy le Bas de 23F (colonnes temporaires pour contrôle)"]
[]
[null,"Cad","Folio du Cadastre 1",null,null,"Case du Cadastre 2",null,null,"Plage dates",null,"Lieudit","Parcelle","Nature","Propriétaire","Com JP","Voir col X\nLigne :",null,null,null,"Parcelle n°",null,"Nature","Période\napproximative","Propriétaires au cadastre"]
[null,null,"Tiré de","Act","Passé à","Tiré de","Act","Passé à","Entrée","Sortie",null,null,null,null,null,null,null,null,null,1830,2022]
[]
[null,0,null,null,null,null,null,null,null,null,"Puy d'en Bas","!D0092","Maison","PELLAT Denis et consorts","ok",7,null,null,null,"!D0092",".D0621","Maison","1833/1880","PELLAT Denis et consorts"]
[null,1,null,"0420",null,null,null,null,null,1840,"Puy d'en Bas","!D0092","Maison","PELLAT ?",null,null,null,null,null,null,null,null,"1880/","PELLAT Jean René gendre REYMOND"]
[null,1,420,"0333",709,null,null,null,1840,1880,"Puy d'en Bas *","!D0092","Maison","PELLAT Denis fils de Denis",null,null,null,null,null,null,null,null,"/1944","MARCE Clément, vve née PELLAT"]
[null,1,332,"0710","103 B (sol 361)",null,null,null,1880,"1882","Puy d'en Bas","!D0092","Maison","PELLAT Jean René gendre REYMOND",null,8,null,null,null,null,null,null,"/1956","MEJEAN Robert"]
[null,2,null,null,null,"Omis",166,"",1943,1944,"Puy le Bas","!D0092","Maison","MARCE Clément",null,9,null,null,null,null,null,null,"/1958","VIGOUROUX Charles Maxime, époux LOCQUARD"]
[null,2,null,null,null,null,166,"",1944,1956,"Puy le Bas","!D0092","Maison","MARCE Clément Auguste, vve née PELLAT",null,9]
[null,2,null,null,null,null,166,"",1956,1958,"Puy le Bas","!D0092","Maison","MEJEAN Robert",null,10]
[null,2,null,null,null,null,166,"",1958,null,"Puy le Bas","!D0092","Maison","VIGOUROUX Charles Maxime, époux LOCQUARD",null,11]
[]
[null,0,null,null,null,null,null,null,null,null,"Puy d'en Bas","!D0093","Maison","REYMOND Denis","ok",16,null,null,null,"!D0093",".D0620","Maison","1833/1857","REYMOND Denis"]
[null,1,null,"0470",null,null,null,null,null,"1857","Puy d'en Bas","!D0093","Maison","REYMOND Denis",null,16,null,null,null,null,null,null,"1857/1859","PELLORCE Vincent feu Vincent"]
[null,1,470,"0712",742,null,null,null,1857,1859,"Puy d'en Bas","!D0093","Maison","PELLORCE Vincent feu Vincent, PELLORCE Théophile feu Vincent",null,"17, 18",null,null,null,null,null,null,null,"et PELLORCE Théophile feu Vincent"]
[null,1,470,"0606",null,null,null,null,1857,"1882","Puy d'en Bas","!D0093p","Maison","REYMOND Louis",null,19,null,null,null,"!D0093p",".D0620","Maison","1857/1882","REYMOND Louis"]
[null,1,712,"0742",809,null,null,null,1859,1865,"Puy d'en Bas","!D0093p","Maison","REYMOND Rémy feu Joseph",null,20,null,null,null,null,null,null,"1859/1865","REYMOND Rémy feu Joseph"]
[null,1,742,"0809","165 B (sol 1001)",null,null,null,1865,"1882","Puy d'en Bas","!D0093p","Maison","VERNET Jean Pierre gendre PELLAT",null,21,null,null,null,null,null,null,"1865/1882","VERNET Jean Pierre gendre PELLAT"]
[null,2,null,null,null,"",98,97,null,1924,"Puy d'en Bas","!D0093p","Maison","REYMOND Honorine",null,22,null,null,null,null,null,null,"/1924, 1929","REYMOND Honorine et Florentine"]
[null,2,null,null,null,"",97,"RB",1924,1929,"Puy d'en Bas","!D0093p","Maison","REYMOND Florentine",null,22,null,null,null,null,null,null,"1929/","NOIREY époux ARNAUDET Céphise"]
[null,2,null,null,null,97,61,"",1929,1944,"Puy d'en Bas","!D0093p","Maison","PELLORCE Victor","?",25,null,null,null,null,null,null,null,"VERNET Pierre Denis"]
[null,2,null,null,null,97,61,"",1944,1960,"Puy d'en Bas","!D0093p","Maison","PELLORCE Rémy Alphonse Victor époux DUSSERT, vve et héritiers","?",26,null,null,null,null,null,null,"1924/","PELLORCE Victor et VERNET pierre Denis, vve née HEST"]
[null,2,null,null,null,97,61,"",1960,null,"Puy d'en Bas","!D0093p","Maison","PELLORCE Léon Elie dit Jules et Pierre dit Rémy époux HUMBERT","?",28,null,null,null,null,null,null,"1944/","PELLORCE Rémy Alphonse Victor époux DUSSERT, vve et héritiers"]
[null,2,null,null,null,"",113,"",null,1924,"Puy d'en Bas","!D0093p","Maison","VERNET Pierre Denis",null,24,null,null,null,null,null,null,null,"MEARY CHABRY"]
[null,2,null,null,null,"",113,"",1924,1944,"Puy d'en Bas","!D0093p","Maison","VERNET Pierre Denis, vve née HEST",null,25,null,null,null,null,null,null,1960,"PELLORCE Léon Elie, Pierre dit Rémy"]
[null,2,null,null,null,"",113,"",1944,1961,"Puy d'en Bas","!D0093p","Maison","MEARY CHABRY",null,27,null,null,null,null,null,null,null,"ROSTEAU Paul, époux LEBARDIER à Montgeron"]
[null,2,null,null,null,"",113,"",1961,null,"Puy d'en Bas","!D0093p","Maison","ROSTEAU Paul, époux LEBARDIER",null,29]
[]
[null,0,null,null,null,null,null,null,null,null,"Puy d'en Bas","!D0109","Maison rurale","RIVOIRE Mathieu","ok",32,null,null,null,"!D0109",".D1822","Maison\nrurale","1833/1852","RIVOIRE Mathieu"]
[null,1,null,"0485",488,null,null,null,null,1852,"Puy d'en Bas","!D0109","Mais rurale","RIVOIRE Mathieu",null,32,null,null,null,null,null,null,"1852/1881","RIVOIRE (Paul ou Pierre)"]
[null,1,null,"0488",null,null,null,null,1852,1881,"Puy d'en Bas","!D0109","Mais rurale","RIVOIRE (Paul ou Pierre)",null,33,null,null,null,null,null,null,"1861/1910","ODDOUX Vincent fils de Jean"]
[null,1,"?","0636",null,null,null,null,1861,1910,"Puy d'en Bas","!D0109","Mais rurale","ODDOUX Vincent fils de Jean",null,34,null,null,null,null,null,null,"1910/","ODDOUX Edouard fils de Vincent maréchal Ferrant"]
[null,1,null,"0276",636,null,null,null,1910,null,"Puy d'en Bas","!D0109","Mais rurale","ODDOUX Edouard fils de Vincent maréchal Ferrant",null,35]
[]
[null,0,null,null,null,null,null,null,null,null,"Puy d'en Bas","!D0110","Maison","DUSSERT Louis","ok",38,null,null,null,"!D0110",".D0604","Maison","1833/1882","DUSSERT Louis"]
[null,1,null,"0152",773,null,null,null,1864,null,"Puy d'en Bas *","!D0110","Maison","DUSSERT Denis ou Louis fils à Séraphin",null,39,null,null,null,null,null,null,"1864/","DUSSERT Denis ou Louis fils à Séraphin"]
[null,1,152,"0773","53 B (sol 860)",null,null,null,1864,"1882","Puy d'en Bas *","!D0110","Maison","DUSSERT Louis père de Louis",null,38,null,null,null,"!D0110p",null,null,"/1943","ODDOUX Edouard fils de Vincent"]
[null,2,null,null,null,"",27,"",null,1924,"Puy d'en Bas *","!D0110","Maison","DUSSERT Eugène fils de Louis",null,41,null,null,null,"!D0110",null,null,null,"DUSSERT Eugène"]
[null,2,null,null,null,"",27,"",1924,1949,"Puy d'en Bas *","!D0110","Maison","DODE Louis",null,42,null,null,null,null,null,null,"/1924","DODE Louis"]
[null,2,null,null,null,"",27,"",1949,1959,"Puy d'en Bas *","!D0110","Maison","DODE Louis vve née BERTRAND",null,"42, 43",null,null,null,null,null,null,"/1949","vve née BERTRAND"]
[null,2,null,null,null,"",27,"",1959,null,"Puy d'en Bas *","!D0110","Maison","CASIER André époux FOUANT",null,44,null,null,null,null,null,null,"/1959","CASIER André époux FOUANT"]
[null,2,null,null,null,"",64,"Dém",null,1943,"Puy d'en Bas *","!D0110p","Maison","ODDOUX Edouard fils de Vincent",null,40]
[]
[null,1,null,"0152",null,null,null,null,null,1832,"Puy d'en Bas *","!D0112","Cave","DUSSERT Denis ou Louis fils à Séraphin","ok",47,null,null,null,"!D0112",".D0600\n.D0602","Cave","1833/1864","DUSSERT Denis ou Louis fils à Séraphin"]
[null,1,"Rectification","0153",773,null,null,null,1832,1864,"Puy d'en Bas","!D0112","Cave","DUSSERT Denis ou Louis fils à Séraphin",null,47,null,null,null,null,null,"Maison","1842/1881","RIVOIRE (Paul ou Pierre)"]
[null,1,null,"0488",null,null,null,null,1842,1881,"Puy d'en Bas","!D0112","Maison","RIVOIRE (Paul ou Pierre)",null,48,null,null,null,"!D0112p",null,null,"1861/1882","ODDOUX Vincent fils de Jean"]
[null,1,"?","0636",null,null,null,null,1861,1882,"Puy d'en Bas","!D0112p","Maison","ODDOUX Vincent fils de Jean",null,49,null,null,null,"!D0112bis ",null,"Cave","1901/1902","DUSSERT Eugène fils de Louis"]
[null,1,773,"0860",null,null,null,null,1901,1902,"Puy d'en Bas *","!D0112","Cave","DUSSERT Eugène fils de Louis",null,50,null,null,null,null,null,"Maison","/1943","ODDOUX Edouard fils de Vincent"]
[null,2,null,null,null,"",64,"Dém",null,1943,"Puy Dessous","!D0112bis *","Maison","ODDOUX Edouard fils de Vincent",null,51]
[]
[null,0,null,null,null,null,null,null,null,null,"Puy d'en Bas","!D0114","Maison","REYMOND Jean","ok",54,null,null,null,"!D0114",".D0601","Maison","1833/1836","REYMOND Jean"]
[null,1,null,"0448",null,null,null,null,null,1832,"Puy d'en Bas","!D0114","Maison","REYMOND Jean",null,54,null,null,null,null,null,null,"/1882","REYMOND Joseph fils de Jean"]
[null,1,null,"0450",null,null,null,null,1832,1836,"Puy d'en Bas","!D0114","Maison","REYMOND Jean",null,54,null,null,null,null,null,null,"/1930","BLANC Joseph Laurent fils de Joseph gendre RAYMOND"]
[null,1,448,"0557","143B",null,null,null,1836,"1882","Puy d'en Bas","!D0114","Maison","REYMOND Joseph fils de Jean",null,55,null,null,null,"!D0114p",null,null,"1930/1932","BLANC Rémy Joseph Reymond et BLANC Georges Emile, indivis"]
[null,2,null,null,null,"",13,"144, 145",null,1930,"Puy d'en Bas","!D0114","Maison","BLANC Joseph Laurent fils de Joseph gendre RAYMOND",null,56,null,null,null,null,null,null,"1930/1932","D'HAEYER époux BLANC Marie Alice"]
[null,2,null,null,null,13,144,64,1930,1932,"Puy d'en Bas","!D0114p","Maison","BLANC Rémy Joseph Reymond et BLANC Georges Emile, indivis",null,57,null,null,null,null,null,null,"1932/1956","ODDOUX Edouard fils de Vincent"]
[null,2,null,null,null,13,145,64,1930,1932,"Puy d'en Bas","!D0114p","Maison","D'HAEYER époux BLANC Marie Alice",null,58,null,null,null,null,null,null,"/1955","ODDOUX Edouard fils de Vincent, les héritiers"]
[null,2,null,null,null,"144, 145",64,"RB",1932,1943,"Puy d'en Bas","!D0114p","Maison","ODDOUX Edouard fils de Vincent",null,59,null,null,null,null,null,null,"1956/1957","PICHOUD François cordonnier"]
[null,2,null,null,null,"RB",64,"",1943,1955,"Puy d'en Bas","!D0114p","Maison","ODDOUX Edouard fils de Vincent",null,59,null,null,null,null,null,null,"1943/","PICHOUD François cordonnier, vve et héritiers "]
[null,2,null,null,null,"",64,190,1955,1956,"Puy d'en Bas","!D0114p","Maison","ODDOUX Edouard fils de Vincent, les héritiers",null,60,null,null,null,null,null,null,"1944/","ARNOL Jean Marius veuve née PICHOUD"]
[null,2,null,null,null,64,84,"",1926,1943,"Puy d'en Bas","!D0114p","Maison","PICHOUD François cordonnier","Pichoud François ?",61,null,null,null,null,null,null,"1953/","ODDOUX Marcel Casimir époux ARNOL "]
[null,2,null,null,null,"",84,"",1943,1944,"Puy d'en Bas","!D0114p","Maison","PICHOUD François, vve et héritiers","Pichoud François ?",62,null,null,null,null,null,null,"1956/","ALDEGUER Ange époux ODDOUX"]
[null,2,null,null,null,"",84,"",1944,1953,"Puy d'en Bas","!D0114p","Maison","ARNOL Jean Marius veuve née PICHOUD","Pichoud François ?",63,null,null,null,null,null,null,1957,"ALDEGUER Etienne époux ODDOUX"]
[null,2,null,null,null,"",84,192,1953,1957,"Puy d'en Bas","!D0114p","Maison","ODDOUX Marcel Casimir époux ARNOL","Pichoud François ?",64]
[null,2,null,null,null,64,190,"",1956,null,"Puy d'en Bas","!D0114p","Maison 1er étage","ALDEGUER Ange époux ODDOUX",null,65]
[null,2,null,null,null,84,192,"",1957,null,"Puy d'en Bas","!D0114p","Maison","ALDEGUER Etienne époux ODDOUX",null,66]
[]
[null,2,null,null,null,"",72,"Dém",null,1943,"Puy d'en Bas","!D0117p","Chambre","PELLORCE Alphonse Henri, les héritiers","ok",71,null,null,null,"!D0117",".D1531\n.D0532","Chambre","/1943","PELLORCE Alphonse Henri, enfants indivis "]
[null,2,null,null,null,"",117,"",null,1933,"Puy d'en Bas","!D0117p","Chambre","PELLORCE Alphonse Henri, fils de Henri",null,72,null,null,null,"!D0117p",null,null,"/1943","PELLORCE Alphonse Henri, fils de Henri"]
[null,2,null,null,null,"",117,"Dém",1933,1943,"Puy d'en Bas","!D0117p","Chambre","DODE Henri et Jacques et Julien époux DODE indivis",null,73,null,null,null,null,null,null,"/1933","DODE Henri, Jacques et Julien époux DODE indivis "]
[]
[null,1,null,"0448",null,null,null,null,null,1856,"Puy d'en Bas","!D0119","Grange","REYMOND Jean","Ne figure pas sur la carte cadastrale, oui",75,null,null,null,"!D0119",".D1861","Grange","1833/1856","REYMOND Jean"]
[]
[null,0,null,null,null,null,null,null,null,null,"Puy d'en Bas","!D0120","Maison","PELLAT Denis","ok",77,null,null,null,"!D0120",".D1861","Maison","1833/1865","PELLAT Denis, puis Denis fils de Denis"]
[null,1,"?","0332",null,null,null,null,null,1865,"Puy d'en Bas","!D0120","Maison","PELLAT Denis fils de Denis",null,77,null,null,null,null,null,null,"1865/1882","BELLON Jacques gendre PELLAT"]
[null,1,332,"0804",null,null,null,null,1865,1866,"Puy d'en Bas","!D0120","Maison","BELLON Jacques gendre PELLAT",null,78,null,null,null,null,null,null,"1943/","BELLON Jacques gendre PELLAT, les héritiers"]
[null,1,804,"0804",null,null,null,null,1866,1882,"Puy d'en Bas","!D0120","Maison","BELLON Jacques gendre PELLAT",null,78]
[null,2,null,null,null,"",10,"",null,null,"Puy d'en Bas","!D0120","Maison","BELLON Jacques gendre PELLAT",null,78]
[null,2,null,null,null,"",10,"",1943,null,"Puy d'en Bas","!D0120","Maison","BELLON Jacques gendre PELLAT, les héritiers",null,79]
[]
[null,0,null,null,null,null,null,null,null,null,"Puy d'en Bas","!D0122","Maison","RANQUE Joseph","ok",84,null,null,null,"!D0122",".D0598","Maison","1833/1840","RANQUE Joseph"]
[null,1,null,"0443","442, 446",null,null,null,null,1840,"Puy d'en Bas","!D0122","Maison","RANQUE Joseph",null,84,null,null,null,null,null,null,"1840/1882","RANQUE André feu Joseph"]
[null,1,443,"0446",441,null,null,null,1840,1848,"Puy d'en Bas","!D0122","Maison","RANQUE Blaise",null,null,null,null,null,"!D0122p",null,null,"1911/","PELLORCE Alphonse Henri"]
[null,1,null,"0442",null,null,null,null,1840,1882,"Puy d'en Bas","!D0122","Maison","RANQUE André feu Joseph",null,85,null,null,null,null,null,null,"/1943","PELLORCE Alphonse Henri, enfants indivis"]
[null,1,446,"0441","137B",null,null,null,1848,"1882","Puy d'en Bas","!D0122","Maison","RANQUE André feu Joseph",null,85,null,null,null,null,null,null,"1933/","DODE Henri et Jacques et Julien époux DODE indivis"]
[null,1,null,"0026",829,null,null,null,1911,null,"Puy d'en Bas","!D0122p","Sol et cour","PELLORCE Alphonse Henri, les enfants",null,87]
[null,2,null,null,null,"",72,"Dém",null,1943,"Puy d'en Bas","!D0122p","Maison","PELLORCE Alphonse Henri, les héritiers"]
[null,2,null,null,null,"",117,"",null,1933,"Puy d'en Bas","!D0122p","Maison","PELLORCE Alphonse Henri, fils de Henri",null,86]
[null,2,null,null,null,"",117,"Dém",1933,1943,"Puy d'en Bas","!D0122p","Maison","DODE Henri et Jacques et Julien époux DODE indivis",null,88,null,null,null,null,null,null,"1888/","Ajouter Jacques BELLON"]
[]
[null,0,null,null,null,null,null,null,null,null,"Puy d'en Bas","!D0123","Maison","ARNODET Paul","ok",94,null,null,null,"!D0123",".D1766","Maison","1833/1841","ARNAUDET Paul"]
[null,1,null,"0017","23.377",null,null,null,null,1841,"Puy d'en Bas","!D0123","Maison","ARNAUDET Paul",null,94,null,null,null,null,null,"Maison démolie","1841/1863","ARNODET Marie-Jeanne"]
[null,1,77,"0023","démolition",null,null,null,1841,1858,"Puy d'en Bas","!D0123","Maison démolie","ARNODET Marie-Jeanne",null,95,null,null,null,null,null,null,"1863/1864","REYMOND Joseph fils de Jean"]
[null,1,377,"0600","démolie (sol 557)",null,null,null,1849,1878,"Puy d'en Bas","!D0123","Maison démolie","ARNAUDET Marie-Rose femme PELLORCE Daniel",null,97,null,null,null,null,null,null,"1849/1878","ARNAUDET Marie-Rose femme PELLORCE Daniel"]
[null,1,"CN","0023","517 (557)",null,null,null,1858,1863,"Puy d'en Bas","!D0123","Maison","ARNODET Marie-Jeanne",null,95,null,null,null,null,null,"Maison","1943/","MAGNAN Edouard, directeur d'école"]
[null,1,23,"0611","démolie (sol 804)",null,null,null,1863,"1864","Puy d'en Bas","!D0123","Maison démolie","REYMOND Joseph fils de Jean",null,96]
[null,2,null,null,null,"Omis 1890",165,"",1943,null,"Puy le Bas","!D0123","Maison","MAGNAN Edouard, directeur d'école",null,98]
[]
[null,0,null,null,null,null,null,null,null,null,"Puy d'en Bas","!D0124","Maison","REYMOND Françoise","ok",102,null,null,null,"!D0124",".D0595","Maison","1833/1843","REYMOND Françoise ou François"]
[null,1,null,"0475",508,null,null,null,null,1843,"Puy d'en Bas","!D0124","Maison","REYMOND François",null,102,null,null,null,null,null,null,"1843/1846","REYMOND André fils de Joseph"]
[null,1,475,"0508",318,null,null,null,1843,1846,"Puy d'en Bas","!D0124","Maison","REYMOND André fils de Joseph",null,103,null,null,null,null,null,null,"1846/1920","CAIX Louis fils de Jean"]
[null,1,"(508)","0318",null,null,null,null,1846,1882,"Puy d'en Bas","!D0124","Maison","CAIX Louis fils de Jean",null,104,null,null,null,null,null,null,"1920/1943","ODDOUX Edouard fils de Vincent"]
[null,2,null,null,null,"",20,64,null,1920,"Puy d'en Bas","!D0124","Maison","CAIX Louis fils de Jean",null,104]
[null,2,null,null,null,20,64,"Dém",1920,1943,"Puy d'en Bas","!D0124","Maison","ODDOUX Edouard fils de Vincent",null,105]
[]
[null,0,null,null,null,null,null,null,null,null,"Puy d'en Bas","!D0127","Chapelle","REYMOND Jean",null,109,null,null,null,"!D0127",".D0593","Chapelle","1833/1887","REYMOND Jean puis Joseph Puis Jean Puis Denis puis Esprit"]
[null,1,null,"0510",null,null,null,null,null,1834,"Puy d'en Bas","!D0127","Chapelle","REYMOND Joseph",null,109,null,null,null,null,null,null,"1867/","Freney la commune"]
[null,1,550,"0450",27,null,null,null,1834,1857,"Puy le Bas *","!D0127 *","Chapelle","REYMOND Jean",null,109]
[null,1,null,"0472",null,null,null,null,1834,1867,"Puy d'en Bas *","!D0127","Chapelle","REYMOND Denis",null,109]
[null,1,448,"0044",500,null,null,null,1857,1887,"Puy le Bas *","!D0127","Sol de chapelle","REYMOND Esprit feu Jean",null,109]
[null,1,null,"0227",470,null,null,null,1867,null,"Puy d'en Bas","!D0127","Chapelle","Freney la commune",null,110]
[]
[null,0,null,null,null,null,null,null,null,null,"Puy d'en Bas","!D0128","Maison","REYMOND Françoise","ok",116,null,null,null,"!D0128",".D0589","Maison","1833/1843","REYMOND Françoise ou François"]
[null,1,null,"0475",508,null,null,null,null,1843,"Puy d'en Bas","!D0128","Maison","REYMOND François",null,116,null,null,null,null,null,null,"1843/1846","REYMOND André fils de Joseph"]
[null,1,475,"0508",318,null,null,null,1843,1846,"Puy d'en Bas","!D0128","Maison","REYMOND André fils de Joseph",null,117,null,null,null,null,null,null,"1846/1920","CAIX Louis fils de Jean"]
[null,1,"(508)","0318",null,null,null,null,1846,1882,"Puy d'en Bas","!D0128","Maison","CAIX Louis fils de Jean",null,118,null,null,null,null,null,null,"1920/1956","ODDOUX Edouard fils de Vincent"]
[null,2,null,null,null,"",20,64,null,1920,"Puy d'en Bas","!D0128","Maison","CAIX Louis fils de Jean",null,118,null,null,null,null,null,null,"1955/","ODDOUX Edouard fils de Vincent, les héritiers"]
[null,2,null,null,null,20,64,"",1920,1955,"Puy d'en Bas","!D0128","Maison","ODDOUX Edouard fils de Vincent","Était noté D125, effectivement, corrigé le12/11/24 (Plutôt 128, à creuser -Plutôt Arnaudet)",119,null,null,null,null,null,null,"1956/","ODDOUX Georges époux GALLE MICHON"]
[null,2,null,null,null,"",64,191,1955,1956,"Puy d'en Bas","!D0128","Maison","ODDOUX Edouard fils de Vincent, les héritiers","Était noté D125, effectivement, corrigé le12/11/24 (Plutôt 128, à creuser -Plutôt Arnaudet)",120,null,null,null,null,null,null,"1958/","DORDAIN Gaston Georges époux BLONDY, instituteur "]
[null,2,null,null,null,64,191,"",1956,1958,"Puy d'en Bas","!D0128","Maison","ODDOUX Georges époux GALLE MICHON",null,121]
[null,2,null,null,null,null,191,"",1958,null,"Puy d'en Bas","!D0128","Maison","DORDAIN Gaston Georges époux BLONDY, instituteur (1958)",null,122]
[]
[null,0,null,null,null,null,null,null,null,null,"Puy d'en Bas","!D0129","Grange","REYMOND Jean","N'existe plus, oui",126,null,null,null,"!D0129",".D0591\n.D0592","Grange","1833/1883","REYMOND Jean puis Esprit feu Jean"]
[null,1,448,"0044","(504)",null,null,null,"?",1883,"Puy d'en Bas","!D0129","Grange","REYMOND Esprit feu Jean","ok",126,null,null,null,null,null,null,"1887/","BLANC Joseph Laurent, fils de Joseph, gendre REYMOND"]
[null,1,null,"0518","?",null,null,null,1887,null,"Puy d'en Bas","!D0129","Grange","BLANC Joseph Laurent, fils de Joseph, gendre REYMOND",null,127]
[]
[null,0,null,null,null,null,null,null,null,null,"Puy d'en Bas","!D0130","Grange","RIVOIRE Laurent","Rignon Jean-Louis",130,null,null,null,"!D0130",".D0591","Grange","1833/1907","RIVOIRE Laurent puis Mathieu"]
[null,1,null,"0489",447,null,null,null,null,1839,"Puy d'en Bas","!D0130","Grange","RIVOIRE Laurent",null,130,null,null,null,null,null,null,"1907/1922","DUSSERT Alphonse fils de feu Antoine"]
[null,1,489,"0447",336,null,null,null,1839,1907,"Puy d'en Bas","!D0130","Grange","RIVOIRE Mathieu fils Laurent",null,130,null,null,null,null,null,null,"1943/1954","PELLAT Aristide feu André"]
[null,1,null,"0336",447,null,null,null,1907,null,"Puy d'en Bas","!D0130","Grange","DUSSERT Alphonse fils de feu Antoine","ok",131,null,null,null,null,null,null,"1943/","PELLAT Aristide feu André, les héritiers"]
[null,2,null,null,null,"",25,71,null,1922,"Puy d'en Bas","!D0130","Maison","DUSSERT Alphonse fils de feu Antoine",null,131,null,null,null,null,null,"Maison","1946/","PELLORCE Louis Aimé"]
[null,2,null,null,null,25,71,"",1922,1943,"Puy le Bas","!D0130","Maison","PELLAT Aristide feu André",null,132]
[null,2,null,null,null,"",71,"RB",1943,1946,"Puy le Bas","!D0130","Maison","PELLAT Aristide feu André, les héritiers",null,133]
[null,2,null,null,null,"RB",71,121,1946,1954,"Puy le Bas","!D0130","Maison","PELLORCE Louis Aimé",null,134]
[]
[null,0,null,null,null,null,null,null,null,null,"Puy d'en Bas","!D0131","Bâtiment","REYMOND Jean","Philippe Lecoquierre",139,null,null,null,"!D0131",".D1860","Bâtiment","1833/1887","REYMOND Jean puis Esprit feu Jean"]
[null,1,null,"0449",27,null,null,null,null,1856,"Puy d'en Bas","!D0131","Bâtiment","REYMOND Jean",null,139,null,null,null,null,null,null,"/1930","BLANC Joseph Laurent fils de Joseph gendre RAYMOND"]
[null,1,448,"0027","149B (504)",null,null,null,1856,1887,"Puy d'en Bas","!D0131","Maison","RAYMOND Esprit feu Jean",null,139,null,null,null,"!D0131p",null,null,"1930/1941","PIERA André fils"]
[null,2,null,null,null,"",13,"15, 147",null,1930,"Puy d'en Bas","!D0131","Bâtiment","BLANC Joseph Laurent fils de Joseph gendre RAYMOND",null,140,null,null,null,null,null,null,"1930/1955","BLANC Rémy époux DUSSERT"]
[null,2,null,null,null,13,147,15,1930,1941,"Puy d'en Bas","!D0131p","Bâtiment","PIERA André fils","Revoir les dates - A voir avec Marie-Do",141,null,null,null,"!D0131",null,"Maison","1955/","LECOQUIERRE Jean, directeur commercial"]
[null,2,null,null,null,13,15,"RB",1930,1941,"Puy d'en Bas","!D0131","Bâtiment","BLANC Rémy époux DUSSERT","Revoir les dates - A voir avec Marie-Do",142]
[null,2,null,null,null,147,15,"RB",1941,1943,"Puy d'en Bas","!D0131p","Bâtiment","BLANC Rémy époux DUSSERT","Revoir les dates - A voir avec Marie-Do",142]
[null,2,null,null,null,"RB",15,188,1943,1955,"Puy d'en Bas","!D0131","Bâtiment","BLANC Rémy époux DUSSERT","Revoir les dates - A voir avec Marie-Do",142]
[null,2,null,null,null,15,188,"",1955,null,"Puy le Bas","!D0131","Maison","LECOQUIERRE Jean, directeur commercial","A reclasser par dates",143]
[]
[null,0,null,null,null,null,null,null,null,null,"Puy d'en Bas","!D0132","Maison","REYMOND André","Maison Perrin",149,null,null,null,"!D0132",".D0578","Maison","1833/1874","REYMOND André"]
[null,1,null,"0465",634,null,null,null,null,1874,"Puy d'en Bas","!D0132","Maison","REYMOND André Fils à Blaise","Vérifier que le père Dode est bien Henri",149,null,null,null,null,null,null,"1874/1926","ODDOUX Jean Baptiste fils de Jean"]
[null,1,465,"0638","94 B (sol 634)",null,null,null,1874,"1882","Puy d'en Bas","!D0132","Maison","ODDOUX Jean Baptiste fils de Jean",null,150]
[null,2,null,null,null,"",65,"D",null,1926,"Puy d'en Bas","!D0132","Maison","ODDOUX Jean Baptiste fils de Jean",null,150]
[]
[null,0,null,null,null,null,null,null,null,null,"Puy d'en Bas","!D0138","Maison rurale","ARLOT Apolinaire","Jérôme Panthou - A voir avec Marie-Do",154,null,null,null,"!D0138",".D1829","Maison rurale","1833/1840","ARLOT Apolinaire puis Alphonse"]
[null,1,null,"0010",438,null,null,null,null,1840,"Puy d'en Bas","!D0138","Mais rurale","ARLOT Alphonse",null,154,null,null,null,null,null,null,"1840/1858","RANQUE Joseph"]
[null,1,null,"0438",null,null,null,null,1840,1853,"Puy d'en Bas","!D0138","Mais rurale","RANQUE Joseph",null,155,null,null,null,null,null,null,"1858/1883","CAIX Louis"]
[null,1,null,"0438",null,null,null,null,1843,1858,"Puy d'en Bas","!D0138","Maison","RANQUE Joseph","A revoir avec Jérôme et René Hamelin",155,null,null,null,"!D0138p",null,"Bâtiment rural","1883/1911","RANQUE Joseph feu André"]
[null,1,null,"0438",null,null,null,null,1853,1858,"Puy d'en Bas","!D0138","Mais rurale","RANQUE Joseph",null,155,null,null,null,null,null,null,"1911/","RANQUE Lucie"]
[null,1,438,"0324",null,null,null,null,1858,1866,"Puy d'en Bas","!D0138","Maison","CAIX Louis",null,156]
[null,1,"(477)","0318",null,null,null,null,1853,1883,"Puy d'en Bas","!D0138p","Mais rurale","CAIX Louis fils de Jean",null,156]
[null,1,318,"0880",33,null,null,null,1883,1911,"Puy d'en Bas","!D0138p","Bât rural","RANQUE Joseph feu André",null,157]
[null,1,880,"0033",null,null,null,null,1911,null,"Puy d'en Bas","!D0138p","Bât rural","RANQUE Lucie",null,158]
[]
[null,0,null,null,null,null,null,null,null,null,"Puy d'en Bas","!D0139","Maison","ODDOUX Etienne","Jérôme Panthou écroulée",164,null,null,null,"!D0139",".D1829","Maison","1833/1850","ODDOUX Etienne"]
[null,1,null,"0323",633,null,null,null,null,1850,"Puy d'en Bas","!D0139","Maison","ODDOUX ? (Etienne)",null,164,null,null,null,null,null,null,"1850/1859","ODDOUX ? Marie fille de Jean "]
[null,1,323,"0633",684,null,null,null,1850,1859,"Puy d'en Bas","!D0139","Maison","ODDOUX ? Marie fille de Jean ",null,165,null,null,null,null,null,null,"1859/1882","PELLORCE Henry père"]
[null,1,633,"0684","126 (B) (sol 880)",null,null,null,1859,"1882","Puy d'en Bas","!D0139","Maison","PELLORCE Henry père",null,166,null,null,null,null,null,null,"/1926","PELLORCE Céline fille d'Henry, couturière"]
[null,2,null,null,null,"",73,"D",null,1926,"Puy d'en Bas","!D0139","Maison","PELLORCE Céline fille d'Henry, couturière",null,167]
[]
[null,2,null,null,null,"",86,36,null,1943,"Puy d'en Bas","!D0141","Atelier","RANQUE Joseph","sur le rocher",170,null,null,null,"!D0141",".D1858","Atelier","/1943","RANQUE Joseph"]
[null,2,null,null,null,86,36,"86 87",1943,1955,"Puy le Bas","!D0141","Maison","DUSSERT Joseph Séraphin gendre RANQUE, la veuve et les héritiers","Jérôme Panthou mais pas de représentation graphique en 1830 - Ne figure pas sur le Cad0 ",171,null,null,null,null,null,"Maison","1943/1955","DUSSERT Joseph Séraphin gendre RANQUE, héritiers"]
[null,2,null,null,null,36,86,"",1955,null,"Puy le Bas","!D0141p","Maison 1er étage","PANTHOU Robert André",null,174,null,null,null,"!D0141p",null,"Maison 1er étage","1955/","RANQUE Joseph"]
[null,2,null,null,null,36,87,"",1955,null,"Puy le Bas","!D0141p","Maison r de ch","HAMELIN Jean Emile époux RANQUE, héritiers",null,177,null,null,null,null,null,null,"1943/","RANQUE Lucie"]
[null,null,null,null,null,null,null,null,null,null,null,null,null,null,null,null,null,null,null,null,null,null,"1954/","PANTHOU Robert André"]
[null,null,null,null,null,null,null,null,null,null,null,null,null,null,null,null,null,null,null,"!D0141p",null,"Maison rez de ch.","1955/","RANQUE Joseph Louis gendre PELLORCE"]
[null,null,null,null,null,null,null,null,null,null,null,null,null,null,null,null,null,null,null,null,null,null,"1938/","HAMELIN Jean Emile époux RANQUE "]
[null,null,null,null,null,null,null,null,null,null,null,null,null,null,null,null,null,null,null,null,null,null,1947,"HAMELIN Jean Emile époux RANQUE, les héritiers"]
[]
[null,0,null,null,null,null,null,null,null,null,"Puy d'en Bas","!D0142","Grange","ARLOT Apolinaire","ok",179,null,null,null,"!D0142",".D1829","Grange",null,"ARLOT Apolinaire"]
[null,1,null,"0438",null,null,null,null,1840,1858,"Puy d'en Bas","!D0142","Grange","RANQUE Joseph",null,180,null,null,null,null,null,null,"1840/1858","RANQUE Joseph"]
[null,1,438,"0324",null,null,null,null,1858,1883,"Puy d'en Bas","!D0142","Grange","CAIX Louis",null,181,null,null,null,null,null,null,"1858/1883","CAIX Louis"]
[null,1,318,"0880",33,null,null,null,1883,1911,"Puy d'en Bas","!D0142","Grange","RANQUE Joseph feu André",null,182,null,null,null,null,null,null,"1883/1911","RANQUE Joseph feu André"]
[null,2,null,null,null,"",86,"",null,1943,"Puy d'en Bas","!D0142","Maison","RANQUE Joseph",null,180,null,null,null,null,null,"Maison","1911/","RANQUE Lucie"]
[null,2,null,null,null,"",86,"",1943,1954,"Puy d'en Bas","!D0142","Maison","RANQUE Lucie",null,183,null,null,null,null,null,null,"1954/","PANTHOU Robert André"]
[null,2,null,null,null,"",86,"",1954,null,"Puy d'en Bas","!D0142","Maison","PANTHOU Robert André",null,184]
[]
[null,0,null,null,null,null,null,null,null,null,"Le Puy Dessous hameau","!E1772","Maison","SARRET Pierre","Lachenal du Haut",187,null,null,null,"!E1772",".E1210","Maison","1833/1841","SARRET Pierre"]
[null,1,null,"0517",584,null,null,null,null,1841,"Le Puy Dessous Hameau","!E1772","Maison","SARRET Pierre",null,187,null,null,null,null,null,null,"1841/1879","FLEUR André feu Claude puis FLEUR Claude fils de feu André"]
[null,1,"(59-)","0584",null,null,null,null,1841,1873,"Le Puy Dessous Hameau","!E1772","Maison","FLEUR André feu Claude",null,188,null,null,null,null,null,null,"1879/1882","SARRET Magdeleine épouse PELLORCE Laurent di Partant"]
[null,1,null,"0290","?",null,null,null,1873,1879,"Le Puy Dessous Hameau","!E1772","Maison","FLEUR Claude fils de feu André","ok",188]
[null,1,null,"0300","27(0)",null,null,null,1879,"1882","Le Puy Dessous Hameau *","!E1772","Maison","SARRET Magdeleine épouse PELLORCE Laurent dit Partant",null,189]
[]
[null,0,null,null,null,null,null,null,null,null,"Le Puy Dessous hameau","!E1774","Maison","FLEUR Joseph","du milieu",193,null,null,null,"!E1774",".E1210","Maison","1833/1861","FLEUR Joseph"]
[null,1,null,"0205",586,null,null,null,null,1861,"Le Puy Dessous Hameau","!E1774","Maison","FLEUR Joseph","ok",193,null,null,null,null,null,null,"1961/1882","FLEUR André feu Claude puis FLEUR Claude fils de feu André"]
[null,1,null,"0584",null,null,null,null,1861,1873,"Le Puy Dessous Hameau","!E1774","Maison","FLEUR André feu Claude",null,194]
[null,1,null,"0290","?",null,null,null,1873,1882,"Le Puy Dessous Hameau","!E1774","Maison","FLEUR Claude fils de feu André",null,194]
[]
[null,0,null,null,null,null,null,null,null,null,"Le Puy Dessous hameau","!E1775","Maison","DUSSERT André","du bas",198,null,null,null,"!E1775",".E1210","Maison","1833/1853","DUSSERT André"]
[null,1,null,"0131",652,null,null,null,null,1853,"Le Puy Dessous Hameau","!E1775","Maison (forge)","DUSSERT",null,198,null,null,null,null,null,"Maison forge","1853/1880","DUSSERT Séraphin Barthélémy feu André"]
[null,1,131,"0652","17, ---",null,null,null,1853,1880,"Le Puy Dessous Hameau","!E1775","Maison (forge)","DUSSERT Séraphin Barthélémy feu André","Voir généalogie Séraphin (généalogie des Dussert) - 2 Séraphin, le 2ème a vendu à la commune (est chez les Wiart, à l'école, à Lachenal)",199,null,null,null,"!E1775p",null,null,"1880/1882","DUSSERT Pierre, DUSSERT Elie"]
[null,1,652,"0037","46B",null,null,null,1880,1882,"Le Puy Dessous Hameau","!E1775p","Mon forge","DUSSERT Pierre, DUSSERT Elie","ok",200,null,null,null,null,null,null,"1880/1882","DUSSERT Jean de feu Pierre"]
[null,1,652,"0826","51 B (sol 891)",null,null,null,1880,"1882","Le Puy Dessous Hameau *","!E1775p","Mon forge","DUSSERT Jean de feu Pierre",null,201]
[]
[null,null,null,null,null,null,null,null,null,null,null,null,null,null,null,null,null,null,null,"!E1782",".E1202","Maion rurale","1833/1853","REYMOND Joseph"]
[]
[null,0,null,null,null,null,null,null,null,null,"Le Puy Dessous hameau","!E1783","Maison","REYMOND Joseph","ok - Maison confirmée en 1783",206,null,null,null,"!E1783",".E1200","Maison",null,"REYMOND Joseph"]
[null,1,null,"0458",null,null,null,null,1833,1853,"Le Puy Dessous Hameau","!E1783","Mais rurale","REYMOND Joseph","Était en E1782, effectivement E1783, corrigé le 12/11/24 - C'est 1783",206,null,null,null,null,null,"Maison rurale","1888/","DUSSERT Pierre, DUSSERT Elie"]
[null,1,585,"0191",null,null,null,null,1888,null,"Le Puy Dessous Hameau","!E1783 *","Mais rurale","DUSSERT Pierre, DUSSERT Elie","Terrain Ratte ?",207]
[]
[null,0,null,null,null,null,null,null,null,null,"Le Puy Dessous hameau","!E1788","Fontaine","La Commune","ok",210,null,null,null,"!E1788",".E1193","Fontaine","1833/","Freney la commune"]
[null,1,null,"0226",null,null,null,null,null,null,"Le Puy Dessous Hameau","!E1788","Fontaine","Freney la commune","Rechercher la 1790 et 1791, pas dans Cad2, ni 0 mais dans Cad1, Reymond Esprit",210]
[]
[null,1,null,"0461",null,null,null,null,null,null,"Le Puy Dessous Hameau","!E1790","Mais rurale","REYMOND Blaise",null,213,null,null,null,"!E1790",".E2047","Maison rurale",null,"REYMOND Blaise"]
[null,1,448,"0044",149,null,null,null,1846,1882,"Le Puy Dessous Hameau","!E1790","Maison","REYMOND Esprit feu Jean",null,214,null,null,null,null,null,"Maison","(1846)/1882","REYMOND Esprit feu Jean"]
[]
[null,0,null,null,null,null,null,null,null,null,"Le Puy Dessous hameau","!E1792","Maison","RIVOIRE Laurent","Les Sabots, Fontaine - Voir avec Ranque Théophile, Edouard, Hest Ida, Vieux Maurice époux Hest",216,null,null,null,"!E1792",".E2050","Maison","1833/1851","RIVOIRE Laurent"]
[null,1,null,"0489",119,null,null,null,null,1851,"Le Puy Dessous Hameau","!E1792","Maison","RIVOIRE Laurent",null,216,null,null,null,null,null,null,"1851/1882","RIVOIRE Antoine feu Laurent"]
[null,1,489,"0119","152B, 421",null,null,null,1851,"1882","Le Puy Dessous Hameau","!E1792","Maison","RIVOIRE Antoine feu Laurent","pas de maison sur la carte cadastrale - ok",217,null,null,null,"!E1792p",null,"Chambre",null,"RANQUE Théophile"]
[null,2,null,null,null,"",90,"",null,1937,"Puy Dessous","!E1792p","Chambre","RANQUE Théophile",null,218,null,null,null,null,null,null,"1937/","RANQUE Edouard vve née HEST"]
[null,2,null,null,null,"",90,"RB en 1943",1937,1947,"Puy Dessous","!E1792p","Maison","RANQUE Edouard vve née HEST",null,219,null,null,null,null,null,null,"1947/","HEST Ida"]
[null,2,null,null,null,"RB",90,"",1947,1951,"Puy Dessous","!E1792p","Maison","HEST Ida",null,220,null,null,null,null,null,null,"1951/","VIEUX Maurice époux HEST"]
[null,2,null,null,null,"",90,179,1951,1953,"Puy Dessous","!E1792p","Maison","VIEUX Maurice époux HEST",null,221,null,null,null,"!E1792",null,"Maison partie","1953/","FONTAINE Jacques Nestor, époux SOURNAIS, instituteur"]
[null,2,null,null,null,90,179,"",1953,null,"Puy le Bas","!E1792","Maison partie","FONTAINE Jacques Nestor, époux SOURNAIS, instituteur",null,222]
[]
[null,0,null,null,null,null,null,null,null,null,"Le Puy Dessous hameau","!E1793","Maison","REYMOND Joseph","Actuellement maison Démaret + cour",225,null,null,null,"!E1793",".E2048","Maison","1833/1856","REYMOND Joseph puis REYMOND Jean"]
[null,1,null,"0450",27,null,null,null,null,1856,"Le Puy Dessous Hameau","!E1793","Maison","REYMOND Jean","ok",225,null,null,null,null,null,null,"/1930","BLANC Joseph Laurent fils de Joseph gendre RAYMOND"]
[null,2,null,null,null,"",13,"15, 147",null,1930,"Puy d'en Bas","!E1793","Maison","BLANC Joseph Laurent fils de Joseph gendre RAYMOND",null,226,null,null,null,"!E1793p",null,null,"1930/1941","BLANC Rémy époux DUSSERT"]
[null,2,null,null,null,13,15,147,1930,1941,"Puy d'en Bas","!E1793p","Maison","BLANC Rémy époux DUSSERT",null,227,null,null,null,"!E1793",null,null,"1930/1947","PIERA André fils"]
[null,2,null,null,null,"13 et 15",147,"RB en 1943",1930,1973,"Puy le Bas","!E1793p","Maison","PIERA André fils",null,228,null,null,null,null,null,null,"1947/1957","HOSTACHE Aimé époux RIBOT"]
[null,2,null,null,null,"RB en 43",147,"",1943,1947,"Puy le Bas","!E1793p","Maison","PIERA André fils",null,228,null,null,null,null,null,null,"1957/","DEMARET Yvon Clément, directeur d'école"]
[null,2,null,null,null,147,169,193,1947,1957,"Puy le Bas *","!E1793","Maison","HOSTACHE Aimé époux RIBOT",null,229]
[null,2,null,null,null,169,193,"",1957,null,"Le Puy Dessous","!E1793","Maison","DEMARET Yvon Clément, directeur d'école",null,230]
[]
[null,0,null,null,null,null,null,null,null,null,"Le Puy Dessous hameau","!E1794","Maison","REYMOND Joseph","Philippe Ratte",234,null,null,null,"!E1794",".E2049","Maison","1833/1853","REYMOND Joseph"]
[null,1,null,"0458",null,null,null,null,null,1853,"Le Puy Dessous Hameau","!E1794","Mais rurale","REYMOND Joseph",null,234,null,null,null,null,null,null,"1853/1894","BLANC Joseph vve REYMOND Louise"]
[null,1,457,"0029",null,null,null,null,1853,1894,"Le Puy Dessous Hameau","!E1794","Maison","BLANC Joseph vve REYMOND Louise","ok",235,null,null,null,"!E1794bis",null,"Maison rurale","1882/1908","PELLAT Jean René gendre REYMOND"]
[null,1,461,"0713",924,null,null,null,1882,1908,"Le Puy Dessous Hameau","!E1794bis","Mais rurale","PELLAT Jean René gendre REYMOND","La Tour",236,null,null,null,null,null,null,"1908/","RANQUE Théophile à La Chenal"]
[null,1,709,"0663",null,null,null,null,1908,null,"Le Puy Dessous Hameau","!E1794bis","Mais rurale","RANQUE Théophile à La Chenal","Jacques Duret",237]
[]
[null,0,null,null,null,null,null,null,null,null,"Le Puy Dessous hameau","!E1795","Maison","REYMOND Henri","Maison Ratte Duret",240,null,null,null,"!E1795",".E2026\n.E2027","Maison","1833/","REYMOND Henri"]
[null,1,null,"0463",461,null,null,null,null,1843,"Le Puy Dessous Hameau","!E1795","Maison","REYMOND Antoine",null,241,null,null,null,"!E1795p",null,null,"1843/1855","REYMOND Antoine"]
[null,1,null,"0464",null,null,null,null,1843,1855,"Le Puy Dessous Hameau","!E1795p","Maison","REYMOND Antoine",null,241,null,null,null,null,null,null,"1843/1882","REYMOND Blaise"]
[null,1,null,"0462",463,null,null,null,1843,1882,"Le Puy Dessous Hameau","!E1795","Maison","REYMOND Blaise","ok",242,null,null,null,"!E1795",null,null,"1882/1882","PELLAT Jean Rémy gendre REYMOND"]
[null,1,null,"0462",463,null,null,null,1855,1882,"Le Puy Dessous Hameau","!E1795p","Maison","REYMOND Blaise",null,242,null,null,null,null,null,"Maison partie","1953/1957","RANQUE Théophile"]
[null,1,461,"0715","103 B (sol 924)",null,null,null,1882,"1882","Le Puy Dessous Hameau","!E1795","Maison","PELLAT Jean Rémy gendre REYMOND",null,243,null,null,null,null,null,null,"1937/","RANQUE Edouard vve née HEST"]
[null,2,null,null,null,"",90,"",null,1937,"Puy le Bas","!E1795","Maison partie","RANQUE Théophile",null,244,null,null,null,null,null,null,"1947/","HEST Ida"]
[null,2,null,null,null,"",90,"RB en 1943",1937,1947,"Puy le Bas","!E1795","Maison partie","RANQUE Edouard vve née HEST",null,245,null,null,null,null,null,null,"1951/","VIEUX Maurice époux HEST"]
[null,2,null,null,null,"RB",90,"",1947,1951,"Puy le Bas","!E1795","Maison partie","HEST Ida",null,246,null,null,null,null,null,"Maison","1957/","LAITEM Robert Charlemagne, boulanger"]
[null,2,null,null,null,"",90,194,1951,1953,"Puy le Bas","!E1795","Maison partie","VIEUX Maurice époux HEST",null,247]
[null,2,null,null,null,90,194,"",1957,null,"Puy d'en Bas","!E1795","Maison","LAITEM Robert Charlemagne, boulanger",null,248]
[]
[null,0,null,null,null,null,null,null,null,null,"Le Puy Dessous hameau","!E1796","Grange","DUSSERT Séraphin","1er ou 2ème ?",252,null,null,null,"!E1796",".E1195","Grange","1833/1835","DUSSERT Séraphin"]
[null,1,null,"0122",546,null,null,null,null,1835,"Le Puy Dessous Hameau","!E1796","Grange","DUSSERT Séraphin","Ecroulée, mais ancienne photo",252,null,null,null,null,null,null,"1835/1841","DUSSERT Pierre fils de Séraphin"]
[null,1,122,"0546","5--",null,null,null,1835,1841,"Le Puy Dessous Hameau","!E1796","Grange","DUSSERT Pierre fils de Séraphin",null,253,null,null,null,null,null,"Maison CN","1841/1882","FLEUR Joseph de Joseph à Lachenal"]
[null,1,"nc","0585","62 B",null,null,null,1841,1882,"Le Puy Dessous Hameau *","!E1796","Maison CN","FLEUR Joseph de Joseph à Lachenal",null,254,null,null,null,null,null,"Grange","1841/1903","FLEUR Joseph de Joseph à Lachenal"]
[null,1,"5(3)6","0585",17,null,null,null,1841,1903,"Le Puy Dessous Hameau *","!E1796","Grange","FLEUR Joseph de Joseph à Lachenal",null,255,null,null,null,null,null,null,"1903/","DUSSERT Pierre, DUSSERT Elie"]
[null,1,null,"0194",585,null,null,null,1903,null,"Le Puy Dessous Hameau","!E1796","Grange","DUSSERT Pierre, DUSSERT Elie","ok",256]
[]
[null,0,null,null,null,null,null,null,null,null,"Le Puy Dessous hameau","!E1799","Maison","DUSSERT Séraphin","ok",259,null,null,null,"!E1799",".E2045","Maison","1833/1853","DUSSERT Séraphin"]
[null,1,null,"0122",149,null,null,null,null,1835,"Le Puy Dessous Hameau","!E1799","Maison","DUSSERT Séraphin",null,259,null,null,null,null,null,null,"1853/1863","REYMOND Catherine vve (GIROLLET)"]
[null,1,null,"0149","(287)",null,null,null,1835,1853,"Le Puy Dessous Hameau","!E1799","Maison","DUSSERT Séraphin",null,259,null,null,null,null,null,null,"1863/1867","PELLAT Jean René gendre REYMOND"]
[null,1,149,"0647",709,null,null,null,1853,1863,"Le Puy Dessous Hameau","!E1799","Maison","REYMOND Catherine vve (GIROLLET)","Voir généalogie Dussert, pas Girollet",260,null,null,null,null,null,"Ecole","1867/","Freney la commune"]
[null,1,647,"0710",219,null,null,null,1863,1867,"Le Puy Dessous Hameau","!E1799","Maison","PELLAT Jean René gendre REYMOND",null,261]
[null,1,null,"0227",709,null,null,null,1867,null,"Le Puy Dessous Hameau","!E1799","Mais (école)","Freney la commune",null,262]
[]
[null,0,null,null,null,null,null,null,null,null,"Le Puy Dessous hameau","!E1800","Maison","PELLAT André","Pas en 1830, 1806, Maison écroulée - Mettre à jour, différence entre 1800 et 1800bis",266,null,null,null,"!E1800",".E2053","Maison","1833/1858","PELLAT André puis PELLAT ? Fils de Pierre"]
[null,1,null,"0335",726,null,null,null,null,1858,"Le Puy Dessous Hameau","!E1800","Maison","PELLAT ? Fils de Pierre","C'est du 1806",266,null,null,null,null,null,null,"1924/","RANQUE Théophile"]
[null,2,null,null,null,"CN",90,"",1924,1937,"Puy Dessous","!E1800","Maison","RANQUE Théophile",1800,267,null,null,null,null,null,null,"1937/","RANQUE Edouard vve née HEST"]
[null,2,null,null,null,"",90,"RB en 1943",1937,1947,"Puy Dessous","!E1800","Maison","RANQUE Edouard vve née HEST",1800,268,null,null,null,null,null,null,"1947/","HEST Ida"]
[null,2,null,null,null,"",90,"",1947,1951,"Puy Dessous","!E1800","Maison","HEST Ida",1800,269,null,null,null,null,null,null,1951,"VIEUX Maurice époux HEST"]
[null,2,null,null,null,"",90,194,1951,1953,"Puy Dessous","!E1800","Maison","VIEUX Maurice époux HEST",1800,270,null,null,null,null,null,null,"1943/1954","PELLAT Aristide feu André"]
[null,2,null,null,null,"",71,"RB",1943,1943,"Puy le Bas","!E1800","Maison","PELLAT Aristide feu André",1806,271,null,null,null,null,null,null,"1954/","PELLAT Aristide feu André, les héritiers"]
[null,2,null,null,null,"RB",71,"",1943,1946,"Puy le Bas","!E1800","Maison","PELLAT Aristide feu André, les héritiers",1806,272,null,null,null,null,null,null,"1947/","PELLORCE Lucien dit Louis époux DUSSERT"]
[null,2,null,null,null,"",71,121,1946,1954,"Puy le Bas","!E1800","Maison","PELLORCE Louis Aimé",1806,null,null,null,null,null,null,"Maison partie","1953/","FONTAINE Jacques Nestor, époux SOURNAIS, instituteur"]
[null,2,null,null,null,90,179,"",1953,null,"Puy le Bas","!E1800","Maison partie","FONTAINE Jacques Nestor, époux SOURNAIS, instituteur",1800,274,null,null,null,null,null,"Maison","1955/","VATILLEUX Paul Louis"]
[null,2,null,null,null,71,121,"",1954,null,"Puy le Bas","!E1800","Maison","PELLORCE Lucien dit Louis époux DUSSERT","?",273]
[null,2,null,null,null,"Omis",185,"",1955,null,"Le Puy de Dessous","!E1800","Maison","VATILLEUX Paul Louis","Sur 1807 : Vatilleux à partir de 1914",275,null,null,null,"!E1800bis",".E2053","Maison","1833/","PELLAT André"]
[null,0,null,null,null,null,null,null,null,null,"Le Puy Dessous hameau","!E1800b","Maison","PELLAT André",1806,277,null,null,null,null,null,null,"1858/1863","PELLAT Jean fils d'André"]
[null,1,335,"0726","7--",null,null,null,1858,1863,"Le Puy Dessous Hameau","!E1800bis","Maison","PELLAT Jean fils d'André",1806,278,null,null,null,null,null,null,"1858/1875","PELLAT Magdeleine fille d'André"]
[null,1,"cn","0728",510,null,null,null,1858,1875,"Le Puy Dessous Hameau","!E1800bis","Maison","PELLAT Magdeleine fils d'André",1806,279,null,null,null,null,null,"Maison démolie","1858/1882","PELLAT André fils d'André"]
[null,1,"cn","0727","102 B",null,null,null,1858,1882,"Le Puy Dessous Hameau","!E1800bis","Maison","PELLAT André fils d'André",1806,280,null,null,null,null,null,"Maison","1875/1882","FLEUR Joseph vve née REYMOND Anne"]
[null,1,726,"0727","démolie (sol 1024)",null,null,null,1863,"1882","Le Puy Dessous Hameau","!E1800bis","Maison démolie","PELLAT André fils d'André",1806,280]
[null,1,728,"0510",null,null,null,null,1875,1882,"Le Puy Dessous Hameau","!E1800bis","Maison","FLEUR Joseph vve née REYMOND Anne",1806,281]
[]
[null,0,null,null,null,null,null,null,null,null,"Le Puy Dessous hameau","!E1801","Maison","REYMOND Joseph","Voir 1806",285,null,null,null,"!E1801",".E2044","Maison","1833/1853","REYMOND Joseph"]
[null,1,null,"0458",null,null,null,null,null,1853,"Le Puy Dessous Hameau","!E1801","Maison","REYMOND Joseph",null,285,null,null,null,null,null,null,"1853/1862","REYMOND Rose feu Joseph"]
[null,1,457,"0661",585,null,null,null,1853,1862,"Le Puy Dessous Hameau","!E1801","Maison","REYMOND Rose feu Joseph",null,286,null,null,null,null,null,null,"1862/1879","FLEUR Joseph de Joseph à Lachenal"]
[null,1,661,"0591",237,null,null,null,1862,1879,"Le Puy Dessous Hameau","!E1801","Maison","FLEUR Joseph de Joseph à Lachenal",null,287,null,null,null,null,null,null,"1879/1882","DUSSERT Pierre la femme née FLEUR Joséphine"]
[null,1,585,"0237","50B",null,null,null,1879,1882,"Le Puy Dessous Hameau","!E1801","Maison","DUSSERT Pierre la femme née FLEUR Joséphine","a appartenu à Mme Horquin auparavant",288,null,null,null,"!E1801p",null,null,"1884/1920","DUSSERT Pierre feu Pierre"]
[null,1,237,"0057",null,null,null,null,1884,null,"Puy de Dessous","!E1801","Sol et cour","DUSSERT Pierre, DUSSERT Elie","Hélène Ratte","259, 290",null,null,null,null,null,null,"1914/1920","DUSSERT Elie gendarme"]
[null,2,null,null,null,"",34,"",null,1914,"Puy Dessous","!E1801p","Maison","DUSSERT Pierre feu Pierre",null,289,null,null,null,"!E1801",null,null,"1943/1954","PELLAT Aristide feu André"]
[null,2,null,null,null,"",34,71,1914,1920,"Puy Dessous","!E1801p","Maison","DUSSERT Elie gendarme",null,290,null,null,null,null,null,null,"1943/1954","PELLAT Aristide feu André, les héritiers"]
[null,2,null,null,null,34,71,"RB",1920,1943,"Puy le Bas","!E1801","Maison","PELLAT Aristide feu André",null,292,null,null,null,null,null,null,"1946/1954","PELLORCE Louis Aimé"]
[null,2,null,null,null,"RB",71,"",1943,1946,"Puy le Bas","!E1801","Maison","PELLAT Aristide feu André, les héritiers",null,292,null,null,null,null,null,null,"1954/","PELLORCE Louis, les héritiers"]
[null,2,null,null,null,"",71,121,1946,1954,"Puy le Bas","!E1801","Maison","PELLORCE Louis Aimé",null,293,null,null,null,null,null,null,"1947/","PELLORCE Lucien dit Louis époux DUSSERT"]
[null,2,null,null,null,71,121,"",1954,null,"Puy le Bas","!E1801","Maison","PELLORCE Lucien dit Louis époux DUSSERT",null,295]
[]
[null,0,null,null,null,null,null,null,null,null,"Le Puy Dessous hameau","!E1803","Maison","RIVOIRE Laurent","Normalement rien en 1830",298,null,null,null,"!E1803",".E2043","Masure","1833/1851","RIVOIRE Laurent"]
[null,1,null,"0489",103,null,null,null,null,1851,"Le Puy Dessous Hameau","!E1803","Masure","RIVOIRE Laurent",null,298,null,null,null,null,null,null,"1851/1870","RIVOIRE François feu Laurent"]
[null,1,489,"0103",119,null,null,null,1851,1870,"Le Puy Dessous Hameau","!E1803","Masure","RIVOIRE François feu Laurent",null,299,null,null,null,null,null,null,"1870/1899","RIVOIRE Antoine"]
[null,1,"cn","0103",119,null,null,null,1866,1870,"Le Puy Dessous Hameau","!E1803","Maison","RIVOIRE François feu Laurent","Maison agrandie sur 1803 et 1802",299,null,null,null,null,null,null,"1899/1903","RIVOIRE Hippolyte fils de Joseph"]
[null,1,103,"0142","?",null,null,null,1870,1882,"Le Puy Dessous Hameau","!E1803","Maison","RIVOIRE Antoine",null,300,null,null,null,null,null,null,"1903/","RIVOIRE Casimir, aubergiste"]
[null,1,103,"0142","(89)",null,null,null,1870,1899,"Le Puy Dessous Hameau","!E1803","Masure","RIVOIRE Antoine",null,300,null,null,null,null,null,null,"1903/1905","RIVOIRE Victor fils d'Hippolyte, SALLES Jacques, cabaretier"]
[null,1,119,"0851","1040, 1044",null,null,null,1899,1903,"Le Puy Dessous Hameau","!E1803","Masure","RIVOIRE Hippolyte fils de Joseph",null,301,null,null,null,null,null,null,"1905/1907","GIROLLET Hippolyte"]
[null,1,119,"0853","1040, 1044",null,null,null,1899,1903,"Le Puy Dessous Hameau","!E1803","Masure","RIVOIRE Hippolyte fils de Joseph",null,301,null,null,null,"!E1803p",null,"Maison","1950/","RANQUE Louis Philippe"]
[null,1,819,1040,null,null,null,null,1903,null,"Le Puy Dessous Hameau","!E1803p","Maison","RIVOIRE Casimir, aubergiste",null,302,null,null,null,null,null,null,"1919/","RANQUE Clarisse Fédora Céphise fille à Pierre"]
[null,1,819,1044,421,null,null,null,1903,1905,"Le Puy Dessous Hameau","!E1803p","Masure","RIVOIRE Victor fils d'Hippolyte, SALLES Jacques, cabaretier",null,303,null,null,null,null,null,null,1939,"COLOGNOLI Vincent "]
[null,1,null,"0426",null,null,null,null,1905,1907,"Puy Dessous","!E1803","Masure","GIROLLET Hippolyte",null,304]
[null,2,null,null,null,"",88,"",1950,null,"Puy le Bas","!E1803","Maison","COLOGNOLI Vincent",null,307]
[]
[null,0,null,null,null,null,null,null,null,null,"Le Puy Dessous hameau","!E1804","Maison","GIROLET André",null,311,null,null,null,"!E1804",".E2043","Maison, masure","1833/1897","GIROLET André"]
[null,1,null,"0260",null,null,null,null,null,1897,"Le Puy Dessous Hameau","!E1804","Masure","GIROLLET (André)",null,311,null,null,null,null,null,null,"1837/1842","GIROLLET Jacques feu André"]
[null,1,259,"0574",null,null,null,null,1837,1842,"Le Puy Dessous Hameau *","!E1804","Masure","GIROLLET Jacques feu André",null,312,null,null,null,null,null,null,"1842/1865","FONTANT Michel Euphroisine"]
[null,1,574,"0217",807,null,null,null,1842,1865,"Le Puy Dessous Hameau *","!E1804","(Maison)","FONTANT Michel Euphroisine , MICHEL Antoine",null,"313, 314",null,null,null,null,null,null,"1855/1880","MICHEL Antoine feu Blaise"]
[null,1,548,"0229",506,null,null,null,1855,1880,"Le Puy Dessous Hameau","!E1804","Maison","MICHEL Antoine feu Blaise",null,314,null,null,null,null,null,null,"1865/1882","RANQUE Louis Philippe"]
[null,1,217,"0807",null,null,null,null,1865,null,"Le Puy Dessous Hameau","!E1804","Masure","RANQUE Louis Philippe",null,315,null,null,null,null,null,"Maison","1880/1926","DURAND Jean François gendarme"]
[null,1,"cn","0807","139 B",null,null,null,1867,1882,"Le Puy Dessous Hameau","!E1804","Maison","RANQUE Louis Philippe",null,315,null,null,null,null,null,null,null,"RANQUE Louis Philippe"]
[null,1,217,"0506","?",null,null,null,1880,1882,"Le Puy Dessous Hameau","!E1804 *","Maison","DURAND Jean-François gendarme",null,316,null,null,null,null,null,null,"1919/","RANQUE Clarisse Fédora Céphise fille à Pierre "]
[null,2,null,null,null,"",38,88,null,1926,"Puy d'en Bas","!E1804","Maison","DURAND Jean François gendarme",null,316,null,null,null,null,null,null,"1939/","COLOGNOLI Vincent"]
[null,2,null,null,null,"",88,"",1919,1939,"Puy Dessus","!E1804","Maison","RANQUE Clarisse Fédora Céphise fille à Pierre",null,318]
[null,2,null,null,null,"",88,"RB en 1943",1939,null,"Puy Dessus","!E1804","Maison","COLOGNOLI Vincent",null,319]
[]
[null,null,null,null,null,null,null,null,null,null,null,null,null,null,null,null,null,null,null,"!E1808",".E1170","Maison","1845/1855","MICHEL Catherine feu Blaise"]
[]
[null,0,null,null,null,null,null,null,null,null,"Le Puy Dessous hameau","!E1809","Maison","PELLISSIER (la héritière du Jean)","ok",325,null,null,null,"!E1809",".E1172","Maison","1833/1849","PELLISSIER Jean, l'héritière puis PELLISSIER Y- Louis"]
[null,1,null,"0339",421,null,null,null,null,1849,"Le Puy Dessous Hameau","!E1809","Maison","PELLISSIER Y- Louis","Hélène Ratte",325,null,null,null,null,null,null,"1849/1920","GIROLLET Hippolyte"]
[null,1,338,"0421","71B",null,null,null,1849,1882,"Le Puy Dessous Hameau","!E1809","Maison","GIROLLET Hippolyte",null,326,null,null,null,null,null,null,"1920/","RANQUE Théophile"]
[null,2,null,null,null,"",46,90,null,1920,"Puy Dessous","!E1809","Maison","GIROLET Hippolyte",null,326,null,null,null,null,null,null,"1937/","RANQUE Edouard vve née HEST"]
[null,2,null,null,null,46,90,"",1920,1937,"Puy Dessous","!E1809","Maison","RANQUE Théophile",null,327,null,null,null,null,null,null,"1947/","HEST Ida"]
[null,2,null,null,null,"",90,"RB en 1943",1937,1947,"Puy Dessous","!E1809","Maison","RANQUE Edouard vve née HEST",null,328,null,null,null,null,null,null,"1951/","VIEUX Maurice époux HEST "]
[null,2,null,null,null,"",90,"",1947,1951,"Puy Dessous","!E1809","Maison","HEST Ida",null,329,null,null,null,null,null,"Maison partie","1953/","FONTAINE Jacques Nestor, époux SOURNAIS, instituteur"]
[null,2,null,null,null,"",90,179,1951,null,"Puy Dessous","!E1809","Maison","VIEUX Maurice époux HEST",null,330]
[null,2,null,null,null,90,179,"",1953,null,"Puy le Bas","!E1809","Maison partie","FONTAINE Jacques Nestor, époux SOURNAIS, instituteur",null,331]
[]
[null,0,null,null,null,null,null,null,null,null,"Le Puy Dessous hameau","!E1810","Maison","ODDOUX Jean","Ancienn maison Fontaine, MAintenant Ratte",335,null,null,null,"!E1810",".E1172","Maison","1833/1861","ODDOUX Jean, ODDOUX Jean-Pierre"]
[null,1,"?","0326",null,null,null,null,null,1861,"Le Puy Dessous Hameau","!E1810","Maison","ODDOUX Jean-Pierre",null,335,null,null,null,null,null,null,"1861/1882","ODDOUX Vincent fils de Jean"]
[null,1,"(326)","0636",null,null,null,null,1861,"1882","Le Puy Dessous Hameau","!E1810","Maison","ODDOUX Vincent fils de Jean",null,336,null,null,null,null,null,null,"/1926","FLEUR Vincent instituteur"]
[null,2,null,null,null,"",44,64,null,1926,"Puy Dessous","!E1810","Maison","FLEUR Vincent instituteur",null,337,null,null,null,null,null,null,"1926/1943","ODDOUX Edouard fils de Vincent"]
[null,2,null,null,null,44,64,"Dém",1926,1943,"Puy Dessous","!E1810","Maison","ODDOUX Edouard fils de Vincent",null,338]
[]
[null,0,null,null,null,null,null,null,null,null,"Le Puy Dessous hameau","!E1811","Maison","RANQUE Jean Charles","Ancienn maison Fontaine, Maintenant Ratte",341,null,null,null,"!E1811",".E1172","Maison","1833/","RANQUE Jean Charles"]
[null,1,null,"0326",null,null,null,null,null,1861,"Le Puy Dessous Hameau","!E1811","Maison","ODDOUX Jean-Pierre",null,342,null,null,null,null,null,null,"/1861","ODDOUX Jean-Pierre"]
[null,1,"(326)","0636",null,null,null,null,1861,"1882","Le Puy Dessous Hameau","!E1811","Maison","ODDOUX Vincent fils de Jean",null,343,null,null,null,null,null,null,"1861/1882","ODDOUX Vincent fils de Jean"]
[null,2,null,null,null,"",44,64,null,1926,"Puy Dessous","!E1811","Maison","FLEUR Vincent instituteur",null,344,null,null,null,null,null,null,"/1926","FLEUR Vincent instituteur"]
[null,2,null,null,null,44,64,"Dém",1926,1943,"Puy Dessous","!E1811","Maison","ODDOUX Edouard fils de Vincent",null,345,null,null,null,null,null,null,"1926/1943","ODDOUX Edouard fils de Vincent"]
[]
[null,1,null,"0305","Convertie en écurie",null,null,null,1835,"1861","Le Puy Dessous Hameau","!E1812","Maison convertie en écurie","MICHEL Jean Marie","ok - Revoir le tableau Puy le Bas pour E1812",347,null,null,null,"!E1812",".E1171","Maison","1861/1882","MICHEL Jean Marie"]
[null,1,"cn","0305",807,null,null,null,1861,1882,"Le Puy Dessous Hameau","!E1812","Maison","MICHEL Jean Marie","ok",347,null,null,null,"!E0312p",null,null,"1885/1913","DUSSERT Jean de feu Pierre"]
[null,1,305,"0837","54 B",null,null,null,1882,1882,"Le Puy Dessous Hameau","!E1812","Maison","DUSSERT Louis fils de Louis",null,349,null,null,null,"!E1812",null,null,null,"DUSSERT Louis fils de Louis"]
[null,2,null,null,null,"",32,"",null,null,"Puy Dessous","!E1812","Maison","DUSSERT Louis fils de Louis",null,349,null,null,null,null,null,null,"1960/","NOIREY époux ARNAUDET Céphise"]
[null,2,null,null,null,32,61,"",1960,null,"Puy Dessous","!E1812","Maison","PELLORCE Léon Elie dit Jules et Pierre dit Rémy époux HUMBERT",null,353,null,null,null,null,null,null,"1924/","PELLORCE Victor"]
[null,null,null,null,null,null,null,null,null,null,null,null,null,null,null,null,null,null,null,null,null,null,"1944/","PELLORCE Rémy Alphonse Victor époux DUSSERT, vve et héritiers"]
[null,null,null,null,null,null,null,null,null,null,null,null,null,null,null,null,null,null,null,null,null,null,"1960/","PELLORCE Léon Elie, Pierre dit Rémy "]
[]
[null,0,null,null,null,null,null,null,null,null,"Le Puy Dessous hameau","!E1813","Maison","RANQUE Jean Charles","Ok",355,null,null,null,"!E1813",".E1171","Maison","1833/1835","RANQUE Jean-Charles"]
[null,1,null,"0445","305, 148",null,null,null,null,1835,"Le Puy Dessous Hameau","!E1813","Maison","RANQUE Jean Charles",null,355,null,null,null,null,null,null,"1835/1863","DUSSERT Pierre"]
[null,1,"D45","0148","38-",null,null,null,1835,1863,"Le Puy Dessous Hameau","!E1813","Maison","DUSSERT Pierre","Séparer les propriétaires",356,null,null,null,null,null,null,"1863/1882","NOYRET Constantin"]
[null,1,148,"0781","92 B (sol 485)",null,null,null,1863,"1882","Le Puy Dessous Hameau","!E1813","Maison","NOYRET Constantin",null,357,null,null,null,null,null,null,null,"NOIREY époux ARNAUDET Céphise"]
[null,2,null,null,null,"",61,"",null,1921,"Puy Dessous","!E1813","Maison","NOIREY époux ARNAUDET Céphise",null,358,null,null,null,null,null,null,"1924/","PELLORCE Victor"]
[null,2,null,null,null,"",61,"",1921,1944,"Puy Dessous","!E1813","Maison","PELLORCE Victor",null,359,null,null,null,null,null,null,"1944/","PELLORCE Rémy Alphonse Victor époux DUSSERT, vve et héritiers"]
[null,2,null,null,null,"",61,"",1944,1960,"Puy Dessous","!E1813","Maison","PELLORCE Rémy Alphonse Victor époux DUSSERT, vve et héritiers",null,360,null,null,null,null,null,null,1960,"PELLORCE Léon Elie, Pierre dit Rémy"]
[null,2,null,null,null,"",61,"",1960,null,"Puy Dessous","!E1813","Maison","PELLORCE Léon Elie dit Jules et Pierre dit Rémy époux HUMBERT",null,361]
[]
[null,0,null,null,null,null,null,null,null,null,"Le Puy Dessous hameau","!E1815","Maison","GIROUD la héritière de Blaise","A valider par Loren",364,null,null,null,"!E1815",".E2056","Maison","1833/1840","GIROUD Blaise et l'héritière"]
[null,1,null,"0256",null,null,null,null,null,1840,"Le Puy Dessous Hameau","!E1815","Maison","GIROUD Blaise",null,364,null,null,null,null,null,null,"1840/1876","RIVOIRE André fils Laurent"]
[null,1,null,"0444",null,null,null,null,1840,1876,"Le Puy Dessous Hameau","!E1815","Maison","RIVOIRE André fils Laurent",null,365,null,null,null,"!E1815p",null,null,"1876/1882","DUPRE Louis fils à Louis, RIVOIRE Firmin"]
[null,2,null,null,null,"",104,"Rural",null,1926,"Puy Dessous","!E1815","Maison","RIVOIRE André vve née BERGOIN Marie",null,368,null,null,null,null,null,null,"1876/1882","RIVOIRE André fils Laurent"]
[null,1,444,"0168",null,null,null,null,1876,1882,"Le Puy Dessous Hameau","!E1815p","Maison","DUPRE Louis fils à Louis, RIVOIRE Firmin",null,366,null,null,null,"!E1815",null,null,"/1926","RIVOIRE André vve née BERGOIN Marie"]
[null,1,444,"0452",null,null,null,null,1876,"1882","Le Puy Dessous Hameau","!E1815p","Maison","RIVOIRE André fils Laurent",null,367,null,null,null,"!E1815p",null,null,"/1943","RIVOIRE Firmin "]
[null,2,null,null,null,"",106,122,null,1943,"Puy Dessous","!E1815p","Maison","RIVOIRE Firmin ",null,369,null,null,null,null,null,null,"1915/","RIVOIRE Rémy"]
[null,2,null,null,null,106,122,"RB en 1943",1915,null,"Puy Dessous","!E1815p","Maison","RIVOIRE Rémy",null,370]
[]
[null,0,null,null,null,null,null,null,null,null,"Le Puy Dessous hameau","!E1816","Maison","GIROUD Jean-Louis","voir avec Loren",373,null,null,null,"!E1816",".E1168","Maison","1833/1882","GIROUD Jean-Louis"]
[null,1,null,"0253","77B",null,null,null,null,"1882","Le Puy Dessous Hameau","!E1816","Maison","GIROUD Jean-Louis",null,373]
[]
[null,0,null,null,null,null,null,null,null,null,"Le Puy Dessous hameau","!E1818","Maison","RIVOIRE Mathieu","ok",376,null,null,null,"!E1818",".E1165","Maison","1833/1864","RIVOIRE Mathieu et RIVOIRE ?"]
[null,1,null,"0483",718,null,null,null,null,1864,"Le Puy Dessous Hameau","!E1818","Maison","RIVOIRE ?",null,376,null,null,null,null,null,null,"1864/1881","CAIX Jean fils de Jean gendre RIVOIRE"]
[null,1,483,"0718","78-",null,null,null,1864,1981,"Le Puy Dessous Hameau","!E1818","Maison","CAIX Jean fils de Jean gendre RIVOIRE",null,377,null,null,null,null,null,null,"1881/1882","DUSSERT Jean, aubergiste à Clavans"]
[null,1,718,"0783","55 B (sol 718)",null,null,null,1881,"1882","Le Puy Dessous Hameau","!E1818","Maison","DUSSERT Jean, aubergiste à Clavans",null,378,null,null,null,null,null,null,null,"RANQUE Joseph Louis gendre PELLORCE"]
[null,2,null,null,null,"",87,"",null,1938,"Puy Dessous","!E1818","Maison","RANQUE Joseph Louis gendre PELLORCE",null,379,null,null,null,null,null,null,"1938/","HAMELIN Jean Emile époux RANQUE"]
[null,2,null,null,null,"",87,"",1938,1947,"Puy Dessous","!E1818","Maison","HAMELIN Jean Emile époux RANQUE",null,380,null,null,null,null,null,null,"1947/","HAMELIN Jean Emile époux RANQUE, les héririers"]
[null,2,null,null,null,"",87,"",1947,null,"Puy Dessous","!E1818","Maison","HAMELIN Jean Emile époux RANQUE, héritiers",null,381]
[]
[null,0,null,null,null,null,null,null,null,null,"Le Puy Dessous hameau","!E1820","Maison","REYMOND Denis","Maison du père Rivoire",384,null,null,null,"!E1820",".E1819\n.E2055","Maison","1833/1844","REYMOND Denis"]
[null,1,null,"0471","468 (sol 472)",null,null,null,null,1841,"Le Puy Dessous Hameau","!E1820","Maison","REYMOND Denis",null,384,null,null,null,null,null,null,"1841/1879","REYMOND Joseph"]
[null,1,null,"0472",null,null,null,null,1841,1844,"Le Puy Dessous Hameau","!E1820","Maison","REYMOND Denis",null,384,null,null,null,null,null,null,"1859/1865","PELLORCE Vincent feu Vincent, PELLORCE Théophile feu Vincent"]
[null,1,null,"0474","70-",null,null,null,1841,1879,"Le Puy Dessous Hameau","!E1820","Maison","REYMOND Joseph","2 maisons",385,null,null,null,null,null,null,"1865/1882","RIVOIRE André fils Laurent"]
[null,1,468,"0712",444,null,null,null,1859,1865,"Le Puy Dessous Hameau","!E1820","Maison","PELLORCE Vincent feu Vincent, PELLORCE Théophile feu Vincent",null,386,null,null,null,null,null,null,"/1943","RIVOIRE André fils Laurent"]
[null,1,712,"0452",null,null,null,null,1865,"1882","Le Puy Dessous Hameau","!E1820","Maison","RIVOIRE André fils Laurent","appartient à Pierre Mathieu Dordain",387]
[null,2,null,null,null,"",103,122,null,1943,"Puy Dessous","!E1820","Maison","RIVOIRE André fils de Laurent",null,387]
[null,2,null,null,null,103,122,"",1943,null,"Puy le Bas *","!E1820","Maison","RIVOIRE Rémy",null,397]
[null,1,470,"0474","70-",null,null,null,1844,1859,"Le Puy Dessous Hameau *","!E1820p","Maison","REYMOND Joseph",null,392,null,null,null,"!E1820p",".E1819\n.E2055","Maison","1844/1859","REYMOND Joseph"]
[null,1,470,"0043",590,null,null,null,1846,1864,"Le Puy Dessous Hameau *","!E1820p","Maison","REYMOND Jean",null,393,null,null,null,null,null,null,"1846/1864","REYMOND Jean"]
[null,1,43,"0607","147 B (sol 310, 311)",null,null,null,1864,"1882","Le Puy Dessous Hameau","!E1820p","Maison","REYMOND Louis",null,394,null,null,null,null,null,null,"1864/1882","REYMOND Louis"]
[null,2,null,null,null,"",97,122,null,1915,"Puy le Bas *","!E1820p","Maison","REYMOND Florentine",null,395,null,null,null,null,null,null,"/1915","REYMOND Florentine et Honorine"]
[null,2,null,null,null,"",98,122,null,1915,"Puy le Bas *","!E1820p","Maison","REYMOND Honorine",null,395,null,null,null,null,null,null,"1915/","RIVOIRE Rémy"]
[null,2,null,null,null,"97 et 98",122,"Dém en 1943",1915,null,"Puy le Bas *","!E1820p","Maison","RIVOIRE Rémy",null,396]
[]
[null,2,null,null,null,"",72,61,null,1944,"Puy d'en Bas","!E1821","Maison","PELLORCE Alphonse Henri, les héritiers","Four",401,null,null,null,"!E1821p",".E1166","Maison","/1933","PELLORCE Alphonse Henri, fils de Henri"]
[null,2,null,null,null,72,61,"",1944,1960,"Puy d'en Bas","!E1821","Maison","PELLORCE Rémy Alphonse Victor époux DUSSERT, vve et héritiers",null,404,null,null,null,null,null,null,"1933/","DODE Henri et Jacques et Julien époux DODE indivis"]
[null,2,null,null,null,"",61,"",1960,null,"Puy d'en Bas","!E1821","Maison","PELLORCE Léon Elie, Pierre dit Jules",null,405,null,null,null,null,null,null,"/1944","PELLORCE Alphonse Henri, enfants indivis "]
[null,2,null,null,null,"",117,61,null,1933,"Puy d'en Bas","!E1821p","Maison","PELLORCE Alphonse Henri, fils de Henri",null,399,null,null,null,null,null,null,"1933/","NOIREY époux ARNAUDET Céphise"]
[null,2,null,null,null,117,61,"",1933,1944,"Puy d'en Bas","!E1821p","Maison","PELLORCE Victor",null,403,null,null,null,null,null,null,"1924/","PELLORCE Victor"]
[null,2,null,null,null,117,61,"",1944,1960,"Puy d'en Bas","!E1821p","Maison","PELLORCE Rémy Alphonse Victor époux DUSSERT, vve et héritiers",null,404,null,null,null,null,null,null,"1944/","PELLORCE Rémy Alphonse Victor époux DUSSERT, vve et héritiers"]
[null,2,null,null,null,"",61,"",1960,null,"Puy d'en Bas","!E1821p","Maison","PELLORCE Léon Elie dit Jules et Pierre dit Rémy époux HUMBERT",null,405,null,null,null,null,null,null,"1960/","PELLORCE Léon Elie, Pierre dit Rémy"]
[]
[null,0,null,null,null,null,null,null,null,null,"Le Puy Dessous hameau","!E1824","Maison","ARLOT Joseph","Jean Poulet",407,null,null,null,"!E1824",".E1141","Maison","1833/1857","ARLOT Joseph"]
[null,1,5,"0537","138B",null,null,null,1857,"1882","Le Puy Dessous Hameau","!E1824","Maison","RANQUE Claude",null,408,null,null,null,null,null,null,"1857/1882","RANQUE Claude"]
[null,2,null,null,null,"",30,"",null,1940,"Puy de Dessous","!E1824p","Maison","DUSSERT Joseph fils de Louis gendre RANQUE",null,409,null,null,null,null,null,null,"/1943","DUSSERT Joseph fils de Louis gendre RANQUE"]
["x",2,null,null,null,61,178,"",1952,null,"Puy d'en Bas","!E1824p","Maison","DUSSERT Marius Emile",null,414,null,null,null,null,null,null,"1940/","PONS Marie fille de Julien",null,"A retirer"]
[null,null,null,null,null,null,null,null,null,null,null,null,null,null,null,null,null,null,null,null,null,null,"1943/1952","NOIREY époux ARNAUDET Céphise"]
[null,null,null,null,null,null,null,null,null,null,null,null,null,null,null,null,null,null,null,null,null,null,"1924/","PELLORCE Victor"]
[null,null,null,null,null,null,null,null,null,null,null,null,null,null,null,null,null,null,null,null,null,null,1944,"PELLORCE Rémy Alphonse Victor époux DUSSERT, vve et héritiers"]
[null,null,null,null,null,null,null,null,null,null,null,null,null,null,null,null,null,null,null,null,null,null,"1952/","DUSSERT Marius Emile",null,"A ajouter"]
[]
[null,0,null,null,null,null,null,null,null,null,"Le Puy Dessous hameau","!E1827","Maison","PELLISSIER Anne",null,416,null,null,null,"!E1827",".E1141","Maison","1833/1863","PELLISSIER Anne, PELLISSIER vve GIROLLET"]
[null,1,null,"0337",726,null,null,null,null,1863,"Le Puy Dessous Hameau","!E1827","Maison","PELLISSIER vve GIROLLET",null,416,null,null,null,null,null,null,"1863/1882","PELLAT Jean fils d'André"]
[null,1,337,"0726","101(3)",null,null,null,1863,"1882","Le Puy Dessous Hameau","!E1827","Maison","PELLAT Jean fils d'André",null,417,null,null,null,null,null,null,"/1919","PELLAT Alphonsine femme DODE André"]
[null,2,null,null,null,"",70,62,null,1919,"Puy Dessous","!E1827","Maison","PELLAT Alphonsine femme DODE André","ok",418,null,null,null,null,null,null,"1919/","NOIREY Noémie fille de Constantin"]
[null,2,null,null,null,70,62,"",1919,1956,"Puy Dessous","!E1827","Maison","MATHONNET Noémie épouse NOIREY",null,419,null,null,null,null,null,null,"1956/","REBETEZ André Georges, menuisier ébéniste"]
[null,2,null,null,null,"",62,"",1956,null,"Puy Dessous","!E1827","Maison","REBETEZ André Georges, menuisier ébéniste",null,420]
[]
[null,0,null,null,null,null,null,null,null,null,"Le Puy Dessous hameau","!E1828","Maison","PELLORCE Jean-Claude",null,423,null,null,null,"!E1828",".E2003","Maison","1833/1882","PELLORCE Jean-Claude, PELLORCE Jean"]
[null,1,null,"0342",null,null,null,null,null,1882,"Le Puy Dessous Hameau","!E1828","Maison","PELLORCE Jean",null,423,null,null,null,null,null,null,"1955/","REBETEZ Marie vve née PELLAT"]
[null,2,null,null,null,"Omis",184,"",1955,null,"Puy le Bas *","!E1828","Maison","REBETEZ Marie vve née PELLAT",null,424]
[null,null,null,null,null,null,null,null,null,null,null,null,null,null,"Rebetez"]
[null,2,null,null,null,"Omis",184,"",1955,null,"Le Puy de Dessus","!E1829","Maison","REBETEZ Marie vve née PELLAT",null,427,null,null,null,"!E1829",".E2004","Maison","1955/","REBETEZ Marie vve née PELLAT"]
[]
[null,0,null,null,null,null,null,null,null,null,"Le Puy Dessous hameau","!E1831","Maison","RIVOIRE Marie",null,429,null,null,null,"!E1831",".E1142","Maison","1833/1835","RIVOIRE Marie et RIVOIRE ?"]
[null,1,null,"0491",550,null,null,null,null,1835,"Le Puy Dessous Hameau","!E1831","Maison","RIVOIRE ?","Rebetez",429,null,null,null,null,null,null,"1835/1882","MICHEL Marie feu Claire, MICHEL Marie Victoire vve PONCET"]
[null,1,null,"0550",null,null,null,null,1835,1870,"Le Puy Dessous Hameau","!E1831","Maison","MICHEL Marie feu Claire",null,430]
[null,1,550,"0207","89B",null,null,null,1870,"1882","Le Puy Dessous Hameau","!E1831p","Maison","MICHEL Marie Victoire vve PONCET","Ruine derrière Jo Rebetez",430]
[]
[null,0,null,null,null,null,null,null,null,null,"Le Puy Dessous hameau","!E1832","Maison","PELLORCE Paul",null,434,null,null,null,"!E1832",".E1144","Maison","1833/","PELLORCE Paul"]
[null,1,null,"0394",null,null,null,null,1839,1865,"Le Puy Dessous Hameau","!E1832","Maison","PELLORCE Jean-Louis",null,435,null,null,null,null,null,null,"1839/1882","PELLORCE Jean-Louis"]
[null,1,null,"0416",null,null,null,null,1865,1882,"Le Puy Dessous Hameau","!E1832","Maison","PELLORCE Jean-Louis",null,435]
[null,null,null,null,null,null,null,null,null,null,null,null,null,null,"Ruine derrière Jo Rebetez"]
[null,0,null,null,null,null,null,null,null,null,"Le Puy Dessous hameau","!E1837","Maison","RANQUE Laurent",null,438,null,null,null,"!E1837",".E1145","Maison","1833/1847","RANQUE Laurent"]
[null,1,null,"0440",null,null,null,null,null,1847,"Le Puy Dessous Hameau","!E1837","Maison","RANQUE Laurent",null,438,null,null,null,null,null,null,"1847/1858","RANQUE Claude"]
[null,1,440,"0537",253,null,null,null,1847,1858,"Le Puy Dessous Hameau","!E1837","Maison","RANQUE Claude",null,439,null,null,null,null,null,null,"1858/1878","GIROUD Jean-Louis"]
[null,1,539,"0254",null,null,null,null,1858,1878,"Le Puy Dessous Hameau","!E1837","Maison","GIROUD Jean-Louis","Voir Loren",440,null,null,null,null,null,null,"1878/","GIROUD François fils de Jean-Louis"]
[null,1,253,"0311","76B",null,null,null,1878,1882,"Le Puy Dessous Hameau","!E1837","Maison","GIROUD François fils de Jean-Louis",null,441,null,null,null,null,null,null,1943,"BERTRAND vve née GIROUD"]
[null,2,null,null,null,"",48,"RB",null,1943,"Puy Dessous","!E1837","Maison","GIROUD François fils de Jean Louis",null,441,null,null,null,null,null,null,"1953/","BERTRAND vve née GIROUD, les héritiers"]
[null,2,null,null,null,"RB",48,"",1943,1953,"Puy Dessous","!E1837","Maison","BERTRAND vve née GIROUD","ruines",442]
[null,2,null,null,null,"",48,"",1953,null,"Puy Dessous","!E1837","Maison","BERTRAND vve née GIROUD, les héritiers",null,443]
[]
[null,0,null,null,null,null,null,null,null,null,"Le Puy Dessous hameau","!E1838","Maison","VEYRAT Anne vve DUSSERT",null,447,null,null,null,"!E1838",".E1145","Maison","1833/1868","VEYRAT Anne vve DUSSERT, Anne-Marie"]
[null,1,null,"0528","6, 63",null,null,null,null,1868,"Le Puy Dessous Hameau","!E1838","Maison","VEYRAT (Anne Marie)",null,447,null,null,null,"!E1838p",null,null,"1868/1875","DUSSERT Jean Baptiste"]
[null,1,528,"0006",718,null,null,null,1868,1875,"Le Puy Dessous Hameau *","!E1838p","Maison","DUSSERT Jean Baptiste",null,448,null,null,null,null,null,null,"1868/1876","SERBON Joseph"]
[null,1,528,"0063",214,null,null,null,1868,1876,"Le Puy Dessous Hameau *","!E1838p","Maison","SERBON Joseph","Voir Loren",449,null,null,null,null,null,null,"1875/1882","CAIX Jean fils de Jean gendre RIVOIRE"]
[null,1,6,"0733","24 B (sol 214)",null,null,null,1875,"1882","Le Puy Dessous Hameau *","!E1838p","Maison","CAIX Jean fils de Jean gendre RIVOIRE","ruines",450,null,null,null,null,null,null,"1876/","GIROUD François fils de Jean Louis"]
[null,1,63,"0214","?",null,null,null,1876,1882,"Le Puy Dessous Hameau *","!E1838p","Maison","GIROUD François fils de Jean-Louis",null,451,null,null,null,null,null,null,"1943/","BERTRAND vve née GIROUD"]
[null,2,null,null,null,"",48,"RB",null,1943,"Le Puy","!E1838p","Maison","GIROUD François fils de Jean Louis",null,451,null,null,null,null,null,null,"1953/","BERTRAND vve née GIROUD, les héritiers"]
[null,2,null,null,null,"RB",48,"",1943,1953,"Le Puy","!E1838p","Maison","BERTRAND vve née GIROUD",null,452]
[null,2,null,null,null,"",48,"",1953,null,"Le Puy","!E1838p","Maison","BERTRAND vve née GIROUD, les héritiers",null,453]
[]
[null,0,null,null,null,null,null,null,null,null,"Le Puy Dessous hameau","!E1852","Maison","DUSSERT la héritière d'Antoine",null,457,null,null,null,"!E1852",".E1124","Maison","1833/1835","DUSSERT Antoine et héritière"]
[null,1,"150, 48","0146",null,null,null,null,null,1835,"Le Puy Dessous Hameau","!E1852","Maison","DUSSERT Antoine",null,457,null,null,null,null,null,null,"1835/1839","PELLORCE Paul feu Jean Pierre"]
[null,1,null,"0386",null,null,null,null,null,1839,"Le Puy Dessous Hameau","!E1852","Maison","PELLORCE Paul feu Jean Pierre",null,458,null,null,null,null,null,null,"1835/1851","RIVOIRE Laurent"]
[null,1,146,"0387",394,null,null,null,1835,1839,"Le Puy Dessous Hameau","!E1852","Maison","PELLORCE Paul feu Jean Pierre",null,458,null,null,null,null,null,null,"1839/1858","PELLORCE Jean-Louis"]
[null,1,146,"0489",109,null,null,null,1835,1851,"Le Puy Dessous Hameau","!E1852","Maison","RIVOIRE Laurent",null,459,null,null,null,null,null,null,"1835/1867","DUSSERT gendre, DUSSERT Antoine"]
[null,1,146,"0150","7--",null,null,null,1835,1867,"Le Puy Dessous Hameau","!E1852","Maison","DUSSERT gendre, DUSSERT Antoine",null,461,null,null,null,null,null,null,"1850/1878","RIVOIRE Magdeleine feu Laurent"]
[null,1,null,"0394",null,null,null,null,1839,1858,"Le Puy Dessous Hameau","!E1852","Maison","PELLORCE Jean-Louis",null,460,null,null,null,null,null,null,"1858/1879","RANQUE Joseph"]
[null,1,489,"0109",438,null,null,null,1850,1878,"Le Puy Dessous Hameau","!E1852","Maison","RIVOIRE Magdeleine feu Laurent","Voir Loren",462]
[null,1,null,"0438",null,null,null,null,1858,1860,"Le Puy Dessous Hameau","!E1852","Maison","RANQUE Joseph",null,463]
[null,1,null,"0438",null,null,null,null,1868,1879,"Le Puy Dessous Hameau","!E1852","Maison","RANQUE Joseph",null,463]
[null,1,438,"0109",438,null,null,null,1860,1868,"Le Puy Dessous Hameau","!E1852p","Maison","RIVOIRE Magdeleine feu Laurent",null,467,null,null,null,"!E1852p",".E1124","Maison","1860/1868","RIVOIRE Magdeleine feu Laurent"]
[null,1,null,"0438",null,null,null,null,1860,1879,"Le Puy Dessous Hameau","!E1852p","Maison","RANQUE Joseph",null,463,null,null,null,null,null,null,"1860/1882","GIROUD Joseph fils de Jean"]
[null,1,15,"0705","75 B (sol 173)",null,null,null,1867,"1882","Le Puy Dessous Hameau","!E1852p","Maison","GIROUD Joseph fils de Jean",null,468,null,null,null,null,null,null,"1879/1882","RANQUE Marguerite"]
[null,1,438,"0451",705,null,null,null,1879,1882,"Le Puy Dessous Hameau","!E1852p","Maison","RANQUE Marguerite",null,469,null,null,null,null,null,null,null,"GIROUD Rémy gendre FLEUR"]
[null,1,451,"0706","75 B (sol 17-)",null,null,null,1882,"1882","Le Puy Dessous Hameau","!E1852p","Maison","GIROUD Joseph",null,468,null,null,null,null,null,null,"1941/","MERVAL Emile époux GIROUD (1941)"]
[null,2,null,null,null,"",49,"",null,1941,"Puy le Bas","!E1852p","Maison","GIROUD Rémy gendre FLEUR",null,470]
[null,2,null,null,null,"",49,"",1941,null,"Puy le Bas","!E1852p","Maison","MERVAL Emile époux GIROUD",null,473]
[]
[null,0,null,null,null,null,null,null,null,null,"Le Puy Dessous hameau","!E1853","Maison","DUSSERT Antoine",null,475,null,null,null,"!E1853",".E1124","Maison","1833/1862","DUSSERT Antoine gendre"]
[null,1,null,"0150","(785)",null,null,null,null,1862,"Le Puy Dessous Hameau","!E1853","Maison","DUSSERT gendre, DUSSERT Antoine",null,475,null,null,null,null,null,null,"1862/1882","GIROUD Joseph fils de Jean"]
[null,1,150,"0705","75 B",null,null,null,1862,"1882","Le Puy Dessous Hameau","!E1853","Maison","GIROUD Joseph fils de Jean",null,476,null,null,null,null,null,null,null,"GIROUD Rémy gendre FLEUR"]
[null,2,null,null,null,"",49,"",null,1941,"Puy Dessous","!E1853","Maison","GIROUD Rémy gendre FLEUR","Voir Loren",477,null,null,null,null,null,null,1941,"MERVAL Emile époux GIROUD (1941)"]
[null,2,null,null,null,"",49,"",1941,null,"Puy Dessous","!E1853","Maison","MERVAL Emile époux GIROUD",null,478]
[]
[null,0,null,null,null,null,null,null,null,null,"Le Puy Dessous hameau","!E1854","Maison","DUSSERT Louis",null,481,null,null,null,"!E1854",".E1124","Maison","1833/","DUSSERT Louis"]
[null,1,null,"0124","(785)",null,null,null,null,1884,"Le Puy Dessous Hameau","!E1854","Mais rurale","DEGOUL Pierre",null,482,null,null,null,null,null,"Maison rurale","/1884","DEGOUL Pierre"]
[null,1,124,"0706","17-",null,null,null,1884,1895,"Le Puy Dessous Hameau","!E1854","Bât rural","GIROUD Joseph",null,483,null,null,null,null,null,"Bâtiment rural","1884/1895","GIROUD Joseph"]
[null,1,705,"0232",null,null,null,null,1895,null,"Le Puy Dessous Hameau","!E1854","Bât rural","GIROUD Rémy gendre FLEUR","Voir Loren",484,null,null,null,null,null,null,"1895/","GIROUD Rémy gendre FLEUR"]
[]
[null,0,null,null,null,null,null,null,null,null,"Le Puy Dessous hameau","!E1855","Maison","GIROLET André",null,486,null,null,null,"!E1855",".E1123","Maison","1833/1897","GIROLET André"]
[null,1,null,"0260",null,null,null,null,null,1897,"Le Puy Dessous Hameau","!E1855","Maison","GIROLLET (André)","gendre FLEUR ?",486,null,null,null,null,null,null,"1837/1856","FLEUR Etienne feu Vincent"]
[null,1,259,"0210","5--",null,null,null,1837,1856,"Le Puy Dessous Hameau","!E1855","Maison","FLEUR Etienne feu Vincent",null,487,null,null,null,null,null,null,"1837/1882","GIROLLET Jacques feu André"]
[null,1,259,"0574",null,null,null,null,1837,"1882","Le Puy Dessous Hameau *","!E1855","Maison","GIROLLET Jacques feu André",null,488,null,null,null,null,null,null,"1881/1882","GIROLLET Pierre fils de Pierre"]
[null,1,null,"0828","74 B (sol (947))",null,null,null,1881,"1882","Le Puy Dessous Hameau","!E1855","Maison","GIROLLET Pierre fils de Pierre",null,489]
[null,1,573,"0573","573, 541",null,null,null,1837,1876,"Le Puy Dessous Hameau","!E1855p","Maison","GIROLLET Pierre feu André",null,491,null,null,null,"!E1855p",".E1123","Maison","1837/1876","GIROLLET Pierre feu André"]
[null,1,210,"0573","573, 541",null,null,null,1856,1876,"Le Puy Dessous Hameau","!E1855p","Maison","GIROLLET Pierre feu André",null,491,null,null,null,null,null,null,"1856/1882","GIROLLET Jacques feu André"]
[null,1,210,"0574",null,null,null,null,1856,"1882","Le Puy Dessous Hameau","!E1855p","Maison","GIROLLET Jacques feu André",null,492,null,null,null,null,null,null,"1876/1882","GIROLLET Marie feu Jacques"]
[null,1,573,"0601","828, 829",null,null,null,1876,1881,"Puy Dessous","!E1855p","Maison","GIROLLET Pierre feu André",null,491,null,null,null,null,null,null,"1881/1882","GIROLLET Marie de Pierre, PELLORCE Alphonse fils d'Henri"]
[null,1,573,"0541","541B",null,null,null,1876,"1882","Le Puy Dessous Hameau","!E1855p","Maison","GIROLLET Marie feu Jacques",null,493,null,null,null,null,null,null,"/1934","JOUVEL Louis Rémy "]
[null,1,573,"0829","120 B (sol 947)",null,null,null,1881,"1882","Le Puy Dessous Hameau","!E1855p","Maison","GIROLLET Marie de Pierre, PELLORCE Alphonse fils d'Henri",null,494]
[null,2,null,null,null,"",56,"ruines",null,1934,"Puy Dessous","!E1855p","Maison","JOUVEL Louis Rémy ",null,495]

{"sheet":"PleH","index":1,"n_rows":290,"n_cols":24,"rows_kept":290,"cut":false,"hidden":false,"merged":[[239,19,241,19],[239,20,241,20],[239,21,241,21],[246,19,249,19],[246,20,249,20],[246,21,249,21],[232,19,235,19],[232,20,235,20],[232,21,235,21],[284,19,286,19],[284,20,286,20],[96,19,106,19],[96,20,106,20],[96,21,106,21],[269,19,272,19],[269,20,272,20],[269,21,272,21],[275,19,279,19],[275,20,279,20],[275,21,279,21],[252,19,253,19],[252,20,253,20],[252,21,253,21],[256,19,261,19],[256,20,261,20],[256,21,257,21],[260,21,261,21],[190,19,192,19],[190,20,192,20],[191,21,192,21],[195,19,198,19],[195,20,198,20],[209,19,214,19],[209,20,214,20],[209,21,214,21],[168,19,170,19],[168,20,170,20],[175,19,178,19],[175,20,178,20],[175,21,176,21],[177,21,178,21],[148,19,151,19],[148,20,151,20],[148,21,151,21],[155,19,158,19],[155,20,158,20],[155,21,158,21],[129,19,133,19],[129,20,133,20],[129,21,132,21],[139,19,140,19],[139,20,140,20],[143,19,145,19],[143,20,145,20],[143,21,144,21],[115,19,116,19],[115,20,116,20],[115,21,116,21],[120,19,124,19],[120,20,124,20],[120,21,123,21],[111,19,112,19],[111,20,112,20],[111,21,112,21],[77,19,80,19],[77,20,80,20],[77,21,79,21],[85,19,91,19],[85,20,91,20],[85,21,86,21],[88,21,91,21],[56,22,57,22],[61,19,64,19],[61,20,64,20],[61,21,63,21],[68,19,72,19],[68,20,72,20],[68,21,70,21],[71,21,72,21],[48,19,51,19],[48,20,51,20],[48,21,51,21],[55,19,59,19],[55,20,59,20],[55,21,59,21],[35,19,37,19],[35,20,37,20],[35,21,37,21],[41,19,45,19],[41,20,45,20],[41,21,45,21],[26,19,27,19],[26,20,27,20],[26,21,27,21],[30,19,32,19],[30,20,32,20],[30,21,31,21],[18,19,19,19],[18,20,19,20],[18,21,19,21],[22,19,23,19],[22,20,23,20],[22,21,23,21],[3,1,4,1],[3,2,3,4],[3,5,3,7],[3,8,3,9],[3,10,4,10],[3,11,4,11],[3,23,4,23],[12,19,14,19],[12,20,14,20],[12,21,13,21],[3,12,4,12],[3,13,4,13],[3,14,4,14],[3,19,3,20],[3,21,4,21],[3,22,4,22],[3,16,4,16],[6,19,9,19],[6,20,9,20],[6,21,9,21]]}
[]
[null,null,null,"24K, Puy le Haut",null,null,null,null,null,null,null,null,null,null,null,null,null,null,null,null,"Puy le Haut de 23F (colonnes temporaires pour contrôle)"]
[]
[null,"Cad","Folio du Cadastre 1",null,null,"Case du Cadastre 2",null,null,"Plage dates",null,"Lieudit","Parcelle","Nature","Propriétaire","Com JP",null,"Voir col X\nLigne :",null,null,"Parcelle n°",null,"Nature","Période\napproximative","Propriétaires au cadastre"]
[null,null,"Tiré de","Act","Passé à","Tiré de","Act","Passé à","Entrée","Sortie",null,null,null,null,null,null,null,null,null,1830,2022]
[]
[null,0,null,null,null,null,null,null,null,null,"Puy le Haut *","!E1599","Maison","DUPRE Jean-Claude","Parking Ph Langrand",null,7,null,null,"!E1599",".E1426","Maison rurale","1833/1849","DUPRE Jean Charles"]
[null,1,null,"0110",608,null,null,null,null,1849,"Le Puy Dessus *","!E1599","Mais rurale","DUPRE Jean-Claude",null,null,7,null,null,null,null,null,"1849/1851","DUPRE Antoine fils de Jean Charles"]
[null,1,110,"0608",12,null,null,null,1849,1851,"Le Puy Dessus","!E1599","Mais rurale","DUPRE Antoine fils de Jean Charles",null,null,8,null,null,null,null,null,"1851/1869","ARNAUDET André"]
[null,1,608,"0014","64?",null,null,null,1851,1869,"Le Puy Dessus","!E1599","Mais rurale","ARNAUDET André",null,null,9,null,null,null,null,null,"1869/","ARNAUDET Achille"]
[null,1,12,"0064",null,null,null,null,1869,null,"Le Puy Dessus","!E1599","Mais rurale","ARNAUDET Achille",null,null,10]
[]
[null,0,null,null,null,null,null,null,null,null,"Puy le Haut *","!E1600","Maison","ARNODET André","Parking Ph Langrand",null,13,null,null,"!E1600",".E1426","Maison","1833/1879","ARNAUDET André"]
[null,1,null,"0012","?",null,null,null,null,1851,"Le Puy Dessus","!E1600","Maison","ARNAUDET André",null,null,13,null,null,null,null,null,"1879/1882","ARNAUDET Achille"]
[null,1,12,"0064",null,null,null,null,1879,null,"Puy Dessus","!E1600","Sol","ARNAUDET Achille",null,null,"14, 15",null,null,null,null,"Maison en ruines","/1921","ARNAUDET Achille"]
[null,1,null,"0076",null,null,null,null,1880,1882,"Le Puy Dessus","!E1600","Maison","ARNAUDET Achille",null,null,"14, 15"]
[null,2,null,null,null,"",4,"en ruines",null,1921,"Puy le Haut *","!E1600","Maison, ruines en 1921","ARNAUDET Achille",null,null,"14, 15"]
[]
[null,0,null,null,null,null,null,null,null,null,"Puy le Haut *","!E1601","Maison","VEYRAT Etienne","Jardin Ph Raybaudi",null,19,null,null,"!E1601",".E1425","Maison","1833/1835","VEYRAT Etienne"]
[null,1,null,"0522",543,null,null,null,null,1835,"Le Puy Dessus","!E1601","Maison","VEYRAT Etienne",null,null,19,null,null,null,null,null,"1835/1882","DUSSERT Anne vve VEYRAT Etienne"]
[null,1,182,"0543","543B",null,null,null,1835,"1882","Le Puy Dessus","!E1601","Maison","DUSSERT Anne vve Etienne VEYRAT",null,null,20]
[]
[null,2,null,null,null,"",29,"",null,1913,"Puy de Dessus","!E1602","Chambre","DUSSERT Jean fils de feu Pierre","Raybaudi",null,23,null,null,"!E1602",".E2016","Chambre","/1920","DUSSERT Jean ; puis vve née GIROLLET Rosalie"]
[null,2,null,null,null,"",29,118,1913,1920,"Puy de Dessus","!E1602","Chambre","DUSSERT Jean fils vve née GIROLLET Rosalie",null,null,23,null,null,null,null,null,"1924/1943","DUSSERT Joseph époux REYMOND"]
[null,2,null,null,null,29,118,"Dém",1924,1943,"Puy de Dessus","!E1602","Chambre","DUSSERT Joseph époux REYMOND",null,null,24]
[]
[null,0,null,null,null,null,null,null,null,null,"Puy le Haut *","!E1604","Maison","ODDOUX Louis","Ph Rayb ou Loren",null,27,null,null,"!E1604",".E2016","Maison","1833/1849","ODDOUX Louis"]
[null,1,"?","0320",null,null,null,null,null,1849,"Le Puy Dessus","!E1604","Maison","ODDOUX Louis",null,null,27,null,null,null,null,null,"1849/1860","RANQUE Blaise"]
[null,1,320,"0446",750,null,null,null,1849,1860,"Le Puy Dessus","!E1604","Maison","RANQUE Blaise",null,null,28]
[]
[null,0,null,null,null,null,null,null,null,null,"Puy le Haut *","!E1605","Maison","ARLOT Laurent","Ruines Loren",null,31,null,null,"!E1605",".E1421","Maison","1833/1852","ARLOT Laurent ; puis Benoit"]
[null,1,null,"0008","?",null,null,null,null,1852,"Le Puy Dessus","!E1605","Maison","ARLOT Benoit",null,null,31,null,null,null,null,null,"1852/1882","DUPRE Jean-Charles"]
[null,1,8,"0112","36B",null,null,null,1852,1882,"Le Puy Dessus","!E1605","Maison","DUPRE Jean-Claude",null,null,32,null,null,null,null,"démolie ?","1887/","DUPRE Simon"]
[null,1,98,"0087",null,null,null,null,1887,null,"Le Puy Dessus","!E1605","Sol et cour","DUPRE Simon",null,null,33]
[]
[null,0,null,null,null,null,null,null,null,null,"Puy le Haut *","!E1606","Maison","MICHEL Gabriel","Ruines Loren",null,36,null,null,"!E1606",".E1420","Maison","1833/1851","MICHEL Gabriel"]
[null,1,"?","0306",null,null,null,null,null,1851,"Le Puy Dessus","!E1606","Maison","MICHEL Gabriel (ou Gaston), MERVAL Paul",null,null,36,null,null,null,null,null,"1851/1855","BALME Etienne"]
[null,1,null,"","",null,null,null,"1851","1853","Puy le Haut","!E1606","Maison","MICHEL Gabriel",null,null,36,null,null,null,null,null,"1855/1882","PELLORCE Marie fille de Henry"]
[null,1,306,"0527",685,null,null,null,1851,1855,"Le Puy Dessus","!E1606","Maison","BALME Etienne",null,null,37]
[null,1,527,"0685","119 B",null,null,null,1855,1882,"Le Puy Dessus","!E1606","Maison","PELLORCE Marie fille de Henry",null,null,38]
[]
[null,0,null,null,null,null,null,null,null,null,"Le Puy Dessus","!E1607","Maison","VEYRAT la veuve","Loren",null,42,null,null,"!E1607",".E1419","Maison","1833/1852","VEYRAT la veuve ; puis Pierre"]
[null,1,null,"0530",527,null,null,null,null,1852,"Le Puy Dessus","!E1607","Maison","VEYRAT Pierre",null,null,42,null,null,null,null,null,"1852/1866","BALME Etienne"]
[null,1,530,"0527",394,null,null,null,1852,1866,"Le Puy Dessus","!E1607","Maison","BALME Etienne",null,null,43,null,null,null,null,null,"1866/1869","PELLORCE Jean-Louis"]
[null,1,null,"0416",null,null,null,null,1866,1869,"Le Puy Dessus","!E1607","Maison","PELLORCE Jean-Louis",null,null,44,null,null,null,null,null,"1869/1882","CAROLINE"]
[null,1,394,"0701","27 B",null,null,null,1869,1882,"Le Puy Dessus","!E1607","Maison","CAROLLINE",null,null,45,null,null,null,null,null,"1882/1903","ARNAUDET Achille"]
[null,1,null,"0113",701,null,null,null,null,1903,"Le Puy de Dessus","!E1607","Sol","ARNAUDET Achille",null,null,46]
[]
[null,0,null,null,null,null,null,null,null,null,"Le Puy Dessus","!E1608","Maison","FLEUR Etienne","Loren, Maison à toit de tôles",null,49,null,null,"!E1608",".E1418","Maison","1833/1881","FLEUR Etienne feu Vincent"]
[null,1,null,"0210","7--",null,null,null,null,1881,"Le Puy Dessus *","!E1608","Maison","FLEUR Etienne feu Vincent",null,null,49,null,null,null,null,null,"/1922","GUBIAN Pierre"]
[null,1,210,"0786","79B",null,null,null,1881,1882,"Le Puy Dessus","!E1608","Maison","GUBIAN Pierre",null,null,50,null,null,null,null,null,"1922/1936","MERVAL Emile ; puis les héritiers"]
[null,2,null,null,null,"",52,57,null,1922,"Puy Dessus","!E1608","Maison","GUBIAN Pierre",null,null,50,null,null,null,null,null,"1936/","BERNARDI Jacques"]
[null,2,null,null,null,52,57,159,1922,1936,"Puy Dessus","!E1608","Maison","MERVAL Emile",null,null,51]
[null,2,null,null,null,57,159,"",1936,null,"Puy Dessus","!E1608","Maison","BERNARDI Jacques",null,null,52]
[]
[null,0,null,null,null,null,null,null,null,null,"Le Puy Dessus","!E1609","Maison","PELLORCE Alexandre","Loren",null,56,null,null,"!E1609",".E1416","Maison","1833/1856","PELLORCE Alexandre puis Marie fille de Pierre"]
[null,1,null,"0367",660,null,null,null,null,"1856","Le Puy Dessus *","!E1609","Maison","PELLORCE Marie fille de feu Pierre",null,null,56,null,null,null,null,null,"1882/1882","PELLORCE Adolphe fils d'Alexande ;"]
[null,1,660,"0291","104B",null,null,null,1882,"1882","Le Puy Dessus","!E1609","Maison","PELLORCE Adolphe fils d'Alexande, 1890 vve ODDOUX Florentine,  femme de GAY Michel",null,null,"57, 58",null,null,null,null,null,null,"puis vve ODDOUX Florentine"]
[null,2,null,null,null,"",45,"",null,1933,"Puy Dessus","!E1609","Maison","GAY Michel",null,null,59,null,null,null,null,null,"1890/","GAY Michel et son épouse"]
[null,2,null,null,null,"",45,"",1933,null,"Puy Dessus","!E1609","Maison","GAY Lucien fils de Michel",null,null,60,null,null,null,null,null,"1933/","GAY Lucien fils de Michel"]
[]
[null,0,null,null,null,null,null,null,null,null,"Le Puy Dessus","!E1610","Maison","CAIX Anne",null,null,62,null,null,"!E1610\n!E1610\nbis",".E1415\n.E1414\n","Maison","1833/1852","CAIX Anne ; FLEUR Marie ; MICHEL Denis"]
[null,0,null,null,null,null,null,null,null,null,"Le Puy Dessus","!E1610b","Maison","FLEUR Marie",null,null,62,null,null,null,null,null,"1852/1855","RIBOT Jean à Auris"]
[null,1,null,"0082",200,null,null,null,null,1852,"Le Puy Dessus *","!E1610","Maison","CAIX (Claire), MICHEL Denis",null,null,62,null,null,null,null,null,"/1877","FLEUR Marie et FLEUR Vincent"]
[null,1,22,"0646",199,null,null,null,1852,1855,"Le Puy Dessus","!E1610","Maison","RIBOT Jean à Auris",null,null,63,null,null,null,null,"démolie","/1882","FLEUR Marie-Rose"]
[null,1,null,"0200","?",null,null,null,null,"1877","Le Puy Dessus *","!E1610","Maison","FLEUR Marie fille au Paul, FLEUR Vincent",null,null,64]
[null,1,646,"0199","58B",null,null,null,1855,"1882","Le Puy Dessus *","!E1610","Maison","FLEUR Marie Rose",null,null,65]
[]
[null,0,null,null,null,null,null,null,null,null,"Le Puy Dessus","!E1611","Maison","CAIX Jean","Et Rérat",null,69,null,null,"!E1611",".E1417","Maison","1833/1858","CAIX Jean feu André"]
[null,1,null,"0084","?",null,null,null,null,1858,"Le Puy Dessus *","!E1611","Maison","CAIX Jean feu André",null,null,69,null,null,null,null,null,"1858/1881","CAIX Hippolitte"]
[null,1,84,"0324",null,null,null,null,1858,1882,"Le Puy Dessus *","!E1611 *","Maison","CAIX Louis",null,null,71,null,null,null,null,null,"1858/1920","CAIX Louis"]
[null,1,84,"0719","318 (sol 880)",null,null,null,1858,"1881","Le Puy Dessus","!E1611p","Maison","CAIX Hippolitte",null,null,70,null,null,null,null,"ruine","/1924","RANQUE Joseph"]
[null,1,719,"0328",null,null,null,null,1881,1882,"Le Puy Dessus","!E1611p","Maison","CAIX Louis",null,null,71,null,null,null,null,null,"1920/1924","DUSSERT Séraphin (Mme) née RANQUE"]
[null,2,null,null,null,"",20,123,null,1920,"Puy de Dessus","!E1611p *","Maison","CAIX Louis fils de Jean",null,null,71]
[null,2,null,null,null,"",86,"Ruines",null,1924,"Puy de Dessus","!E1611p *","Maison, ruine en 1924","RANQUE Joseph",null,null,72]
[null,2,null,null,null,20,123,"ruines",1920,1924,"Puy de Dessous","!E1611p","Maison","DUSSERT Séraphin (Mme) née RANQUE",null,null,73]
[]
[null,0,null,null,null,null,null,null,null,null,"Le Puy Dessus","!E1612","Maison","CAIX Jean","Gérard Jaskulski",null,78,null,null,"!E1612",".E1432","Maison","1833/1858","CAIX Jean feu André"]
[null,1,null,"0084","?",null,null,null,null,1858,"Le Puy Dessus *","!E1612","Maison","CAIX Jean feu André",null,null,78,null,null,null,null,null,"1858/1882","CAIX Hippolitte"]
[null,1,84,"0718","24 B (sol 888)",null,null,null,1858,"1982","Le Puy Dessus","!E1612p","Maison","CAIX Jean fils de Jean gendre RIVOIRE",null,null,80,null,null,null,null,null,"1858/1900","CAIX Jean fils de Jean gendre RIVOIRE"]
[null,1,84,"0719","26 B (sol 318)",null,null,null,1858,"1882","Le Puy Dessus","!E1612p","Maison","CAIX Hippolitte",null,null,79,null,null,null,null,"ruine","/1924","RANQUE Joseph"]
[null,2,null,null,null,"",86,"Ruines",null,1924,"Puy de Dessus","!E1612p *","Maison, ruine en 1925","RANQUE Joseph",null,null,81]
[]
[null,0,null,null,null,null,null,null,null,null,"Le Puy Dessus","!E1613","Maison","ARNODET Joseph",null,null,84,null,null,"!E1613",".E1434","Maison",null,"ARNODET Joseph"]
[]
[null,0,null,null,null,null,null,null,null,null,"Le Puy Dessus","!E1614","Maison","ARNODET Joseph","Arrière Raissiguier",null,86,null,null,"!E1614",".E1431","Maison rurale","1833/1857","ARNODET Joseph ; ARNAUDET André"]
[null,1,null,"0015",12,null,null,null,null,1835,"Le puy Dessus","!E1614 *","Mais rurale","ARNAUUDET Jacques","Dr Philippe",null,null,null,null,null,null,null,"1857/1869","CAROLINE"]
[null,1,15,"0013","84.12",null,null,null,1835,1844,"Le Puy Dessus","!E1614","Mais rurale","ARNAUDET André",null,null,86,null,null,null,null,"CN en 1869","1858/","CAIX Louis"]
[null,1,14,"0014","?",null,null,null,1844,1857,"Le Puy Dessus","!E1614","Mais rurale","ARNAUDET André",null,null,86,null,null,null,null,"Bât rural","1883/1889","DUPRE Joseph feu Simon"]
[null,1,12,"0701",112,null,null,null,1857,1869,"Le Puy Dessus","!E1614","Bât rural","CAROLINE",null,null,87,null,null,null,null,null,"1900/1911","RANQUE Joseph feu André"]
[null,1,84,"0324",null,null,null,null,1858,null,"Le Puy Dessus","!E1614","Mais rurale","CAIX Louis",null,null,88,null,null,null,null,null,"1943/","PESSELIER Louis époux ARNAUDET"]
[null,1,"nc","0701",112,null,null,null,1859,1869,"Le Puy Dessus","!E1614","Maison CN","CAROLINE",null,null,87,null,null,null,null,null,"1948/","RAISSIGUIER André époux BACHELIN"]
[null,1,112,"0159",87,null,null,null,1883,"1887","Le Puy Dessus","!E1614","Bât rural","DUPRE Joseph feu Simon",null,null,89]
[null,1,318,921,"3, 880",null,null,null,1900,1911,"Le Puy Dessus","!E1614","Bât rural","RANQUE Joseph feu André",null,null,90]
[null,2,null,null,null,"Omis 1890",167,"",1943,1948,"Puy le Haut","!E1614","Maison","PESSELIER Louis, époux ARNAUDET",null,null,91]
[null,2,null,null,null,null,167,"",1948,null,"Puy le Haut","!E1614","Maison","RAISSIGUIER André, époux BACHELIN, instituteur",null,null,92]
[null,1,null,"0084","?",null,null,null,1844,1858,"Le Puy Dessus","!E1614p","Mais rurale","CAIX Jean feu André",null,null,97,null,null,"!E1614p",".E1431","Bât rural","1844/1858","CAIX Jean feu André"]
[null,1,84,"0719",318,null,null,null,1858,1881,"Le Puy Dessus","!E1614p","Bât rural","CAIX Hippolitte",null,null,98,null,null,null,null,null,"1858/1881","CAIX Hippolite"]
[null,1,84,"0718",783,null,null,null,1858,1881,"Le Puy Dessus","!E1614p","Bât rural","CAIX Jean fils de Jean gendre RIVOIRE",null,null,99,null,null,null,null,null,"1858/1881","CAIX Jean fils de Jean, gendre RIVOIRE"]
[null,1,"(701)","0112","?",null,null,null,1869,1882,"Le Puy Dessus","!E1614p","Maison","DUPRE Jean-Claude",null,null,100,null,null,null,null,null,"1869/1883","DUPRE Jean-Claude"]
[null,1,"(701)","0112","?",null,null,null,1869,1883,"Le Puy Dessus","!E1614p","Bât rural","DUPRE Jean-Claude",null,null,100,null,null,null,null,null,"1881/1887","DUSSERT Jean"]
[null,1,12,"0001",105,null,null,null,1879,1906,"Le Puy Dessus","!E1614p","Bât rural","ARNAUDET Eugène",null,null,103,null,null,null,null,null,"1881/1900","CAIX Louis"]
[null,1,718,"0783",718,null,null,null,1881,1887,"Le Puy Dessus","!E1614p","Bât rural","DUSSERT Jean, aubergiste à Clavans",null,null,101,null,null,null,null,null,"1879/1906","ARNAUDET Eugène"]
[null,1,null,"0328",null,null,null,null,1881,1900,"Le Puy Dessus","!E1614p","Bât rural","CAIX Louis",null,null,102,null,null,null,null,null,"1887/","DUPRE Simon"]
[null,1,783,"0733",880,null,null,null,1887,1900,"Le Puy Dessus","!E1614p","Bât rural","CAIX Jean fils de Jean gendre RIVOIRE",null,null,99,null,null,null,null,null,"1906/","ARNAUDET Rémy Achille"]
[null,1,98,"0087",null,null,null,null,1887,null,"Le Puy Dessus","!E1614p","Bât rural","DUPRE Simon",null,null,104,null,null,null,null,null,"1911/","RANQUE Joseph feu André"]
[null,1,null,"0882",null,null,null,null,1900,1911,"Le Puy Dessus","!E1614p","Bât rural","RANQUE Joseph feu André",null,null,106,null,null,null,null,null,null,"DUSSERT Séraphin, vve née RANQUE"]
[null,1,1,1051,null,null,null,null,1906,null,"Le Puy Dessus","!E1614p","Bât rural","ARNAUDET Rémy Achille",null,null,105]
[null,1,null,882,-80,null,null,null,1911,null,"Le Puy Dessus","!E1614p","Bât rural","RANQUE Joseph feu André",null,null,106]
[null,1,880,"0003",null,null,null,null,1911,null,"Le Puy Dessus","!E1614p","Bât rural","DUSSERT Séraphin vve née RANQUE",null,null,107]
[]
[null,0,null,null,null,null,null,null,null,null,"Le Puy Dessus","!E1615","Maison","SARRET Pierre","Emplacement du lavoir",null,112,null,null,"!E1615",".E1433","Bât rural","1833/1887","SARRET Pierre"]
[null,1,null,"0517",681,null,null,null,null,1887,"Le Puy Dessus","!E1615","Bât rural","SARRET Pierre",null,null,112,null,null,null,null,null,"1887/","CHALVIN (François) feu (André)"]
[null,1,517,"0681",null,null,null,null,1887,null,"Le Puy Dessus *","!E1615","Bât rural","CHALVIN (François) feu (André)",null,null,113]
[]
[null,0,null,null,null,null,null,null,null,null,"Le Puy Dessus","!E1616","Maison","ARNODET André","Dr Philippe devant",null,116,null,null,"!E1616",".E1431","Maison","1833/1879","ARNODET André"]
[null,1,null,"0012",1,null,null,null,null,1879,"Le Puy Dessus","!E1616","Maison","ARNAUDET André",null,null,116,null,null,null,null,null,"1879/1882","ARNAUDET Eugène"]
[null,1,"C(1)2-","0014","?",null,null,null,1842,1879,"Le Puy Dessus *","!E1616","Maison","ARNAUDET André",null,null,116]
[null,1,12,"0001","3B",null,null,null,1879,"1882","Le Puy Dessus","!E1616","Maison","ARNAUDET Eugène",null,null,117]
[]
[null,0,null,null,null,null,null,null,null,null,"Le Puy Dessus","!E1617","Maison","DUPRE Jean-Charles","Fège détruite",null,121,null,null,"!E1617",".E2031","Maison","1833/1870","DUPRE Jean-Charles puis Antoine"]
[null,1,null,"0110",608,null,null,null,null,1849,"Le Puy Dessus *","!E1617","Maison","DUPRE Jean-Claude",null,null,121,null,null,null,null,null,"1870/1875","DUSSERT Pierre ; DUSSERT Elie"]
[null,1,110,"0608",17,null,null,null,1849,1870,"Le Puy Dessus","!E1617","Maison","DUPRE Antoine fils de Jean Charles",null,null,null,null,null,null,null,null,"1875/1920","DUSSERT Jean de feu Pierre"]
[null,1,608,"0017",825,null,null,null,1870,1875,"Le Puy Dessus","!E1617","Maison","DUSSERT Pierre, DUSSERT Elie",null,null,122,null,null,null,null,null,"1913/1920","DUSSERT Jean vve née GIROLLET Rosalie"]
[null,1,17,"0825","51 B (sol 1010)",null,null,null,1875,"1882","Le Puy Dessus","!E1617","Maison","DUSSERT Jean de feu Pierre",null,null,123,null,null,null,null,"démolie","1924/1953","DUSSERT Joseph époux REYMOND"]
[null,2,null,null,null,"",29,"",null,1913,"Puy de Dessus","!E1617","Maison","DUSSERT Jean fils de feu Pierre",null,null,123]
[null,2,null,null,null,"",29,118,1913,1920,"Puy de Dessus","!E1617","Maison","DUSSERT Jean vve née GIROLLET Rosalie",null,null,124]
[null,2,null,null,null,"",118,"Dém",1924,1953,"Puy de Dessus","!E1617","Maison","DUSSERT Joseph époux REYMOND",null,null,125]
[]
[null,0,null,null,null,null,null,null,null,null,"Le Puy Dessus","!E1618","Maison","DUPRE Jean-Charles","Paul Fourrier",null,130,null,null,"!E1618",".E1427","Maison","1833/1855","DUPRE Jean-Charles puis Antoine"]
[null,1,null,"0110",608,null,null,null,null,1849,"Le Puy Dessus *","!E1618","Maison","DUPRE Jean-Claude",null,null,130,null,null,null,null,null,"1849/1855","ARNAUDET André"]
[null,1,110,"0608",12,null,null,null,1849,1855,"Le Puy Dessus","!E1618","Maison","DUPRE Antoine fils de Jean Charles",null,null,null,null,null,null,null,null,"1855/1879","ARNAUDET André"]
[null,1,608,"0014","?",null,null,null,1855,1879,"Le Puy Dessus","!E1618","Maison","ARNAUDET André",null,null,"131, 132",null,null,null,null,null,"/1918","ARNAUD Joseph fils d'André, instituteur"]
[null,1,null,"0598",null,null,null,null,1879,1882,"Le Puy Dessus","!E1618","Maison","ARNAUD Joseph fils d'André, instituteur",null,null,133,null,null,null,null,"Maison rurale","1926/"]
[null,2,null,null,null,"",5,"m rural",null,1918,"Le Puy dessus","!E1618","Maison (rurale en 1926)","ARNAUDET Joseph fils André, ancien instituteur au Freney"]
[]
[null,0,null,null,null,null,null,null,null,null,"Le Puy Dessus","!E1621","Maison","FLEUR Vincent","Cave",null,137,null,null,"!E1621",".E2031","Maison démolie","1833/1865","FLEUR Vincent"]
[null,1,null,"0208","démolie",null,null,null,null,"1865","Le Puy Dessus *","!E1621","Maison démolie","FLEUR Vincent",null,null,137]
[]
[null,0,null,null,null,null,null,null,null,null,"Le Puy Dessus","!E1623","Maison","SARRET Etienne",null,null,140,null,null,"!E1623",".E2031","Maison","1833/1854","SARRET Etienne"]
[null,1,null,"0516",null,null,null,null,null,1854,"Le Puy Dessus *","!E1623","Maison","SARRET Etienne",null,null,140,null,null,null,null,"Maison démolie","1854/1865","PELLORCE Laurent dit Partant"]
[null,1,516,"0675","démolie (sol 17)",null,null,null,1854,"1865","Le Puy Dessus","!E1623","Maison démolie","PELLORCE Laurent dit Partant",null,null,141]
[]
[null,0,null,null,null,null,null,null,null,null,"Le Puy Dessus","!E1625","Maison","MICHEL Pierre","Emplacement René Boiteau",null,144,null,null,"!E1625",".E2019","Maison","1833/1862","MICHEL Pierre"]
[null,1,null,"0301",675,null,null,null,null,1862,"Le Puy Dessus","!E1625","Maison","MICHEL (Pierre)",null,null,144,null,null,null,null,null,"1862/1882","PELLORCE Laurent dit Partant"]
[null,1,301,"0675","118 B",null,null,null,1862,1882,"Le Puy Dessus","!E1625","Maison","PELLORCE Laurent dit Partant",null,null,145,null,null,null,null,"Maison démolie","/1943"]
[null,2,null,null,null,"",76,"Dém",null,1943,"Puy Dessus","!E1625","Maison","PELLORCE Laurent dit Partan",null,null,145]
[]
[null,0,null,null,null,null,null,null,null,null,"Le Puy Dessus","!E1627","Maison","PELLORCE Etienne","Emplacement René Boiteau",null,149,null,null,"!E1627",".E2019","Maison","1833/1861","PELLORCE Etienne"]
[null,1,null,"0356",null,null,null,null,null,1861,"Le Puy Dessus *","!E1627","Maison","PELLORCE Etienne",null,null,149,null,null,null,null,null,"1861/1867","PELLORCE Jeanne Marie fille d'Etienne"]
[null,1,356,"0759",675,null,null,null,1861,1867,"Le Puy Dessus","!E1627p","Maison","PELLORCE Jeanne Marie fille d'Etienne",null,null,150,null,null,null,null,null,"1861/1880","PELLORCE Laurent dit Partant"]
[null,1,356,"0675",98,null,null,null,1861,1880,"Le Puy Dessus","!E1627p","Maison","PELLORCE Laurent dit Partant",null,null,151,null,null,null,null,null,"1880/1882","DUPRE Joseph feu Simon"]
[null,1,759,"0675",98,null,null,null,1867,1880,"Le Puy Dessus","!E1627p","Maison","PELLORCE Laurent dit Partant",null,null,151]
[null,1,675,"0098","35B",null,null,null,1880,1882,"Le Puy Dessus","!E1627p","Maison","DUPRE Joseph feu Simon",null,null,152]
[]
[null,0,null,null,null,null,null,null,null,null,"Le Puy Dessus","!E1630","Maison","ARNODET Joseph oncle","Ruines Hamidi",null,156,null,null,"!E1630",".E1446","Maison","1833/1839","ARNODET Joseph oncle"]
[null,1,null,"0018",null,null,null,null,null,1839,"Le Puy Dessus","!E1630","Maison","ARNAUDET Joseph",null,null,156,null,null,null,null,null,"1839/1949","PELLORCE Antoine feu Paul"]
[null,1,null,"0376",null,null,null,null,1839,1949,"Le Puy Dessus","!E1630","Maison","PELLORCE Antoine feu Paul",null,null,157,null,null,null,null,null,"1849/1870","ARLOT Benoit puis Antoine et Louis"]
[null,1,376,"0009","761, 763",null,null,null,1849,1862,"Le Puy Dessus","!E1630","Maison","ARLOT Benoit",null,null,158,null,null,null,null,null,"1862/1882","ARLOT Madeleine, DUSSERT Joseph vve"]
[null,1,761,"0761","(1)7",null,null,null,1862,1870,"Le Puy Dessus","!E1630p","Maison","ARLOT Antoine feu Benoit, ARLOT Alexis",null,null,158]
[null,1,8,"0763",174,null,null,null,1862,1870,"Le Puy Dessus","!E1630p","Maison","Arlot Louis feu Benoit",null,null,158]
[null,1,8,"0765","1 B",null,null,null,1862,1882,"Le Puy Dessus","!E1630p","Maison","ARLOT Madeleine fille de feu Benoit, DUSSERT Joseph, la vve Zoé née ARLOT",null,null,159]
[null,1,761,"0174","?",null,null,null,1870,"1882","Le Puy Dessus","!E1630p","Maison","DUSSERT Joseph feu Louis"]
[null,1,763,"0174","?",null,null,null,1870,"1882","Le Puy Dessus","!E1630p","Maison","DUSSERT Joseph feu Louis"]
[]
[null,0,null,null,null,null,null,null,null,null,"Le Puy Dessus","!E1632","Grenier","ODDOUX Louis",null,null,166,null,null,"!E1632",".E1444","Grenier, Bât rural",null,"ODDOUX Louis"]
[null,1,null,"0321",null,null,null,null,null,null,"Le Puy Dessus","!E1632","Bât rural","ODDOUX Louis",null,null,166]
[]
[null,0,null,null,null,null,null,null,null,null,"Le Puy Dessus","!E1635","Maison","DUSSERT André","Marie Madeleine Lanne",null,169,null,null,"!E1635",".E1444","Maison rurale","1833/1882","Dussert André"]
[null,1,null,"0136",825,null,null,null,null,1893,"Le Puy Dessus *","!E1635","Mais rurale","DUSSERT (André)",null,null,169,null,null,null,null,"démolie, CN en 1844","1893/1913","DUSSERT Jean feu Pierre"]
[null,1,"cn","0137","démolie",null,null,null,1842,1844,"Le Puy Dessus","!E1635","Maison démolie","DUSSERT (André)",null,null,169,null,null,null,null,"Maison rurale","1913/","DUSSERT Joseph époux REYMOND"]
[null,1,"cn","0137","115B",null,null,null,1844,1882,"Le Puy Dessus","!E1635","Maison","DUSSERT (André)",null,null,169]
[null,1,136,"0673",990,null,null,null,1893,1913,"Le Puy Dessus","!E1635","Mais rurale","DUSSERT Jean feu Pierre",null,null,170]
[null,1,825,"0962",null,null,null,null,1913,null,"Le Puy Dessus","!E1635","Mais rurale","DUSSERT Joseph époux REYMOND",null,null,171]
[]
[null,0,null,null,null,null,null,null,null,null,"Le Puy Dessus","!E1637","Maison","PELLORCE Henri","Jean-Pierre Cochard",null,176,null,null,"!E1637",".E1445","Maison rurale","1833/1852","PELLORCE Henry"]
[null,1,null,"0380",null,null,null,null,null,1852,"Le Puy Dessus","!E1637","Mais rurale","PELLORCE Henry",null,null,176,null,null,null,null,null,"1852/1882","MICHEL Gabriel ; MERVAL Paul ; MERVAL Emile"]
[null,1,null,"0643",380,null,null,null,1852,null,"Le Puy Dessus","!E1637","Mais rurale","MERVAL Paul",null,null,177,null,null,null,null,"Maison","/1948","MERVAL Emile ; puis les héritiers"]
[null,1,"?","0306",null,null,null,null,1853,1882,"Le Puy Dessus","!E1637","Mais rurale","MICHEL Gabriel",null,null,177,null,null,null,null,null,"1948/","MERVAL Marie Louise"]
[null,1,"cn","0307",863,null,null,null,1866,1882,"Le Puy Dessus *","!E1637","Maison","MERVAL Paul",null,null,177]
[null,1,306,"0863","85 B",null,null,null,1882,1882,"Le Puy Dessus","!E1637","Maison","MERVAL Emile",null,null,177]
[null,1,306,"0863",null,null,null,null,1882,null,"Le Puy Dessus","!E1637","Mais rurale","MERVAL Emile",null,null,177]
[null,2,null,null,null,"",57,"",null,1943,"Puy Dessus","!E1637","Maison","MERVAL Emile",null,null,177]
[null,2,null,null,null,"",57,174,1943,1948,"Puy Dessus","!E1637","Maison","MERVAL Emile, héritiers",null,null,178]
[null,2,null,null,null,57,174,"",1948,null,"Puy le Haut *","!E1637","Maison","MERVAL Marie Louise",null,null,179]
[]
[null,0,null,null,null,null,null,null,null,null,"Le Puy Dessus","!E1638","Maison","DUSSERT André","M-Madeleine Lanne",null,187,null,null,"!E1638",".E1436","Maison (CN en 1844)","1833/1892","DUSSERT André"]
[null,1,null,"0136",136,null,null,null,null,1892,"Le Puy Dessus *","!E1638","Maison","DUSSERT (André)",null,null,187]
[null,1,"cn","0137","45 B",null,null,null,1844,1882,"Le Puy Dessus","!E1638","Maison","DUSSERT (André)",null,null,187]
[]
[null,0,null,null,null,null,null,null,null,null,"Le Puy Dessus","!E1639","Maison","SARRET Etienne","M-Madeleine Lanne",null,191,null,null,"!E1639",".E1437","Maison","1833/1854","SARRET Etienne"]
[null,1,null,"0516",null,null,null,null,null,1854,"Le Puy Dessus *","!E1639 *","(Mon rurale)","SARRET Etienne",null,null,191,null,null,null,null,"Bât rural","1854/1880","PELLORCE Laurent dit Partant"]
[null,1,516,"0675",98,null,null,null,1854,1880,"Le Puy Dessus","!E1639","Bât rural","PELLORCE Laurent dit Partant",null,null,192,null,null,null,null,null,"1880/","DUPRE Joseph feu Simon"]
[null,1,675,"0098",null,null,null,null,1880,null,"Le Puy Dessus","!E1639","Bât rural","DUPRE Joseph feu Simon",null,null,193]
[]
[null,0,null,null,null,null,null,null,null,null,"Le Puy Dessus","!E1640","Maison","PELLORCE Henri","Ryo",null,196,null,null,"!E1640",".E1435","Maison","1833/1852","PELLORCE Henry"]
[null,1,"nc","0381",643,null,null,null,1845,1852,"Le Puy Dessus","!E1640","Maison CN","PELLORCE Henry",null,null,196,null,null,null,null,"Maison","1853/1882","MICHEL Gabriel ; MERVAL Emile"]
[null,1,null,"0380",null,null,null,null,1845,"1855","Le Puy Dessus","!E1640","Maison","PELLORCE Henry",null,null,196,null,null,null,null,"Maison","1943/1948","MERVAL Emile ; puis les héritiers (en 1943)"]
[null,1,null,"0643",380,null,null,null,1852,null,"Le Puy Dessus","!E1640","Maison","MERVAL Paul",null,null,197,null,null,null,null,"Maison","1948/","GIROUD Rémy ; MERVAL Emile époux GIROUD"]
[null,1,"?","0306",null,null,null,null,1853,1882,"Le Puy Dessus","!E1640","Maison","MICHEL Gabriel",null,null,197]
[null,1,306,"0863","85 B",null,null,null,1882,1882,"Le Puy Dessus","!E1640","Maison","MERVAL Emile",null,null,197]
[null,2,null,null,null,"",57,"",null,1943,"Puy Dessus","!E1640","Maison","MERVAL Emile",null,null,197]
[null,2,null,null,null,"",57,"RB",1943,1948,"Puy Dessus","!E1640","Maison","MERVAL Emile, héritiers",null,null,198]
[null,2,null,null,null,57,49,"",1948,null,"Puy le Haut","!E1640","Maison","MERVAL Emile époux GIROUD",null,null,199]
[]
[null,0,null,null,null,null,null,null,null,null,"Le Puy Dessus","!E1641","Chapelle","Le Puy Dessus Hameau",null,null,206,null,null,"!E1641",".E1413","Chapelle","1834/","Le Puy Dessus Hameau ; puis Freney"]
[null,1,null,"0419",217,null,null,null,null,1834,"Le Puy Dessus","!E1641","Chapelle","Puy d'en Haut, hameau, … DUSSERT … , CAIX Jean",null,null,206]
[null,1,null,"0227",419,null,null,null,1834,null,"Le Puy Dessus","!E1641","Chapelle","Freney la commune",null,null,206]
[]
[null,0,null,null,null,null,null,null,null,null,"Le Puy Dessus","!E1642","Maison","DUSSERT Pierre","Daniel Brenu",null,210,null,null,"!E1642",".E1412","Maison","1833/1844","DUSSERT Pierre"]
[null,1,null,"0120",null,null,null,null,null,1844,"Le Puy Dessus *","!E1642","Maison","DUSSERT Pierre",null,null,210,null,null,null,null,null,"1844/1868","DUSSERT Louis fils à Pierre"]
[null,1,null,"0125","1",null,null,null,1844,1868,"Le Puy Dessus *","!E1642","Maison","DUSSERT Louis fils à Pierre",null,null,211,null,null,null,null,null,"1868/1882","ARNAUDET Eugène"]
[null,1,124,"0001","3B (1062 pour le sol)",null,null,null,1868,"1882","Le Puy Dessus *","!E1642","Maison","ARNAUDET Eugène fils à André",null,null,212,null,null,null,null,null,"/1919","NOIREY Noémie de Constantin"]
[null,2,null,null,null,"",62,57,null,1919,"Puy le Haut *","!E1642","Maison","MATHONNET Noémie épouse NOIREY",null,null,213,null,null,null,null,null,"1919/1948","MERVAL Emile ; puis les héritiers (1943)"]
[null,2,null,null,null,62,57,"RB",1919,1943,"Puy Dessus","!E1642","Maison","MERVAL Emile",null,null,214,null,null,null,null,null,"1948/","BERARD Alfred époux MERVAL"]
[null,2,null,null,null,"RB",57,"49, 173",1943,1948,"Puy Dessus","!E1642","Maison","MERVAL Emile, héritiers",null,null,214]
[null,2,null,null,null,57,173,"",1948,null,"Puy le Haut","!E1642","Maison","BÉRARD Alfred ep Merval",null,null,215]
[]
[null,1,null,"0368",null,null,null,null,null,1834,"Le Puy Dessus *","!E1644","Mais rurale","PELLORCE M fille de Pierre","Ph Langrand",null,219,null,null,"!E1644",".E1411","Maison rurale","1833/1834","PELLORCE M fille de Pierre"]
[null,1,367,"0465",455,null,null,null,1834,1852,"Le Puy Dessus","!E1644","Bât rural","REYMOND André Fils à Blaise",null,null,220,null,null,null,null,"Bât rural","1834/1886","REYMOND André puis Joseph fils à Blaise"]
[null,1,465,"0455",672,null,null,null,1852,1886,"Le Puy Dessus","!E1644","Bât rural","REYMOND Joseph fils à Blaise",null,null,220,null,null,null,null,null,"1886/1898","DUSSERT Séraphin et André"]
[null,1,"(8)7(3)","0652",null,null,null,null,1905,null,"Le Puy Dessus","!E1644","Bât rural","DUSSERT Séraphin Barthélémy feu André",null,null,null,null,null,null,null,null,"1886/1905","FLEUR Louis fils de Joseph"]
[null,1,null,920,null,null,null,null,1886,1898,"Puy Dessus","!E1644p","Bât rural","DUSSERT Séraphin, André frères indivis",null,null,221,null,null,null,null,null,"1905/","DUSSERT Séraphin gendre RANQUE"]
[null,1,455,"0672",652,null,null,null,1886,1905,"Le Puy Dessus","!E1644p","Bât rural","FLEUR Louis fils de Joseph à Lachenal",null,null,222,null,null,null,null,"Maison","1905/1955","DUSSERT Joseph Séraphin gendre RANQUE"]
[null,1,920,"0995",null,null,null,null,1898,null,"Le Puy Dessus","!E1644p","Bât rural","DUSSERT Séraphin gendre RANQUE",null,null,223,null,null,null,null,null,"1943/1955","vve et héritiers"]
[null,2,null,null,null,"",36,"RB",null,1943,"Puy Dessus","!E1644p","Maison","DUSSERT Joseph Séraphin gendre RANQUE",null,null,224,null,null,null,null,null,"1955/","DUSSERT Rémy époux GARNIER, LANGRAND André"]
[null,2,null,null,null,"",36,181,1943,1955,"Puy Dessus","!E1644p","Maison","DUSSERT Joseph Séraphin gendre RANQUE, la veuve et les héritiers",null,null,225]
[null,2,null,null,null,36,181,"",1955,1960,"Puy Dessus","!E1644p","Maison","DUSSERT Rémy époux GARNIER, charpentier",null,null,226]
[null,2,null,null,null,null,181,"",1960,null,"Puy Dessus","!E1644p","Maison","LANGRAND André époux LASCOUX",null,null,226]
[]
[null,0,null,null,null,null,null,null,null,null,"Le Puy Dessus","!E1645","Maison","PELLORCE Alexandre","Mousty",null,231,null,null,"!E1645",".E1406","Maison","1833/","PELLORCE Alexandre"]
[null,null,null,null,null,null,null,null,null,null,null,null,null,null,null,null,""]
[null,0,null,null,null,null,null,null,null,null,"Le Puy Dessus","!E1646","Maison","PELLORCE Alexandre",null,null,233,null,null,"!E1646",".E1407","Maison","1833/1882","PELLORCE Alexandre ; M et Adolphe"]
[null,1,null,"0368",null,null,null,null,null,1856,"Le Puy Dessus *","!E1646","Maison","PELLORCE M fille de Pierre",null,null,233,null,null,null,null,null,1890,"vve ODDOUX Florentine"]
[null,1,660,"0291","104B",null,null,null,1882,"1882","Le Puy Dessus","!E1646","Maison","PELLORCE Adolphe fils d'Alexande, 1890 vve ODDOUX Florentine",null,null,233,null,null,null,null,null,"1933/1961","GAY Michel ; Lucien ; Marie Célestine"]
[null,2,null,null,null,"",45,"156, 157",null,1933,"Puy Dessus","!E1646","Maison","GAY Lucien fils de Michel",null,null,235,null,null,null,null,null,"1933/","VEYRAT Louis époux GAY, facteur"]
[null,2,null,null,null,45,156,157,1933,1961,"Puy le Haut","!E1646","Maison","GAY Marie Célestine",null,null,236]
[null,2,null,null,null,"115, 156 en 61",157,"",1933,null,"Puy Dessus","!E1646","Maison","VEYRAT Louis époux GAY, facteur ",null,null,236]
[null,null,null,null,null,null,null,null,null,null,null,null,null,null,null,null,""]
[null,0,null,null,null,null,null,null,null,null,"Le Puy Dessus","!E1647","Maison","CAIX Théotiste","démolie",null,240,null,null,"!E1647",".E1408","Maison","1833/1838","CAIX Théostiste et Charles fils"]
[null,1,null,"0070",12,null,null,null,null,"(183","Le Puy Dessus","!E1647","Maison","CAIX Charles fils",null,null,240,null,null,null,null,null,"1838/1841","ARNAUDET André"]
[null,1,70,"0013",320,null,null,null,1838,1841,"Le Puy Dessus","!E1647","Maison","ARNAUDET André",null,null,241,null,null,null,null,null,"1841/1882","ODDOUX Louis"]
[null,1,12,"0321","BB",null,null,null,1841,"1845","Le Puy Dessus","!E1647","Maison","ODDOUX Louis",null,null,242]
[null,null,null,null,null,null,null,null,null,null,null,null,null,null,null,null,""]
[null,2,null,null,null,"49 AC1960",19,"",1961,null,"Puy le Haut","!E1648 *","Maison","VANPEENE René (1957)",null,null,""]
[null,null,null,null,null,null,null,null,null,null,null,null,null,null,null,null,""]
[null,0,null,null,null,null,null,null,null,null,"Le Puy Dessus","!E1650","Maison","GIROLET Pierre","démolie",null,247,null,null,"!E1650",".E1409","Maison","1833/1860","GIROLLET Pierre"]
[null,1,null,"0257",444,null,null,null,null,1860,"Le Puy Dessus","!E1650","Maison","GIROLLET Pierre",null,null,247,null,null,null,null,null,"1860/1865","RIVOIRE André fils Laurent"]
[null,1,null,"0452",null,null,null,null,1860,1865,"Le Puy Dessus","!E1650","Maison","RIVOIRE André fils Laurent",null,null,248,null,null,null,null,null,"1865/1882","FLEUR Louis fils de Joseph"]
[null,1,444,"0672","60 B",null,null,null,1865,1882,"Le Puy Dessus","!E1650","Maison","FLEUR Louis fils de Joseph à Lachenal",null,null,249,null,null,null,null,null,"/1943","vve RANQUE et f de DUSSERT Joseph Séraphin"]
[null,2,null,null,null,"",36,"RB",null,1943,"Puy Dessus","!E1650","Maison","DUSSERT Joseph Séraphin gendre RANQUE la veuve et les héritiers",null,null,250]
[null,null,null,null,null,null,null,null,null,null,null,null,null,null,null,null,""]
[null,0,null,null,null,null,null,null,null,null,"Le Puy Dessus","!E1651","Maison","REYMOND Joseph","Wiart",null,253,null,null,"!E1651",".E1409","Maison","1833/1882","REYMOND Joseph fils à Blaise"]
[null,1,null,"0455",null,null,null,null,null,"1882","Le Puy Dessus","!E1651","Maison","REYMOND Joseph fils à Blaise",null,null,253,null,null,null,null,null,"/1943","vve RANQUE et f de DUSSERT Joseph Séraphin"]
[null,2,null,null,null,"",36,"RB",null,1943,"Puy Dessus","!E1651","Maison","DUSSERT Joseph Séraphin gendre RANQUE la veuve et les héritiers",null,null,254]
[null,null,null,null,null,null,null,null,null,null,null,null,null,null,null,null,""]
[null,0,null,null,null,null,null,null,null,null,"Le Puy Dessus","!E1654","Maison","CAIX Jacques","Dournon",null,257,null,null,"!E1654",".E1830","Maison","1833/1872","CAIX Jacques"]
[null,1,null,"0071",127,null,null,null,null,1872,"Le Puy Dessus","!E1654","Maison","CAIX Jacques",null,null,257,null,null,null,null,null,"1872/1878","DUPRE Louis fils à Louis"]
[null,1,71,"0127",127,null,null,null,1872,"1874","Le Puy Dessus","!E1654","Maison","DUPRE Louis fils à Louis CAIX Joseph, Antoine, Eugène et Rosalie",null,null,258,null,null,null,null,"Chambre","1878/1882","CAIX Arthur fils de Jacques"]
[null,1,127,"0127",770,null,null,null,1874,1878,"Le Puy Dessus","!E1654","Maison","DUPRE Louis fils à Louis",null,null,258,null,null,null,null,"Chambre et chambre","/1913","DUSSERT Jean ; puis vve née GIROLLET Rosalie"]
[null,1,127,"0127",770,null,null,null,1874,1878,"Le Puy Dessus","!E1654","Chambre","DUPRE Louis fils à Louis",null,null,258,null,null,null,null,"Maison","1913/1958","DUSSERT Joseph époux REYMOND"]
[null,1,127,"0770","2-",null,null,null,1878,1882,"Le Puy Dessus","!E1654","Maison","CAIX Arthur fils de Jacques",null,null,259,null,null,null,null,null,"1958/","La Prévoyance de Marseille (SA)"]
[null,1,127,"0770","2-",null,null,null,1878,1882,"Le Puy Dessus","!E1654","Chambre","CAIX Arthur fils de Jacques",null,null,259]
[null,2,null,null,null,"",29,118,null,1913,"Puy de Dessus","!E1654","Chambre","DUSSERT Jean fils de feu Pierre",null,null,260]
[null,2,null,null,null,"",29,118,null,1913,"Puy de Dessus","!E1654","Maison","DUSSERT Jean fils de feu Pierre",null,null,260]
[null,2,null,null,null,"29",118,200,1913,1958,"Puy Dessus","!E1654","Maison","DUSSERT Joseph époux REYMOND",null,null,261]
[null,2,null,null,null,118,200,200,1958,1959,"Puy de Dessus","!E1654","Maison","La Prévoyance de Marseille (SA) ",null,null,262]
[null,2,null,null,null,"200ac",200,"",1959,null,"Puy de Dessus","!E1654","Maison","La Prévoyance de Marseille (SA) ",null,null,262]
[null,null,null,null,null,null,null,null,null,null,null,null,null,null,null,null,""]
[null,0,null,null,null,null,null,null,null,null,"Le Puy Dessus","!E1656","Maison","DUSSERT Louis","Hamidi",null,270,null,null,"!E1656",".E1448","Maison","1833/1882","DUSSERT Louis fils à Pierre"]
[null,1,null,"0125","43B",null,null,null,null,"1882","Le Puy Dessus *","!E1656","Maison","DUSSERT Louis fils à Pierre",null,null,270,null,null,null,null,null,"/1953","CAIX Jules, Joséphine et Noémie indivis"]
[null,2,null,null,null,"",19,"",null,1953,"Puy Dessus","!E1656","Maison","CAIX Jules, Joséphine et Noémie indivis",null,null,271,null,null,null,null,null,"1953/1958","RIVOIRE Jules et consorts"]
[null,2,null,null,null,"",19,"",1953,1957,"Puy Dessus","!E1656","Maison","RIVOIRE Jules et consorts",null,null,272,null,null,null,null,null,"1957/1958","VANPEENE René"]
[null,2,null,null,null,"",19,"",1957,null,"Puy Dessus","!E1656","Maison","VANPEENE René",null,null,273]
[null,null,null,null,null,null,null,null,null,null,null,null,null,null,null,null,""]
[null,0,null,null,null,null,null,null,null,null,"Le Puy Dessus","!E1659","Maison","PELLORCE Henri","Sous Dournon",null,276,null,null,"!E1659",".E1448","Maison","1833/1855","PELLORCE Henry"]
[null,1,null,"0380",null,null,null,null,1845,1855,"Le Puy Dessus","!E1659","Maison","PELLORCE Henry",null,null,276,null,null,null,null,null,"1855/1863","PELLORCE Alexandre Auguste feu Henry"]
[null,1,"nc","0381","28, 681, 686",null,null,null,1845,1855,"Le Puy Dessus","!E1659","Maison CN","PELLORCE Henry",null,null,276,null,null,null,null,null,"1855/1879","REYMOND Denis fils"]
[null,1,380,"0686",681,null,null,null,1855,1863,"Le Puy Dessus","!E1659p","Maison","PELLORCE Alexandre Auguste feu Henry",null,null,277,null,null,null,null,null,"1855/1882","CHALVIN (François) feu (André)"]
[null,1,380,"0028","?",null,null,null,1855,1879,"Le Puy Dessus *","!E1659p","Maison","RAYMOND Denis fils",null,null,278,null,null,null,null,null,"1859/1882","ODDOUX Jean Baptiste fils de Jean"]
[null,1,380,"0681","29 B",null,null,null,1855,1882,"Le Puy Dessus","!E1659p","Maison","CHALVIN (François) feu (André)",null,null,279]
[null,1,null,"0634",null,null,null,null,1859,1882,"Le Puy Dessus","!E1659p","Maison","ODDOUX Jean Baptiste fils de Jean",null,null,280]
[null,1,686,"0681","29 B",null,null,null,1863,1882,"Le Puy Dessus","!E1659p","Maison","CHALVIN (François) feu (André)",null,null,279]
[null,null,null,null,null,null,null,null,null,null,null,null,null,null,null,null,""]
[null,0,null,null,null,null,null,null,null,null,"Le Puy Dessus","!E1660","Maison","PELLORCE Henri",null,null,285,null,null,"!E1660",".E1451","Maison rurale","1833/1855","PELLORCE Henry"]
[null,1,null,"0380",null,null,null,null,null,1855,"Le Puy Dessus","!E1660","Mais rurale","PELLORCE Henry",null,null,285,null,null,null,null,"Bât rural","1855/1863","PELLORCE Alexandre Auguste feu Henry"]
[null,1,380,"0686",611,null,null,null,1855,1863,"Le Puy Dessus","!E1660","Bât rural","PELLORCE Alexandre Auguste feu Henry",null,null,286,null,null,null,null,"Bât rural","1863/","CHALVIN (François) feu (André)"]
[null,1,686,"0681",null,null,null,null,1863,null,"Le Puy Dessus","!E1660","Bât rural","CHALVIN (François) feu (André)",null,null,287]
[null,null,null,null,null,null,null,null,null,null,null,null,null,null,null,null,""]
[null,1,12,"0014","4?",null,null,null,1857,1879,"Le Puy Dessus","!E1674p (ou 1614) ","Bât rural","ARNAUDET André"]

{"sheet":"LePasset","index":2,"n_rows":34,"n_cols":24,"rows_kept":34,"cut":false,"hidden":false,"merged":[[28,19,30,19],[28,20,30,20],[29,21,30,21],[3,23,4,23],[8,19,18,19],[8,20,18,20],[8,21,18,21],[9,22,18,22],[20,20,25,20],[20,21,25,21],[21,19,25,19],[3,22,4,22],[3,12,4,12],[3,13,4,13],[3,14,4,14],[3,19,3,20],[3,21,4,21],[3,16,4,16],[3,11,4,11],[3,1,4,1],[3,2,3,4],[3,5,3,7],[3,8,3,9],[3,10,4,10]]}
[]
[null,null,null,"24K, Le Passet",null,null,null,null,null,null,null,null,null,null,null,null,null,null,null,null,"Le Passet 24B (colonnes temporaires pour contrôle)"]
[]
[null,"Cad","Folio du Cadastre 1",null,null,"Case du Cadastre 2",null,null,"Plage dates",null,"Lieudit","Parcelle","Nature","Propriétaire","Com JP",null,"Voir col X\nLigne :",null,null,"Parcelle n°",null,"Nature","Période\napproximative","Propriétaires au cadastre"]
[null,null,"Tiré de","Act","Passé à","Tiré de","Act","Passé à","Entrée","Sortie",null,null,null,null,null,null,null,null,null,1830,2022]
[]
[null,1,null,"0470",null,null,null,null,null,1841,"Le Passet *","!D0165","Bâtiment","REYMOND Denis",null,null,null,null,null,"!D0165",null,"Bâtiment","1833/1841","REYMOND Denis"]
[]
[null,0,null,null,null,null,null,null,null,null,"Le Passet","!D0172","Maison","DUSSERT Jean-Louis",null,null,null,null,null,"!D0172",null,"Maison,\ndémolie et\nCN en 1958","1833/1846","DUSSERT Jean-Louis"]
[null,1,null,"0128",469,null,null,null,null,1846,"Le Passet","!D0172","Maison","DUSSERT Jean Louis Emile",null,null,null,null,null,null,null,null,"1846/1882","DUSSERT Pierre"]
[null,1,128,"0545",17,null,null,null,1846,"1877","Le Passet","!D0172p","Maison","DUSSERT Pierre fils à Jean-Louis",null,null,null,null,null,null,null,null,null,"DUSSERT Elie"]
[null,1,128,"0593","142 B",null,null,null,1846,1882,"Le Passet *","!D0172p","Maison","REYMOND Jean-Denis fils à Jean",null,null,null,null,null,null,null,null,null,"REYMOND Jean-Denis fils à Jean"]
[null,1,128,"0287","démolie",null,null,null,1846,1864,"Le Passet *","!D0172p","Maison démolie","JOSSERAND Joseph gendre à DUSSERT"]
[null,1,128,"0287","démolie",null,null,null,1964,1881,"Le Passet *","!D0172p","Maison démolie","DUSSERT Rose vve JOSSERAND"]
[null,1,128,"0287","démolie",null,null,null,1881,"1883","Le Passet *","!D0172p","Maison démolie","JOSSERAND Adélaïde femme RIVOIRE",null,null,null,null,null,null,null,null,null,"JOSSERAND Joseph gendre à DUSSERT"]
[null,1,null,"0288","cn",null,null,null,1858,1864,"Le Passet","!D0172","Maison CN","JOSSERAND Joseph gendre à DUSSERT",null,null,null,null,null,null,null,null,null,"DUSSERT Rose vve JOSSERAND "]
[null,1,null,"0288","cn",null,null,null,1864,1881,"Le Passet","!D0172","Maison CN","DUSSERT Rose vve JOSSERAND"]
[null,1,null,"0288","cn",null,null,null,1881,"1883","Le Passet","!D0172","Maison CN","JOSSERAND Adélaïde femme RIVOIRE"]
[null,1,545,"0197","46B",null,null,null,1877,1882,"Le Passet","!D0172","Maison","DUSSERT Pierre, DUSSERT Elie",null,null,null,null,null,null,null,null,null,"JOSSERAND Adélaïde femme RIVOIRE"]
[]
[null,0,null,null,null,null,null,null,null,null,"Le Passet","!D0173","Maison","PELLORCE Vincent",null,null,null,null,null,"!D0173",null,"Maison","1833/1869","PELLORCE Vincent"]
[null,1,null,"0370",null,null,null,null,null,1869,"Le Passet","!D0173","Maison","PELLORCE Vincent fils de Vincent",null,null,null,null,null,"!D0173p",null,null,"1869/1876","PELLORCE Louis"]
[null,1,null,"0356",370,null,null,null,1869,1876,"Le Passet","!D0173p","Maison","PELLORCE Louis",null,null,null,null,null,null,null,null,"1869/1917","PELLORCE Pierre"]
[null,1,370,"0605","116 b (sol 933)",null,null,null,1869,"1882","Le Passet","!D0173p","Maison","PELLORCE Pierre fils à Vincent",null,null,null,null,null,null,null,null,"/1926","RANQUE Joseph Louis gendre PELLORCE"]
[null,1,341,"0744","129 B",null,null,null,1876,1882,"Le Passet","!D0173p","Maison","PELLORCE Pierre Louis fils de Louis",null,null,null,null,null,null,null,null,"1938/","HAMELIN Jean Emile époux RANQUE"]
[null,2,null,null,null,"",79,"B rural",null,1917,"Le Passet","!D0173p","Maison","PELLORCE Pierre Louis fils à Louis",null,null,null,null,null,null,null,null,"1947/","HAMELIN Jean Emile époux RANQUE, héritiers"]
[null,2,null,null,null,"",87,"D",null,1926,"Le Passet","!D0173p","Maison","RANQUE Joseph Louis gendre PELLORCE"]
[]
[null,1,"cn","0375",341,null,null,null,1858,1869,"Le Passet","!D0174","Maison","PELLORCE Vincent fils",null,null,null,null,null,"!D0174",null,"Maison CN","1958/1869","PELLORCE Vincent fils"]
[null,1,null,"0356",370,null,null,null,1869,1876,"Le Passet","!D0174","Maison","PELLORCE Louis",null,null,null,null,null,null,null,"Maison","1869/1876","PELLORCE Louis"]
[null,1,341,"0744","129 B",null,null,null,1876,1882,"Le Passet","!D0174","Maison","PELLORCE Pierre Louis fils de Louis",null,null,null,null,null,null,null,null,"1876/1917","PELLORCE Pierre Louis fils de Louis"]
[null,2,null,null,null,"",79,"B rural",null,1917,"Le Passet","!D0174","Maison","PELLORCE Pierre Louis fils à Louis"]
[]
[null,1,null,"0378",null,null,null,null,1841,1849,"Le Passet *","!D0183","Maison","PELLORCE Etienne",null,null,null,null,null,"!D0183",null,"Maison","1841/1849","PELLORCE Etienne"]

{"sheet":"LePerier","index":3,"n_rows":189,"n_cols":26,"rows_kept":189,"cut":false,"hidden":false,"merged":[[172,19,178,19],[172,20,178,20],[172,21,178,21],[88,19,95,19],[88,20,95,20],[88,21,95,21],[155,19,159,19],[155,20,159,20],[155,21,159,21],[163,19,167,19],[163,20,167,20],[163,21,167,21],[138,19,140,19],[138,20,140,20],[138,21,140,21],[148,19,152,19],[148,20,152,20],[149,21,152,21],[118,19,121,19],[118,20,121,20],[118,21,121,21],[127,19,130,19],[127,20,130,20],[127,21,128,21],[129,21,130,21],[108,19,112,19],[108,20,112,20],[108,21,112,21],[71,19,78,19],[71,20,78,20],[71,21,78,21],[84,19,85,19],[84,20,85,20],[84,21,85,21],[54,19,59,19],[54,20,59,20],[55,21,56,21],[57,21,59,21],[64,19,68,19],[64,20,68,20],[64,21,68,21],[35,19,37,19],[35,20,37,20],[35,21,37,21],[44,19,49,19],[44,20,49,20],[44,21,49,21],[3,23,4,23],[8,19,10,19],[8,20,10,20],[8,21,10,21],[12,19,21,19],[12,20,21,20],[13,21,14,21],[3,22,4,22],[3,12,4,12],[3,13,4,13],[3,14,4,14],[3,19,3,20],[3,21,4,21],[3,16,4,16],[3,11,4,11],[3,1,4,1],[3,2,3,4],[3,5,3,7],[3,8,3,9],[3,10,4,10]]}
[]
[null,null,null,"24K, Le Périer",null,null,null,null,null,null,null,null,null,null,null,null,null,null,null,null,"Le Périer 24B (colonnes temporaires pour contrôle)"]
[]
[null,"Cad","Folio du Cadastre 1",null,null,"Case du Cadastre 2",null,null,"Plage dates",null,"Lieudit","Parcelle","Nature","Propriétaire","Com JP",null,"Voir col X\nLigne :",null,null,"Parcelle n°",null,"Nature","Période\napproximative","Propriétaires au cadastre"]
[null,null,"Tiré de","Act","Passé à","Tiré de","Act","Passé à","Entrée","Sortie",null,null,null,null,null,null,null,null,null,1830,2022]
[]
[null,1,"303, 691","0091",650,null,null,null,null,1864,"Le Périer","!D0252","Maison","(CHALVIN)",null,null,7,null,null,"!D0252",".D0854","Maison","/1864","(CHALVIN)",null,{"$f":"IF(X7=\"\",\"\",ROW())","v":7}]
[null,null,null,null,null,null,null,null,null,null,null,null,null,null,null,null,null,null,null,null,null,null,null,null,null,{"$f":"IF(X8=\"\",\"\",ROW())","v":""}]
[null,1,"cn","0561",628,null,null,null,1842,1857,"Le Périer","!D0253","Maison","PELLORCE Vierge feu Laurent",null,null,9,null,null,"!D0253",".D0855","Maison","1842/1857","PELLORCE Vierge feu Laurent",null,9]
[null,1,561,"0628",559,null,null,null,1857,1874,"Le Périer","!D0253","Maison","CAIX Victoire femme de DUSSERT Antoine",null,null,10,null,null,null,null,null,"1857/1874","CAIX Victoire femme de DUSSERT Antoine",null,10]
[null,1,628,"0569","108, 109 B",null,null,null,1874,1882,"Le Périer","!D0253","Maison","PELLORCE Félix",null,null,11,null,null,null,null,null,"1874/1882","PELLORCE Félix",null,11]
[null,null,null,null,null,null,null,null,null,null,null,null,null,null,null,null,null,null,null,null,null,null,null,null,null,""]
[null,0,null,null,null,null,null,null,null,null,"Le Périer","!D0259","Bâtiment","PELLORCE Laurent, les héritiers, sa femme",null,null,13,null,null,"!D0259",".D1716\net\n.D1714","Bâtiment","1833/1836","PELLORCE Laurent puis héritiers",null,13]
[null,1,null,"0393","357, 393",null,null,null,null,1833,"Le Périer","!D0259","Bâtiment","PELLORCE Laurent",null,null,13,null,null,null,null,"Bâtiment et Galetas","1836/1850","PELLORCE Vierge feu Laurent",null,14]
[null,1,393,"0393","558, 559, 560",null,null,null,1833,"1836","Le Périer","!D0259","Bâtiment","PELLORCE Laurent",null,null,13,null,null,null,null,null,"1836/1882","PELLORCE Félix (feu) Laurent",null,15]
[null,1,"(3)9(3)","0561",559,null,null,null,1836,1840,"Le Périer","!D0259","Bâtiment","PELLORCE Vierge feu Laurent",null,null,14,null,null,null,null,"Bâtiment et Maison","1836/1882","PELLORCE Etienne feu Louis, PELLORCE Laurent feu Etienne",null,16]
[null,1,393,"0559",558,null,null,null,1836,1868,"Le Périer","!D0259","Maison","PELLORCE Félix (feu) Laurent",null,null,15,null,null,null,null,"Maison","1869/1882","PELLORCE Félix et Pierre",null,17]
[null,1,null,"0558",null,null,null,null,1836,"1882","Le Périer","!D0259 *","Maison","PELLORCE Etienne feu Louis, PELLORCE Laurent feu Etienne",null,null,16,null,null,null,null,"Bâtiment","/1943","GIROLET Pierre fils de Pierre",null,18]
[null,1,561,"0561","558, 559",null,null,null,1840,1850,"Le Périer","!D0259","Bâtiment","PELLORCE Vierge feu Laurent",null,null,14,null,null,null,null,"Bâtiment","1916/1943","GIROLET Pierre fils de Pierre, HUSTACHE Alphonse",null,19]
[null,1,357,"0561",559,null,null,null,1840,1850,"Le Périer","!D0259","Galetas","PELLORCE Vierge feu Laurent",null,null,14,null,null,null,null,"Maison","1943/","HOSTACHE vve née BRUN",null,20]
[null,1,357,"0559","108, 109B",null,null,null,1840,1882,"Le Périer","!D0259","Galetas","PELLORCE Félix (feu) Laurent",null,null,15,null,null,null,null,"Maison","/1948","PELLORCE Félix et Pierre, indivis, PELLORCE Jean Louis époux BLANC, vve et héritiers (1943)",null,21]
[null,1,561,"0559","108, 109B",null,null,null,1840,1882,"Le Périer","!D0259","Bâtiment","PELLORCE Félix (feu) Laurent",null,null,15,null,null,null,null,"Maison","1948/","HOSTACHE Aimé époux RIBOT",null,22]
[null,1,"nc","0559","grosse tache",null,null,null,1845,1869,"Le Périer","!D0259","Maison CN","PELLORCE Félix (feu) Laurent",null,null,15,null,null,null,null,null,null,null,null,""]
[null,1,561,"0559","108, 109B",null,null,null,1850,1882,"Le Périer","!D0259","Bâtiment","PELLORCE Félix (feu) Laurent",null,null,15,null,null,null,null,null,null,null,null,""]
[null,1,null,"0558",null,null,null,null,1850,1882,"Le Périer","!D0259p","Bâtiment","PELLORCE Etienne feu Louis, PELLORCE Laurent feu Etienne",null,null,16,null,null,null,null,null,null,null,null,""]
[null,1,561,"0559","108, 109B",null,null,null,1850,1882,"Le Périer","!D0259","Galetas","PELLORCE Félix (feu) Laurent",null,null,15,null,null,null,null,null,null,null,null,""]
[null,1,null,"0558",559,null,null,null,1868,1869,"Le Périer","!D0259","Maison","PELLORCE Etienne feu Louis, PELLORCE Laurent feu Etienne",null,null,16,null,null,null,null,null,null,null,null,""]
[null,1,558,"0167","123B",null,null,null,1869,1882,"Le Périer","!D0259","Maison","PELLORCE Félix et Pierre",null,null,17,null,null,null,null,null,null,null,null,""]
[null,2,null,null,null,"",47,"",null,1916,"Perrier","!D0259","Bâtiment","GIROLET Pierre fils de Pierre",null,null,18,null,null,null,null,null,null,null,null,""]
[null,2,null,null,null,"",47,134,1916,1943,"Perrier","!D0259","Bâtiment","HUSTACHE Alphonse",null,null,19,null,null,null,null,null,null,null,null,""]
[null,2,null,null,null,47,134,"RB",1943,null,"Périer","!D0259","Maison","HOSTACHE vve née BRUN à PELLORCE Noël son mari",null,null,20,null,null,null,null,null,null,null,null,""]
[null,2,null,null,null,"",75,"",null,1943,"Perrier","!D0259","Maison","PELLORCE Félix et Pierre, indivis",null,null,21,null,null,null,null,null,null,null,null,""]
[null,2,null,null,null,"",75,169,1943,1948,"Perrier","!D0259","Maison","PELLORCE Jean Louis époux BLANC, vve et héritiers (1943)",null,null,21,null,null,null,null,null,null,null,null,""]
[null,2,null,null,null,75,169,"",1948,null,"Le Périer","!D0259","Maison","HOSTACHE Aimé époux RIBOT",null,null,22,null,null,null,null,null,null,null,null,""]
[null,null,null,null,null,null,null,null,null,null,null,null,null,null,null,null,null,null,null,null,null,null,null,null,null,""]
[null,1,"cn","0357","357, 694, 767",null,null,null,1840,1862,"Le Périer","!D0260","Maison","PELLORCE Pierre",null,null,36,null,null,"!D0260p",".D1542","Maison","1840/1882","PELLORCE Pierre",null,36]
[null,1,357,"0357","113B",null,null,null,1862,1882,"Le Périer","!D0260p","Maison","PELLORCE Pierre",null,null,36,null,null,null,null,null,"1862/1882","BASSET Jean, instituteur, PELLORCE Pierre fils de Pierre",null,37]
[null,1,357,"0767","9 B",null,null,null,1862,1882,"Le Périer","!D0260p","Maison","BASSET Jean, instituteur",null,null,37,null,null,null,null,null,"1923/","HOSTACHE vve née BRUN",null,38]
[null,1,357,"0694","127B",null,null,null,1862,1882,"Le Périer","!D0260p (ou 200)","Maison","PELLORCE Pierre fils de Pierre",null,null,37,null,null,null,null,null,null,null,null,""]
[null,2,null,null,null,"",60,134,null,1923,"Périer","!D0260p","Maison","MOREL Auguste époux PELLORCE",null,null,null,null,null,null,null,null,null,null,null,""]
[null,2,null,null,null,60,134,"RB en 1943",1923,null,"Périer","!D0260p","Maison","HOSTACHE vve née BRUN à PELLORCE Noël son mari",null,null,38,null,null,null,null,null,null,null,null,""]
[null,null,null,null,null,null,null,null,null,null,null,null,null,null,null,null,null,null,null,null,null,null,null,null,null,""]
[null,2,null,null,null,60,134,"RB",1923,1943,"Périer","!D0261p","Maison","HOSTACHE vve née BRUN à PELLORCE Noël son mari",null,null,43,null,null,"!D0261p",".D1719","Maison","1923/1943","HOSTACHE vve née BRUN",null,43]
[null,null,null,null,null,null,null,null,null,null,null,null,null,null,null,null,null,null,null,null,null,null,null,null,null,""]
[null,0,null,null,null,null,null,null,null,null,"Le Périer","!D0263","Maison","PELLORCE Vincent",null,null,45,null,null,"!D0263",".D1313","Maison","1833/1850","PELLORCE Vincent",null,45]
[null,1,null,"0349",370,null,null,null,null,1850,"Le Périer","!D0263","Maison","PELLORCE Vincent",null,null,45,null,null,null,null,null,"1850/1858","PELLORCE Vincent fils de Vincent",null,46]
[null,1,null,"0372",null,null,null,null,1850,1858,"Le Périer","!D0263","Maison","PELLORCE Vincent fils de Vincent",null,null,46,null,null,null,null,null,"1858/1866","DUPRE Laurent",null,47]
[null,1,370,"0129","558, 559",null,null,null,1858,1866,"Le Périer","!D0263","Maison","DUPRE Laurent",null,null,47,null,null,null,null,null,"1866/1868","PELLORCE Etienne feu Louis, PELLORCE Laurent feu Etienne",null,48]
[null,1,null,"0558",null,null,null,null,1866,1868,"Le Périer","!D0263p","Maison","PELLORCE Etienne feu Louis, PELLORCE Laurent feu Etienne",null,null,48,null,null,null,null,null,"1869/1882","PELLORCE Félix",null,49]
[null,1,114,"0569","108, 109 B",null,null,null,1866,"1882","Le Périer","!D0263p","Maison","PELLORCE Félix",null,null,49,null,null,null,null,null,"/1926","PELLORCE Pierre Louis fils à Louis",null,50]
[null,1,null,"0354",558,null,null,null,1868,1869,"Le Périer","!D0263p","Maison","PELLORCE Félix",null,null,49,null,null,null,null,null,null,null,null,""]
[null,1,354,"0569","108, 109 B",null,null,null,1869,"1882","Le Périer","!D0263p","Maison","PELLORCE Félix",null,null,49,null,null,null,null,null,null,null,null,""]
[null,2,null,null,null,"",79,"D",null,1926,"Perrier","!D0263p","Maison","PELLORCE Pierre Louis fils à Louis",null,null,50,null,null,null,null,null,null,null,null,""]
[null,null,null,null,null,null,null,null,null,null,null,null,null,null,null,null,null,null,null,null,null,null,null,null,null,""]
[null,0,null,null,null,null,null,null,null,null,"Le Périer","!D0264","Maison","DUPRE Laurent",null,null,55,null,null,"!D0264",".D1730","Maison démolie en 1840","1833/1840","DUPRE Laurent",null,55]
[null,1,"démolie","0105",null,null,null,null,null,1840,"Le Périer","!D0264","Maison démolie","DUPRE Laurent",null,null,55,null,null,null,null,"Maison constr nouvel","1841/1845","BELLET Auguste feu Etienne",null,56]
[null,1,"nc","0565",566,null,null,null,1841,1845,"Le Périer","!D0264","Maison CN","BELLET Auguste feu Etienne",null,null,56,null,null,null,null,null,"1842/1847","DODE louis et Pierre et PELLORCE Vincent",null,57]
[null,1,"cn","0106",null,null,null,null,1842,1847,"Le Périer","!D0264","Maison","DODE louis et Pierre et PELLORCE Vincent",null,null,57,null,null,null,null,"Maison","1847/1877","RIVOIRE Amable feu Paul",null,58]
[null,1,105,"0212","4--",null,null,null,1847,1877,"Le Périer","!D0264","Maison","RIVOIRE Amable feu Paul",null,null,58,null,null,null,null,null,"1877/1882","RIVOIRE Pierre fils d'Aimable",null,59]
[null,1,98,"0436",null,null,null,null,1877,"1882","Le Périer","!D0264","Maison","RIVOIRE Pierre fils d'Aimable",null,null,59,null,null,null,null,null,"/1943","RIVOIRE Pierre fils d'Aimable, PELLORCE Jean Louis époux BLANC (1913), VINCON Paul époux PELLORCE, PELLORCE Jules, Thomas et Louise (1935)",null,60]
[null,2,null,null,null,"",109,"",null,1913,"Le Périer","!D0264","Maison","RIVOIRE Pierre fils d'Aimable",null,null,59,null,null,null,null,null,null,null,null,""]
[null,2,null,null,null,"",109,"",1913,1925,"Le Périer","!D0264","Maison","PELLORCE Jean Louis époux BLANC",null,null,60,null,null,null,null,null,null,null,null,""]
[null,2,null,null,null,"",109,"Dém",1925,1943,"Le Périer","!D0264","Maison","VINCON Paul époux PELLORCE, PELLORCE Jules, Thomas et Louise",null,null,60,null,null,null,null,null,null,null,null,""]
[null,null,null,null,null,null,null,null,null,null,null,null,null,null,null,null,null,null,null,null,null,null,null,null,null,""]
[null,0,null,null,null,null,null,null,null,null,"Le Périer","!D0265","Maison","DUPRE Laurent",null,null,65,null,null,"!D0265",".D1817","Maison","1833/1834","DUPRE Laurent et consorts",null,65]
[null,1,null,"0157",341,null,null,null,null,1834,"Le Périer","!D0265","Maison","DUPRE Laurent et consorts",null,null,65,null,null,null,null,null,"1834/1858","PELLORCE Louis",null,66]
[null,1,157,"0341",390,null,null,null,1834,1858,"Le Périer","!D0265","Maison","PELLORCE Louis",null,null,66,null,null,null,null,null,"1858/1882","PELLORCE Pierre Louis fils de Louis",null,67]
[null,1,341,"0730","129 B",null,null,null,1858,1882,"Le Périer","!D0265","Maison","PELLORCE Pierre Louis fils de Louis",null,null,67,null,null,null,null,null,"/1943","PELLORCE Pierre Louis fils à Louis, PELLORCE Jean-Louis époux BLANC, vve et héritiers (1943)",null,68]
[null,2,null,null,null,"",79,75,null,"1943","Perrier","!D0265","Maison","PELLORCE Pierre Louis fils à Louis",null,null,67,null,null,null,null,null,"1943/","PELLORCE Félix et Pierre, indivis, PELLORCE Jean Louis époux BLANC, vve et héritiers (1943)",null,69]
[null,2,null,null,null,79,75,"",1943,null,"Perrier","!D0265","Maison","PELLORCE Jean Louis époux BLANC, vve et héritiers (1943)",null,null,69,null,null,null,null,null,null,null,null,""]
[null,null,null,null,null,null,null,null,null,null,null,null,null,null,null,null,null,null,null,null,null,null,null,null,null,""]
[null,0,null,null,null,null,null,null,null,null,"Le Périer","!D0266","Maison","CHALVIN Laurent",null,null,72,null,null,"!D0266",".D0889","Maison","1833/1848","CHALVIN Laurent, CHALVIN Antoine",null,{"$f":"IF(X72=\"\",\"\",ROW())","v":72}]
[null,0,null,null,null,null,null,null,null,null,"Le Périer","!D0266b","Maison","CHALVIN Laurent",null,null,72,null,null,null,null,null,"1848/1855","PELLORCE Laurent fils d'Alexandre",null,73]
[null,1,null,"0089",24,null,null,null,null,1848,"Le Périer","!D0266","Maison","CHALVIN Antoine",null,null,72,null,null,null,null,null,"1855/1873","CHALVIN Pierre feu Antoine",null,74]
[null,1,89,"0024","?",null,null,null,1848,1855,"Le Périer","!D0266","Maison","PELLORCE Laurent fils d'Alexandre",null,null,73,null,null,null,null,null,"1866/1882","DORVILLE André, ARNOL",null,75]
[null,1,24,"0680","scotch",null,null,null,1855,1873,"Le Périer","!D0266bis","Maison","CHALVIN Pierre feu Antoine",null,null,74,null,null,null,null,null,"1873/1882","PELLORCE Pierre Louis fils de Louis",null,76]
[null,1,91,"0691","34 B",null,null,null,1866,1882,"Le Périer","!D0266","Maison","DORVILLE André, ARNOL",null,null,75,null,null,null,null,null,null,"PELLORCE Vincent époux DUSSERT, RIVOIRE Léon époux CAIX ( en 1915), héritiers (en 1943)",null,77]
[null,1,680,"0730","129 B",null,null,null,1873,1882,"Le Périer","!D0266bis","Maison","PELLORCE Pierre Louis fils de Louis",null,null,78,null,null,null,null,null,"/1943","PELLORCE Pierre Louis fils à Louis, PELLORCE Jean-Louis époux BLANC, vve et héritiers (en 1943)",null,78]
[null,2,null,null,null,"",79,75,null,"1943","Perrier","!D0266bis","Maison","PELLORCE Pierre Louis fils à Louis",null,null,78,null,null,null,null,null,"/1943","PELLORCE Félix et Pierre, indivis, PELLORCE Jean Louis époux BLANC, vve et héritiers (1943)",null,79]
[null,2,null,null,null,79,75,"",1943,null,"Perrier","!D0266","Maison","PELLORCE Jean Louis époux BLANC, vve et héritiers",null,null,79,null,null,null,null,null,null,null,null,""]
[null,2,null,null,null,"",83,"",null,1915,"Perrier","!D0266","Maison","PELLORCE Vincent époux DUSSERT",null,null,77,null,null,null,null,null,null,null,null,""]
[null,2,null,null,null,"",83,"RB",1915,1943,"Perrier","!D0266","Maison","RIVOIRE Léon époux CAIX",null,null,77,null,null,null,null,null,null,null,null,""]
[null,2,null,null,null,"RB",83,"",1943,null,"Perrier","!D0266","Maison","RIVOIRE Léon époux CAIX, héritiers",null,null,77,null,null,null,null,null,null,null,null,""]
[null,null,null,null,null,null,null,null,null,null,null,null,null,null,null,null,null,null,null,null,null,null,null,null,null,""]
[null,0,null,null,null,null,null,null,null,null,"Le Périer","!D0268","Four rural","PELLORCE Vincent",null,null,85,null,null,"!D0268",null,"Four rural","1833/1858","PELLORCE Vincent, PELLORCE Louis",null,{"$f":"IF(W85=\"\",\"\",ROW())","v":85}]
[null,1,349,"0353",730,null,null,null,1850,1858,"Le Périer","!D0268","Four rural","PELLORCE Louis",null,null,85,null,null,null,null,null,"1858/","PELLORCE Pierre Louis fils de Louis",null,{"$f":"IF(W86=\"\",\"\",ROW())","v":86}]
[null,1,341,"0730",null,null,null,null,1858,null,"Le Périer","!D0268","Four rural","PELLORCE Pierre Louis fils de Louis",null,null,86,null,null,null,null,null,null,null,null,""]
[null,null,null,null,null,null,null,null,null,null,null,null,null,null,null,null,null,null,null,null,null,null,null,null,null,""]
[null,0,null,null,null,null,null,null,null,null,"Le Périer","!D0269","Maison","BELLET Etienne les héritiers",null,null,89,null,null,"!D0269",".D1315","Maison","1833/1837","BELLET Etienne, BELLET François",null,89]
[null,1,null,"0040","?",null,null,null,null,1837,"Le Périer","!D0269","Maison","BELLET (François)",null,null,90,null,null,null,null,null,"1837/1882","BELLET Auguste, Pierre, Marie, Arey, François",null,90]
[null,1,40,"0565","C (sol 566)",null,null,null,1837,"1841","Le Périer","!D0269","Maison","BELLET Auguste feu Etienne",null,null,90,null,null,null,null,null,"1856/1882","BLANC Joseph",null,91]
[null,1,null,"0566",null,null,null,null,1837,1841,"Le Périer","!D0269","Maison","BELLET Pierre feu Etienne",null,null,90,null,null,null,null,null,"1869/1891","CAIX Eugène, PELLORCE Félix, REYMOND Louise vve de BLANC Joseph",null,92]
[null,1,40,"0567","démolie (sol 388)",null,null,null,1837,"1842","Le Périer","!D0269","Maison démolie","BELLET Marie feu Etienne",null,null,90,null,null,null,null,null,"/1923","PAYAN Félix fils",null,93]
[null,1,null,"0568",null,null,null,null,1837,1845,"Le Périer","!D0269","Maison","BELLET Arey feu Etienne",null,null,90,null,null,null,null,null,"1928/1935","PAYAN Honoré, rentier, vve et héritiers (1943), héritiers (1951)",null,94]
[null,1,null,"0570",null,null,null,null,1837,"1882","Le Périer","!D0269","Maison","BELLET François fils Cr?",null,null,90,null,null,null,null,null,"1935/1955","RECROSIO Pierre Martin époux BADIN",null,95]
[null,1,null,"0570",null,null,null,null,1841,"1882","Le Périer","!D0269","Maison","BELLET François fils Cr?",null,null,90,null,null,null,null,null,"1955/","PELLORCE Vincent Théophile époux OUGIER, rentier",null,96]
[null,1,null,"0566",null,null,null,null,1845,1882,"Le Périer","!D269","Maison","BELLET Pierre feu Etienne",null,null,90,null,null,null,null,null,null,null,null,""]
[null,1,null,"0388",null,null,null,null,1856,1882,"Le Périer","!D0269",null,"BLANC Joseph",null,null,91,null,null,null,null,null,null,null,null,""]
[null,1,559,"0076",null,null,null,null,1869,1877,"Le Périer","!D0269p","Maison","CAIX Eugène",null,null,92,null,null,null,null,null,null,null,null,""]
[null,1,76,"0613","sol 828",null,null,null,1877,null,"Le Périer","!D0269","Maison","PELLORCE Félix (feu) Laurent",null,null,92,null,null,null,null,null,null,null,null,""]
[null,1,388,"0029","898, 899",null,null,null,1885,1891,"Le Périer","!D0269","Sol et cour","BLANC Joseph vve REYMOND Louise",null,null,91,null,null,null,null,null,null,null,null,""]
[null,2,null,null,null,"",68,126,null,1923,"Perrier","!D0269","Maison","PAYAN Félix fils",null,null,93,null,null,null,null,null,null,null,null,""]
[null,2,null,null,null,68,126,158,1923,1935,"Périer","!D0269","Maison","PAYAN Honoré, rentier",null,null,94,null,null,null,null,null,null,null,null,""]
[null,2,null,null,null,"126, dém en 43",158,"dém en 1943, 183",1935,1955,"Périer","!D0269","Maison","RECROSIO Pierre Martin époux BADIN",null,null,95,null,null,null,null,null,null,null,null,""]
[null,2,null,null,null,158,183,"",1955,null,"Périer","!D0269","Maison","PELLORCE Vincent Théophile époux OUGIER, rentier",null,null,96,null,null,null,null,null,null,null,null,""]
[null,null,null,null,null,null,null,null,null,null,null,null,null,null,null,null,null,null,null,null,null,null,null,null,null,""]
[null,1,null,"0390",null,null,null,null,1866,1882,"Le Périer","!D0270","Maison","BLANC Joseph",null,null,107,null,null,"!D0270",".D0883","Maison","1866/1882","BLANC Joseph",null,107]
[null,null,null,null,null,null,null,null,null,null,null,null,null,null,null,null,null,null,null,null,null,null,null,null,null,""]
[null,0,null,null,null,null,null,null,null,null,"Le Périer","!D0271","Maison","PELLORCE Denis",null,null,109,null,null,"!D0271",".D0881","Maison","1833/1837","PELLORCE Denis",null,109]
[null,1,null,"0391",577,null,null,null,null,1837,"Le Périer","!D0271","Maison","PELLORCE (Denis) père",null,null,109,null,null,null,null,null,"1837/1846","PELLORCE Pierre feu Denis",null,110]
[null,1,391,"0577",580,null,null,null,1837,1846,"Le Périer","!D0271","Maison","PELLORCE Pierre feu Denis",null,null,110,null,null,null,null,null,"1846/1882","PELLORCE Pierre fils à Vincnet",null,111]
[null,1,577,580,null,null,null,null,1846,1882,"Le Périer","!D0271","Mais rurale","PELLORCE Pierre fils à Vincnet",null,null,111,null,null,null,null,null,"/1915","PELLORCE Vincent époux DUSSERT, RIVOIRE Léon époux CAIX (1915), héritiers (1943)",null,112]
[null,2,null,null,null,"",83,87,null,1915,"Perrier","!D0271","Maison","PELLORCE Vincent époux DUSSERT",null,null,112,null,null,null,null,null,"1915/","RANQUE Joseph Louis gendre PELLORCE, HAMELIN Jean Emile époux RANQUE (1938), héritiers (1947)",null,113]
[null,2,null,null,null,83,87,"RB",1915,1938,"Le Périer","!D0271","Maison","RANQUE Joseph Louis gendre PELLORCE",null,null,113,null,null,null,null,null,null,null,null,""]
[null,2,null,null,null,"",87,"",1938,1943,"Le Périer","!D0271","Maison","HAMELIN Jean Emile époux RANQUE",null,null,113,null,null,null,null,null,null,null,null,""]
[null,2,null,null,null,"RB",87,"",1943,1947,"Le Périer","!D0271","Maison","HAMELIN Jean Emile époux RANQUE",null,null,113,null,null,null,null,null,null,null,null,""]
[null,2,null,null,null,"",87,"",1947,null,"Le Périer","!D0271","Maison","HAMELIN Jean Emile époux RANQUE, héritiers",null,null,113,null,null,null,null,null,null,null,null,""]
[null,null,null,null,null,null,null,null,null,null,null,null,null,null,null,null,null,null,null,null,null,null,null,null,null,""]
[null,0,null,null,null,null,null,null,null,null,"Le Périer","!D0273","Maison","PELLORCE Vincent",null,null,119,null,null,"!D0273",".D0878","Maison","1833/1838","PELLORCE Vincent",null,119]
[null,1,null,349,580,null,null,null,null,1838,"Le Périer","!D0273","Maison","PELLORCE Vincent",null,null,119,null,null,null,null,null,"1838/1882","PELLORCE Pierre fils à Vincent",null,120]
[null,1,349,580,"116B (sol 967)",null,null,null,1838,1882,"Le Périer","!D0273","Maison","PELLORCE Pierre fils à Vincent",null,null,120,null,null,null,null,null,"/1915","PELLORCE Vincent époux DUSSERT, RIVOIRE Léon époux CAIX (1915), héritiers (1943)",null,121]
[null,2,null,null,null,"",83,87,null,1915,"Perrier","!D0273","Maison","PELLORCE Vincent époux DUSSERT",null,null,121,null,null,null,null,null,"1915/","RANQUE Joseph Louis gendre PELLORCE, HAMELIN Jean Emile époux RANQUE (1938), héritiers (1947)",null,122]
[null,2,null,null,null,83,87,"RB",1915,1938,"Le Périer","!D0273","Maison","RANQUE Joseph Louis gendre PELLORCE",null,null,122,null,null,null,null,null,null,null,null,""]
[null,2,null,null,null,"",87,"",1938,1943,"Le Périer","!D0273","Maison","HAMELIN Jean Emile époux RANQUE",null,null,122,null,null,null,null,null,null,null,null,""]
[null,2,null,null,null,"RB",87,"",1943,1947,"Le Périer","!D0273","Maison","HAMELIN Jean Emile époux RANQUE",null,null,122,null,null,null,null,null,null,null,null,""]
[null,2,null,null,null,"",87,"",1947,null,"Le Périer","!D0273","Maison","HAMELIN Jean Emile époux RANQUE, vve et héritiers",null,null,122,null,null,null,null,null,null,null,null,""]
[null,null,null,null,null,null,null,null,null,null,null,null,null,null,null,null,null,null,null,null,null,null,null,null,null,""]
[null,0,null,null,null,null,null,null,null,null,"Le Périer","!D0274","Maison rurale","PELLORCE Vincent",null,null,128,null,null,"!D0274",".D0881","Maison rurale","1833/1838","PELLORCE Vincent",null,128]
[null,1,null,"0349",580,null,null,null,null,1838,"Le Périer","!D0274","Mais rurale","PELLORCE Vincent",null,null,128,null,null,null,null,null,"1838/1882","PELLORCE Pierre fils à Vincent",null,129]
[null,1,349,"0580","9--",null,null,null,1838,1895,"Le Périer","!D0274","Mais rurale","PELLORCE Pierre fils à Vincent",null,null,129,null,null,null,null,"Maison","1895/1915","PELLORCE Vincent époux DUSSERT, RIVOIRE Léon époux CAIX (1915), héritiers (1943)",null,130]
[null,1,"cn","0603","116 B",null,null,null,1855,1882,"Le Périer","!D0274","Maison","PELLORCE Pierre fils à Vincent",null,null,129,null,null,null,null,null,"1915/","RANQUE Joseph Louis gendre PELLORCE, HAMELIN Jean Emile époux RANQUE (1938), héritiers (1947)",null,131]
[null,1,580,"0933",null,null,null,null,1895,null,"Le Périer","!D0274","Mais rurale","PELLORCE Vincent époux DUSSERT",null,null,130,null,null,null,null,null,null,null,null,""]
[null,2,null,null,null,"",83,87,null,1915,"Perrier","!D0274","Maison","PELLORCE Vincent époux DUSSERT",null,null,130,null,null,null,null,null,null,null,null,""]
[null,2,null,null,null,83,87,"RB",1915,1938,"Le Périer","!D0271","Maison","RANQUE Joseph Louis gendre PELLORCE",null,null,131,null,null,null,null,null,null,null,null,""]
[null,2,null,null,null,"",87,"",1938,1943,"Le Périer","!D0271","Maison","HAMELIN Jean Emile époux RANQUE",null,null,131,null,null,null,null,null,null,null,null,""]
[null,2,null,null,null,"RB",87,"",1943,1947,"Le Périer","!D0271","Maison","HAMELIN Jean Emile époux RANQUE",null,null,131,null,null,null,null,null,null,null,null,{"$f":"IF(X136=\"\",\"\",ROW())","v":""}]
[null,2,null,null,null,"",87,"",1947,null,"Le Périer","!D0271","Maison","HAMELIN Jean Emile époux RANQUE, héritiers",null,null,131,null,null,null,null,null,null,null,null,""]
[null,null,null,null,null,null,null,null,null,null,null,null,null,null,null,null,null,null,null,null,null,null,null,null,null,""]
[null,1,"cn","0091",276,null,null,null,1837,1873,"Le Périer","!D0278","Maison","(CHALVIN)",null,null,139,null,null,"!D0278",".D1770","Maison","1837/1873","(CHALVIN)",null,139]
[null,1,null,"0276","9--",null,null,null,1873,1881,"Le Périer","!D0278","Maison","DORVILLE André la vve Née CHALVN Louise",null,null,140,null,null,null,null,null,"1873/1882","DORVILLE André puis la vve Née CHALVN Louise",null,140]
[null,1,276,"0691","34 B",null,null,null,1881,1882,"Le Périer","!D0278","Maison","DORVILLE André, ARNOL",null,null,140,null,null,null,null,null,null,"PELLORCE Vincent époux DUSSERT, RIVOIRE Léon époux CAIX (1915), héritiers (1943)",null,141]
[null,2,null,null,null,"",83,null,null,1915,"Perrier","!D0278","Maison","PELLORCE Vincent époux DUSSERT",null,null,141,null,null,null,null,null,null,null,null,""]
[null,2,null,null,null,"RB",83,null,1915,1943,"Perrier","!D0278","Maison","RIVOIRE Léon époux CAIX",null,null,141,null,null,null,null,null,null,null,null,""]
[null,2,null,null,null,"",83,"RB en 1943",1943,"RB","Perrier","!D0278","Maison","RIVOIRE Léon époux CAIX, héritiers",null,null,141,null,null,null,null,null,null,null,null,""]
[null,null,null,null,null,null,null,null,null,null,null,null,null,null,null,null,null,null,null,null,null,null,null,null,null,""]
[null,0,null,null,null,null,null,null,null,null,"Le Périer","!D0280","Maison","MICHEL Georges",null,null,146,null,null,"!D0280",".D01771","Maison démolie","1833/1865","MICHEL Georges",null,146]
[null,1,null,"0313","démolie (sol 745)",null,null,null,null,1865,"Le Périer","!D0280","Maison démolie","MICHEL (Georges)",null,null,146,null,null,null,null,null,null,null,null,""]
[null,null,null,null,null,null,null,null,null,null,null,null,null,null,null,null,null,null,null,null,null,null,null,null,null,""]
[null,0,null,null,null,null,null,null,null,null,"Le Périer","!D0281","Maison rurale","PELLORCE Vincent",null,null,149,null,null,"!D0281",".D1791","Maison rurale","1833/1857","PELLORCE Vincent, GARDEN Louise feu Jean",null,149]
[null,1,null,"0362",null,null,null,null,null,1857,"Le Périer","!D0281","Mais rurale","PELLORCE Vincent, GARDEN Louise feu Jean",null,null,149,null,null,null,null,"Bâtiment rural","1857/1868","RIVOIRE Louis fils Joseph",null,150]
[null,1,369,"0688",586,null,null,null,1857,1868,"Le Périer","!D0281","Bât rural","RIVOIRE Louis fils Joseph",null,null,150,null,null,null,null,null,"1868/1869","PELLORCE Pierre fils à Vincent",null,151]
[null,1,688,"0605",771,null,null,null,1868,1869,"Le Périer","!D0281","Bât rural","PELLORCE Pierre fils à Vincent",null,null,151,null,null,null,null,null,"1869/1904","PELLORCE Pierre fils de BLANC Magdeleine",null,152]
[null,1,180,"0711",942,null,null,null,1869,1904,"Le Périer","!D0281","Bât rural","PELLORCE Pierre fils de BLANC Magdeleine",null,null,152,null,null,null,null,null,"1904/","PAYAN Félix fils",null,153]
[null,1,711,"0949",null,null,null,null,1904,null,"Le Périer","!D0281","Bât rural","PAYAN Félix fils",null,null,153,null,null,null,null,null,null,null,null,""]
[null,null,null,null,null,null,null,null,null,null,null,null,null,null,null,null,null,null,null,null,null,null,null,null,null,""]
[null,0,null,null,null,null,null,null,null,null,"Le Périer","!D0282","Maison","PELLORCE Vincent",null,null,156,null,null,"!D0282",".D0876","Maison","1833/1857","PELLORCE Vincent, GARDEN Louise feu Jean",null,156]
[null,1,362,"0395",362,null,null,null,1837,1840,"Le Périer","!D0282","Maison","PELLORCE Denis fils à Denis",null,null,157,null,null,null,null,null,"1837/1840","PELLORCE Denis fils à Denis",null,157]
[null,1,null,"0362",null,null,null,null,1840,1837,"Le Périer","!D0282","Maison","PELLORCE Vincent, GARDEN Louise feu Jean",null,null,156,null,null,null,null,null,"1857/1882","PELLORCE Pierre fils de BLANC Magdeleine",null,158]
[null,1,395,"0363",711,null,null,null,1840,1857,"Le Périer","!D0282","Maison","PELLORCE Vincent",null,null,156,null,null,null,null,null,"/1923","PAYAN Félix fils",null,159]
[null,1,362,"0711","125 B (sol 942)",null,null,null,1857,"1882","Le Périer","!D0282","Maison","PELLORCE Pierre fils de BLANC Magdeleine",null,null,158,null,null,null,null,null,"193/1926","RIVOIRE Jules, fils de Léon",null,160]
[null,2,null,null,null,"",68,135,null,1923,"Perrier","!D0282","Maison","PAYAN Félix fils",null,null,159,null,null,null,null,null,null,null,null,""]
[null,2,null,null,null,68,135,"D",1923,1926,"Périer","!D0282","Maison","RIVOIRE Jules, fils de Léon",null,null,160,null,null,null,null,null,null,null,null,""]
[null,null,null,null,null,null,null,null,null,null,null,null,null,null,null,null,null,null,null,null,null,null,null,null,null,""]
[null,0,null,null,null,null,null,null,null,null,"Le Périer","!D0283","Maison","PELLORCE Vincent",null,null,164,null,null,"!D0283",".D0877","Maison","1833/1838","PELLORCE Vincent",null,164]
[null,1,null,"0349",341,null,null,null,null,"1838","Le Périer","!D0283","Maison","PELLORCE Vincent",null,null,164,null,null,null,null,null,"1850/1858","PELLORCE Louis",null,165]
[null,1,349,"0353",283,null,null,null,1850,1858,"Le Périer","!D0283","Maison","PELLORCE Louis",null,null,165,null,null,null,null,null,"1858/1875","REYMOND Joseph André",null,166]
[null,1,null,"0282","34-",null,null,null,1858,1875,"Le Périer","!D0283","Maison","REYMOND Joseph André",null,null,166,null,null,null,null,null,"1875/1922","RIVOIRE Joseph fils de Joseph",null,167]
[null,1,283,"0172","(156)",null,null,null,1875,1882,"Le Périer","!D0283","Maison","RIVOIRE Joseph fils de Joseph",null,null,167,null,null,null,null,null,"1922/","RIVOIRE Marie, épouse FAVIER, sage femme, COUCHOUD Gabriel, époux DUSSERT (1943)",null,168]
[null,2,null,null,null,"",107,132,null,1922,"Le Périer","!D0283p","Maison","RIVOIRE Joseph fils de Joseph",null,null,167,null,null,null,null,null,null,null,null,""]
[null,2,null,null,null,107,132,"",1922,1943,"Le Périer","!D0283p","Maison","RIVOIRE Marie, épouse FAVIER, sage femme",null,null,168,null,null,null,null,null,null,null,null,""]
[null,2,null,null,null,"",132,"",1943,null,"Le Périer","!D0283p","Maison","COUCHOUD Gabriel, époux DUSSERT",null,null,168,null,null,null,null,null,null,null,null,""]
[null,null,null,null,null,null,null,null,null,null,null,null,null,null,null,null,null,null,null,null,null,null,null,null,null,""]
[null,0,null,null,null,null,null,null,null,null,"Le Périer","!D0284","Maison","GUILLET Pierre",null,null,173,null,null,"!D0284",".D0874","Maison","1833/1838","GUILLET Pierre",null,173]
[null,1,null,"0264",null,null,null,null,null,1838,"Le Périer","!D0284","Maison","GUILLET (Pierre)",null,null,173,null,null,null,null,null,"/1841","GUILLET Jacques, GUILLET Claude feu Pierre (1840)",null,174]
[null,1,null,"0270",578,null,null,null,null,1841,"Le Périer","!D0284","Maison","GUILLET Jacques, GUILLET Claude feu Pierre (1840)",null,null,174,null,null,null,null,null,"1835/1840","BELLET Magdeleine",null,175]
[null,1,null,"0578",null,null,null,null,1835,1840,"Le Périer","!D0284","Maison","BELLET Magdeleine",null,null,175,null,null,null,null,null,"1841/1858","GUILLET Pierre",null,176]
[null,1,270,"0587","704, 587",null,null,null,1841,1857,"Le Périer","!D0284","Maison","GUILLET Pierre",null,null,173,null,null,null,null,null,"1857/1863","FLEUR Vincent",null,177]
[null,1,587,"0587",172,null,null,null,1857,1858,"Le Périer","!D0284p","Maison","GUILLET Pierre",null,null,173,null,null,null,null,null,"1863/1882","RIVOIRE Joseph fils de Joseph",null,178]
[null,1,587,"0704",172,null,null,null,1857,1863,"Le Périer","!D0284","Maison","FLEUR Vincent",null,null,177,null,null,null,null,null,"1922/1943","RIVOIRE Jean Joseph, gendarme ",null,179]
[null,1,704,"0172","15-",null,null,null,1863,1882,"Le Périer","!D0284p","Maison","RIVOIRE Joseph fils de Joseph",null,null,178,null,null,null,null,null,null,null,null,""]
[null,1,587,"0172","(156B)",null,null,null,1878,1882,"Le Périer","!D0284","Maison","RIVOIRE Joseph fils de Joseph",null,null,178,null,null,null,null,null,null,null,null,""]
[null,2,null,null,null,"",107,131,null,1922,"Le Périer","!D0284","Maison","RIVOIRE Joseph fils de Joseph",null,null,178,null,null,null,null,null,null,null,null,""]
[null,2,null,null,null,107,131,"Dém",1922,1943,"Le Périer","!D0284","Maison","RIVOIRE Jean Joseph, gendarme ",null,null,179,null,null,null,null,null,null,null,null,""]
[null,null,null,null,null,null,null,null,null,null,null,null,null,null,null,null,null,null,null,null,null,null,null,null,null,""]
[null,1,457,"0508",102,null,null,null,1853,1899,"Le Périer *","!D0285bis *","Mais rurale","REYMOND André fils de Joseph",null,null,185,null,null,"!D0285",".D0875","Maison rurale","1853/1899","REYMOND André fils de Joseph",null,185]
[null,null,null,null,null,null,null,null,null,null,null,null,null,null,null,null,null,null,null,null,null,null,null,null,null,""]
[null,2,null,null,null,"",107,131,null,1922,"Le Périer","!D0287","Maison","RIVOIRE Joseph fils de Joseph",null,null,187,null,null,"!D0287",".D0984","Maison","/1922","RIVOIRE Joseph fils de Joseph",null,187]
[null,null,null,null,null,null,null,null,null,null,null,null,null,null,null,null,null,null,null,null,null,null,null,null,null,""]
[null,null,null,null,null,null,null,null,null,null,null,null,null,null,null,null,null,null,null,"!D0289",".D0987","Bâtiment","1943/1943","HOSTACHE vve née BRUN",null,189]